Workbook

Sheet Deckblatt
H1: 24.03.2015
B3: Gesetz für den Vorrang Erneuerbarer Energien (EEG)
B4: Erhebungsbogen zur Erfassung Ihrer EEG-Jahresabrechnung 2014 als Verteilnetzbetreiber
B5: (Version 1.7 vom 24.03.2015)
B6: Zusammenstellung der detaillierten Angaben Ihrer Endabrechnung nach § 72 EEG Ihrer aufgenommenen und vergüteten und an die TransnetBW GmbH als zuständigen Übertragungsnetzbetreiber weitergereichten EEG-Strommengen im Zeitraum vom 01.01.2014 bis 31.12.2014
B8: Verbindliche detaillierte Angaben zu Ihrer Bescheinigung der Daten gemäß § 72 EEG
B11: Netzbetreiber : | C11: Gammertinger Energie- u. Wasserversorgung GmbH
B13: BNetzA-Nr.: | C13: 10000066
B15: Datenstand : | C15: 2014-12-31
B17: Ausgleichsbilanzkreis 2015 * : | C17: 11YW1-GEW-EEG--U
B19: Abrechnungszeitraum: | C19: 01.01.2014 - 31.12.2014
B25: Wichtige Hinweise zum Ausfüllen der Formulare:
B27: - Auszufüllen sind jeweils nur die gelb hinterlegten Felder in gelb hinterlgeten Tabellenblättern
B28: - Eine anlagenscharfe Endabrechnung ist zwingend vorzunehmen und ist die Grundlage für die Durchführung der EEG-Jahresabrechnung
B30: * Bitte geben Sie hier Ihren Ausgleichsbilanzkreis für den physikalischen Ausgleich an. Der energetische und monetäre Ausgleich zwischen ÜNB und VNB für das Jahr 2014 wird im September 2015 durchgeführt.
B31: Die Energie wird hierfür in Form eines gleichbleibenden Bandes vom 1. September 00:00 Uhr bis 30. September 24:00 Uhr geliefert (die Lieferung/Rücklieferung erfolgt in Form von Fahrplananmeldungen).
B33: - Der Dateinamen ist zwingend beizubehalten, da die Datei sonst nicht verarbeitet werden kann.

Sheet Importprotokoll
A1: Prüfungsschritt/Fehlernummer: | B1: Fehlerbeschreibung | C1: Zeile (bei Schritt 1 u. 2) bzw. Anlagenschlüssel (bei Schritt 3) | D1: Tabellenblatt (nur bei Schritt 1 und 2) | E1: Spalte (nur bei Schritt 2, sofern möglich)
A2: E0001 | B2: Die Testatdaten wurden am 06.05.2015 um 11:01:43 erfolgreich berechnet. | D2: Testatdaten

Sheet Testatdaten
E1: =Deckblatt!H1 -> 24.03.2015
A3: Netzbetreiber : | B3: =Deckblatt!C11 -> Gammertinger Energie- u. Wasserversorgung GmbH
A5: Zusammenstellung der Angaben der Endabrechnung nach § 72 EEG Ihrer aufgenommenen und vergüteten und an die TransnetBW GmbH als zuständigen Übertragungsnetzbetreiber weitergereichten EEG-Strommengen im Zeitraum 01.01.2014 bis 31.12.2014
A8: Testatdaten
A10: Einspeisevergütung
B11: kaufmännisch abgenommene Strommenge | C11: Einspeisevergütung
B12: [kWh] | C12: [EUR]
A13: Wasserkraft | B13: 108330 | C13: 12642.11
A14: Deponie-, Klär-, Grubengas | B14: 0 | C14: 0
A15: Biomasse | B15: 0 | C15: 0
A16: Geothermie | B16: 0 | C16: 0
A17: Windenergie an Land | B17: 0 | C17: 0
A18: Solare Strahlungsenergie | B18: 2649953.06 | C18: 961744.66
A20: Summe | B20: =SUM(B13:B18) -> 2758283.06 | C20: =SUM(C13:C18) -> 974386.77
C21: (1)
A22: Solarstrom-Selbstverbrauch durch Anlagenbetreiber oder Dritte nach § 33 Abs. 2 EEG 2009 - muss nicht separat im Testat ausgewiesen werden.
A23: Selbstverbrauchsvergütung [€] (in Zelle C17 oben enthalten): | C23: 1429.77
A24: Selbstverbrauchte Strommenge [kWh] (nicht in Zelle B17 oben enthalten): | C24: 13571
A27: Direktvermarktung
B28: Marktprämie | C28: Marktprämienmodell | D28: sonstige Direktvermarktung | E28: Grünstromprivileg
B29: [EUR] | C29: [kWh] | D29: [kWh] | E29: [kWh]
A30: Wasserkraft | B30: 0 | C30: 0 | D30: 0 | E30: 0
A31: Deponie-, Klär-, Grubengas | B31: 0 | C31: 0 | D31: 0 | E31: 0
A32: Biomasse | B32: 0 | C32: 0 | D32: 0 | E32: 0
A33: Geothermie | B33: 0 | C33: 0 | D33: 0 | E33: 0
A34: Windenergie an Land | B34: 0 | C34: 0 | D34: 0 | E34: 0
A35: Solare Strahlungsenergie | B35: 0 | C35: 0 | D35: 0 | E35: 0
A37: Summe | B37: =SUM(B30:B35) -> 0 | C37: =SUM(C30:C35) -> 0 | D37: 0 | E37: =SUM(E30:E35) -> 0
B38: (2)
A40: Förderung für Flexibilität
B41: Förderung
B42: [EUR]
A43: Flexibilitätszuschlag und Flexibilitätsprämie | B43: 0
B44: (3)
A47: vermiedene Netzentgelte (vNE)
B48: vNE nach § 35 Abs. 2 EEG
B49: [€]
A50: Wasserkraft | B50: 725.81
A51: Deponie-, Klär-, Grubengas | B51: 0
A52: Biomasse | B52: 0
A53: Geothermie | B53: 0
A54: Windenergie an Land | B54: 0
A55: Solare Strahlungsenergie | B55: 21551.53
A57: Summe | B57: =SUM(B50:B55) -> 22277.34
B58: (4)
A61: Zusammenstellung
C62: [€]
A63: Einspeisevergütung | B63: (1) =Zelle C20 | C63: =C20 -> 974386.77
A64: + Marktprämie | B64: (2) = Zelle B37 | C64: =B37 -> 0
A65: + Förderung für Flexibilität | B65: (3) = Zelle B43 | C65: =B43 -> 0
A66: - Vermiedene Netzentgelte | B66: (4) = Zelle B57 | C66: =B57 -> 22277.34
A68: Zwischenergebnis | B68: (Z) = (1) + (2) + (3) - (4) | C68: =C63+C64+C65-C66 -> 952109.43
A70: + Nachträgliche Korrekturen nach § 62 EEG 2014 | B70: (5) | C70: 0
A72: Saldo | B72: = (Z)+ (5) | C72: =C70+C68 -> 952109.43
A75: Auf dieser Seite werden die in dieser Datei erfassten Bewegungsdaten entsprechend den Energieträgern zusammengefasst. Die im blauen Rahmen enthaltenen Angaben sind in Ihrer Wirtschaftsprüferbescheinigung (Testat) aufzuführen. Abweichungen der Testatwerte von den hier aufgeführten Summen sind nur soweit zulässig, wie sie auf Rundungsfehler zurückzuführen sind. Beachten Sie bitte, dass die vermiedenen Netzentgelte innerhalb des Testats wie hier aufgeführt mit positiven Vorzeichen anzugeben sind.
A81: Die direktvermarktete Strommenge ist nicht in der Spalte "Jahresarbeit der EEG-Einspeisung" enthalten und darf analog im Testat in der Spalte "Strommenge [kWh]" ebenfalls nicht enthalten sein. Hinweis: Falls Sie vermiedene Netzentgelte oder Direktvermarktung ausweisen müssen, diese Angaben aber hier fehlen: Ergänzen Sie bitte die Bewegungsdaten in den Tabellenblättern "Festvergütung-GSP-sonst.DV" (Gilt für Einspeisung von Anlagen in Festvergütung, Grünstromprivileg und in der sonstigen Direktvermarktung), "Marktprämie" (gilt für Anlagen in der Marktprämie) und "vNE" (gilt für vNE für Anlagen in Festvergütung, Grünstromprivileg und Marktprämie), indem Sie für die betroffenen Anlagen in einer weiteren Zeile die entsprechende vNE- bzw. Direktvermarktungskategorie auswählen. Die vNE sind als positiver Wert einzutragen. Die direktvermarktete Strommenge ist in der Spalte "Strommenge der Kategorie [kWh]" einzutragen.
A91: zusätzliche Informationen, die nicht im Testat aufzuführen sind (zur Kontrolle):
B93: vermiedene Netzentgelte [€]
A94: HöS | B94: 0
A95: Hös/HS | B95: 0
A96: HS | B96: 0
A97: HS/MS | B97: 0
A98: MS | B98: 558.1
A99: MS/NS | B99: 0
A100: NS | B100: 21719.24
A101: Summe | B101: =SUM(B94:B100) -> 22277.34
B104: Anzahl Anlagen
A105: Wasserkraft | B105: 1
A106: Deponie-, Klär-, Grubengas | B106: 0
A107: Biomasse | B107: 0
A108: Geothermie | B108: 0
A109: Windenergie an Land | B109: 0
A110: Solare Strahlungsenergie | B110: 188
A111: Summe | B111: =SUM(B105:B110) -> 189

Sheet Testatdaten (vorläufig)
E1: =Deckblatt!H1 -> 24.03.2015
A3: Netzbetreiber : | B3: =Deckblatt!C11 -> Gammertinger Energie- u. Wasserversorgung GmbH
A5: Zusammenstellung der Angaben der Endabrechnung nach § 72 EEG Ihrer aufgenommenen und vergüteten und an die TransnetBW GmbH als zuständigen Übertragungsnetzbetreiber weitergereichten EEG-Strommengen im Zeitraum 01.01.2014 bis 31.12.2014
A8: Testatdaten
A10: Einspeisevergütung
B11: kaufmännisch abgenommene Strommenge | C11: Einspeisevergütung
B12: [kWh] | C12: [EUR]
A13: Wasserkraft | B13: 108330 | C13: 12642.11
A14: Deponie-, Klär-, Grubengas | B14: 0 | C14: 0
A15: Biomasse | B15: 0 | C15: 0
A16: Geothermie | B16: 0 | C16: 0
A17: Windenergie an Land | B17: 0 | C17: 0
A18: Solare Strahlungsenergie | B18: 2649953.06 | C18: 961744.66
A20: Summe | B20: =SUM(B13:B18) -> 2758283.06 | C20: =SUM(C13:C18) -> 974386.77
C21: (1)
A22: Solarstrom-Selbstverbrauch durch Anlagenbetreiber oder Dritte nach § 33 Abs. 2 EEG 2009 - muss nicht separat im Testat ausgewiesen werden.
A23: Selbstverbrauchsvergütung [€] (in Zelle C17 oben enthalten): | C23: 1429.77
A24: Selbstverbrauchte Strommenge [kWh] (nicht in Zelle B17 oben enthalten): | C24: 13571
A27: Direktvermarktung
B28: Marktprämie | C28: Marktprämienmodell | D28: sonstige Direktvermarktung | E28: Grünstromprivileg
B29: [EUR] | C29: [kWh] | D29: [kWh] | E29: [kWh]
A30: Wasserkraft | B30: 0 | C30: 0 | D30: 0 | E30: 0
A31: Deponie-, Klär-, Grubengas | B31: 0 | C31: 0 | D31: 0 | E31: 0
A32: Biomasse | B32: 0 | C32: 0 | D32: 0 | E32: 0
A33: Geothermie | B33: 0 | C33: 0 | D33: 0 | E33: 0
A34: Windenergie an Land | B34: 0 | C34: 0 | D34: 0 | E34: 0
A35: Solare Strahlungsenergie | B35: 0 | C35: 0 | D35: 0 | E35: 0
A37: Summe | B37: =SUM(B30:B35) -> 0 | C37: =SUM(C30:C35) -> 0 | D37: 0 | E37: =SUM(E30:E35) -> 0
B38: (2)
B39: 0
A40: Förderung für Flexibilität
B41: Förderung
B42: [EUR]
A43: Flexibilitätszuschlag und Flexibilitätsprämie | B43: 0
B44: (3)
A47: vermiedene Netzentgelte (vNE)
B48: vNE nach § 35 Abs. 2 EEG
B49: [€]
A50: Wasserkraft | B50: 725.81
A51: Deponie-, Klär-, Grubengas | B51: 0
A52: Biomasse | B52: 0
A53: Geothermie | B53: 0
A54: Windenergie an Land | B54: 0
A55: Solare Strahlungsenergie | B55: 21551.53
A57: Summe | B57: =SUM(B50:B55) -> 22277.34
B58: (4)
A61: Zusammenstellung
C62: [€]
A63: Einspeisevergütung | B63: (1) =Zelle C20 | C63: =C20 -> 974386.77
A64: + Marktprämie | B64: (2) = Zelle B37 | C64: =B37 -> 0
A65: + Förderung für Flexibilität | B65: (3) = Zelle B43 | C65: =B43 -> 0
A66: - Vermiedene Netzentgelte | B66: (4) = Zelle B57 | C66: =B57 -> 22277.34
A68: Zwischenergebnis | B68: (Z) = (1) + (2) + (3) - (4) | C68: =C63+C64+C65-C66 -> 952109.43
A70: + Nachträgliche Korrekturen nach § 62 EEG 2014 | B70: (5) | C70: 0
A72: Saldo | B72: = (Z)+ (5) | C72: =C70+C68 -> 952109.43
A75: Auf dieser Seite werden die in dieser Datei erfassten Bewegungsdaten entsprechend den Energieträgern zusammengefasst. Die im blauen Rahmen enthaltenen Angaben sind in Ihrer Wirtschaftsprüferbescheinigung (Testat) aufzuführen. Abweichungen der Testatwerte von den hier aufgeführten Summen sind nur soweit zulässig, wie sie auf Rundungsfehler zurückzuführen sind. Beachten Sie bitte, dass die vermiedenen Netzentgelte innerhalb des Testats wie hier aufgeführt mit positiven Vorzeichen anzugeben sind.
A81: Die direktvermarktete Strommenge ist nicht in der Spalte "Jahresarbeit der EEG-Einspeisung" enthalten und darf analog im Testat in der Spalte "Strommenge [kWh]" ebenfalls nicht enthalten sein. Hinweis: Falls Sie vermiedene Netzentgelte oder Direktvermarktung ausweisen müssen, diese Angaben aber hier fehlen: Ergänzen Sie bitte die Bewegungsdaten in den Tabellenblättern "Festvergütung-GSP-sonst.DV" (Gilt für Einspeisung von Anlagen in Festvergütung, Grünstromprivileg und in der sonstigen Direktvermarktung), "Marktprämie" (gilt für Anlagen in der Marktprämie) und "vNE" (gilt für vNE für Anlagen in Festvergütung, Grünstromprivileg und Marktprämie), indem Sie für die betroffenen Anlagen in einer weiteren Zeile die entsprechende vNE- bzw. Direktvermarktungskategorie auswählen. Die vNE sind als positiver Wert einzutragen. Die direktvermarktete Strommenge ist in der Spalte "Strommenge der Kategorie [kWh]" einzutragen.
A91: zusätzliche Informationen, die nicht im Testat aufzuführen sind (zur Kontrolle):
B93: vermiedene Netzentgelte [€]
A94: HöS | B94: 0
A95: Hös/HS | B95: 0
A96: HS | B96: 0
A97: HS/MS | B97: 0
A98: MS | B98: 558.1
A99: MS/NS | B99: 0
A100: NS | B100: 21719.24
A101: Summe | B101: =SUM(B94:B100) -> 22277.34
B104: Anzahl Anlagen
A105: Wasserkraft | B105: 1
A106: Deponie-, Klär-, Grubengas | B106: 0
A107: Biomasse | B107: 0
A108: Geothermie | B108: 0
A109: Windenergie an Land | B109: 0
A110: Solare Strahlungsenergie | B110: 188
A111: Summe | B111: =SUM(B105:B110) -> 189

Sheet Stammdaten
A3: Netzbetreiber : | B3: =Deckblatt!C11 -> Gammertinger Energie- u. Wasserversorgung GmbH
C5: Standort / Lage der Anlage (nicht des Anlagenbetreibers) | S5: bei Biomasseanlagen | W5: bei Deponiegas, Klärgas und Grubengas | X5: Geographische Koordinaten (nur bei Wind- und Solaranlagen) | AD5: nur bei Windenergieanlagen
A6: Anlagenschlüssel | B6: Zählpunktbezeichnung | C6: Ort / Gemarkung | D6: Bundesland | E6: PLZ | F6: Straße / Flurstück | G6: Installierte Leistung [kW] | H6: Energieträger | I6: Inbetriebnahmedatum [TT.MM.JJJJ] | J6: Außerbetriebnahmedatum [TT.MM.JJJJ] | K6: Netzzugangsdatum [TT.MM.JJJJ] | L6: Netzabgangsdatum [TT.MM.JJJJ] | M6: Modernisierungsdatum [TT.MM.JJJJ] | N6: Einspeisespannungsebene | O6: Anlageninstallation für Selbstverbrauch ausgelegt | P6: Einspeisemanagement | Q6: Anlage mit Lastgangzählung | R6: Zeitreihentyp für Bilanzierung der Stromerzeugung der Anlage | S6: KWK-Bonus | T6: Technologie-Bonus | U6: Datum der ersten Inanspruchnahme der Flexibilitätsprämie | V6: Höchstbemessungsleistung nach § 101 Abs. 1 EEG | W6: Technologiebonus Gas | X6: Grad, nördliche Breite | Y6: Minuten, nördliche Breite | Z6: Sekunden, nördliche Breite | AA6: Grad, östliche Länge | AB6: Minuten, östliche Länge | AC6: Sekunden, östliche länge | AD6: Schalloptimierung | AE6: Gültig ab [TT.MM.JJJJ] | AF6: nur eingeschränkte Prüfung möglich | AG6: Erläuterung für eingeschränkte Prüfung
A7: Pflichtfeld | B7: Pflichtfeld | C7: Pflichtfeld | D7: Pflichtfeld | E7: Pflichtfeld | F7: Pflichtfeld | G7: Pflichtfeld | H7: Pflichtfeld | I7: Pflichtfeld | J7: Pflichtfeld wenn Anlage außer Betrieb | K7: Pflichtfeld bei Netzübergang der Anlage | L7: Pflichtfeld bei Netzübergang der Anlage | M7: Pflichtfeld (Datum der letzten vergütungswirksamen Modernisierung) | N7: Pflichtfeld | O7: Pflichtfeld | P7: Pflichtfeld | Q7: Pflichtfeld | R7: Pflichtfeld | S7: Pflichtfeld | T7: Pflichtfeld | U7: Pflichtfeld bei Inanspruchnahme der Prämie | V7: Pflichtfeld bei Biogasanlagen mit Inbetriebnahme vor 01.08.2014 | W7: Pflichtfeld | X7: Optional | Y7: Optional | Z7: Optional | AA7: Optional | AB7: Optional | AC7: Optional | AD7: Optional | AE7: Pflichtfeld bei unterjährigen Anlagenänderungen bzw. sofern für Korrekturen von Vorjahren andere Stände zu berücksichtigen sind. | AF7: optional - sofern Sondersachverhalte vorliegen | AG7: Plichtfeld sofern Spalte AF befüllt ist
A8: E1006601W725010011300060051800001 | B8: DE0002147250100001001130006000518 | C8: Gammertingen | D8: Baden-Württemberg | E8: 72501 | F8: Schwedengasse 6 | G8: 40 | H8: Wasser | I8: 1950-01-15 | M8: 2012-01-10 | N8: NS | O8: Nein | P8: Nicht regelbar | Q8: Nein | R8: WAP
A9: E1006601S725010041700070299700001 | B9: DE0002147250100001004170007002997 | C9: Gammertingen | D9: Baden-Württemberg | E9: 72501 | F9: Bubenhofenstr. 7 | G9: 2 | H9: Solar | I9: 2000-04-01 | N9: NS | O9: Nein | P9: Nicht regelbar | Q9: Nein | R9: SOT
A10: E1006601S725010022600030114300001 | B10: DE0002147250100001002260003001143 | C10: Gammertingen | D10: Baden-Württemberg | E10: 72501 | F10: Äussere Lochern 3 | G10: 2 | H10: Solar | I10: 2000-08-31 | N10: NS | O10: Nein | P10: Nicht regelbar | Q10: Nein | R10: SOT
A11: E1006601S725010022600080345200001 | B11: DE0002147250100001002260008003452 | C11: Gammertingen | D11: Baden-Württemberg | E11: 72501 | F11: Äussere Lochern 8 | G11: 2 | H11: Solar | I11: 2001-01-22 | N11: NS | O11: Nein | P11: Nicht regelbar | Q11: Nein | R11: SOT
A12: E1006601S725010042100140358500001 | B12: DE0002147250100001004210014003585 | C12: Gammertingen | D12: Baden-Württemberg | E12: 72501 | F12: Mauren 14 | G12: 8.5 | H12: Solar | I12: 2001-06-21 | N12: NS | O12: Nein | P12: Nicht regelbar | Q12: Nein | R12: SOT
A13: E1006601S725010021200160359400001 | B13: DE0002147250100001002120016003594 | C13: Gammertingen | D13: Baden-Württemberg | E13: 72501 | F13: Achalmstr. 16 | G13: 1.3 | H13: Solar | I13: 2001-07-17 | N13: NS | O13: Nein | P13: Nicht regelbar | Q13: Nein | R13: SOT
A14: E1006601S725010022900020366200001 | B14: DE0002147250100001002290002003662 | C14: Gammertingen | D14: Baden-Württemberg | E14: 72501 | F14: Danziger Str. 2 | G14: 14.3 | H14: Solar | I14: 2001-07-30 | N14: NS | O14: Nein | P14: Nicht regelbar | Q14: Nein | R14: SOT
A15: E1006601S725010021800030363100001 | B15: DE0002147250100001002180003003631 | C15: Gammertingen | D15: Baden-Württemberg | E15: 72501 | F15: Augstbergweg 3 | G15: 2.24 | H15: Solar | I15: 2001-08-28 | N15: NS | O15: Nein | P15: Nicht regelbar | Q15: Nein | R15: SOT
A16: E1006601S725010042900010368900001 | B16: DE0002147250100001004290001003689 | C16: Gammertingen | D16: Baden-Württemberg | E16: 72501 | F16: Heiligenbühlweg 1 | G16: 4.056 | H16: Solar | I16: 2001-10-22 | N16: NS | O16: Nein | P16: Nicht regelbar | Q16: Nein | R16: SOT
A17: E1006601S725010041700010385300001 | B17: DE0002147250100001004170001003853 | C17: Gammertingen | D17: Baden-Württemberg | E17: 72501 | F17: Bubenhofenstr. 1 | G17: 2.04 | H17: Solar | I17: 2002-03-27 | N17: NS | O17: Nein | P17: Nicht regelbar | Q17: Nein | R17: SOT
A18: E1006601S725010011100020387200001 | B18: DE0002147250100001001110002003872 | C18: Gammertingen | D18: Baden-Württemberg | E18: 72501 | F18: Roter Dill 2 | G18: 1.92 | H18: Solar | I18: 2002-04-30 | N18: NS | O18: Nein | P18: Nicht regelbar | Q18: Nein | R18: SOT
A19: E1006601S725010030600180404000001 | B19: DE0002147250100001003060018004040 | C19: Gammertingen | D19: Baden-Württemberg | E19: 72501 | F19: Hölderlinstr. 18 | G19: 3.45 | H19: Solar | I19: 2002-11-13 | N19: NS | O19: Nein | P19: Nicht regelbar | Q19: Nein | R19: SOT
A20: E1006601S725010041550110404700001 | B20: DE0002147250100001004155011004047 | C20: Gammertingen | D20: Baden-Württemberg | E20: 72501 | F20: Robert-Seifert-Str. 11 | G20: 3.52 | H20: Solar | I20: 2002-11-25 | N20: NS | O20: Nein | P20: Nicht regelbar | Q20: Nein | R20: SOT
A21: E1006601S725010010200100409400001 | B21: DE0002147250100001001020010004094 | C21: Gammertingen | D21: Baden-Württemberg | E21: 72501 | F21: August-Reiser-Str. 10 | G21: 3.22 | H21: Solar | I21: 2002-12-13 | N21: NS | O21: Nein | P21: Nicht regelbar | Q21: Nein | R21: SOT
A22: E1006601S725010023600110409900001 | B22: DE0002147250100001002360011004099 | C22: Gammertingen | D22: Baden-Württemberg | E22: 72501 | F22: Schweriner Str. 11 | G22: 3.23 | H22: Solar | I22: 2002-12-23 | N22: NS | O22: Nein | P22: Nicht regelbar | Q22: Nein | R22: SOT
A23: E1006601S725010041550340418800001 | B23: DE0002147250100001004155034004188 | C23: Gammertingen | D23: Baden-Württemberg | E23: 72501 | F23: Robert-Seifert-Str. 34 | G23: 2 | H23: Solar | I23: 2003-05-20 | N23: NS | O23: Nein | P23: Nicht regelbar | Q23: Nein | R23: SOT
A24: E1006601S725010024300090410600001 | B24: DE0002147250100001002430009004106 | C24: Gammertingen | D24: Baden-Württemberg | E24: 72501 | F24: Leipziger Str. 9 | G24: 2 | H24: Solar | I24: 2003-06-20 | N24: NS | O24: Nein | P24: Nicht regelbar | Q24: Nein | R24: SOT
A25: E1006601S725010031700030232100001 | B25: DE0002147250100001003170003002321 | C25: Gammertingen | D25: Baden-Württemberg | E25: 72501 | F25: Beethovenstr. 3 | G25: 4.42 | H25: Solar | I25: 2003-08-27 | N25: NS | O25: Nein | P25: Nicht regelbar | Q25: Nein | R25: SOT
A26: E1006601S725010022800060127000001 | B26: DE0002147250100001002280006001270 | C26: Gammertingen | D26: Baden-Württemberg | E26: 72501 | F26: Kohlhalde 6 | G26: 5.34 | H26: Solar | I26: 2003-09-19 | N26: NS | O26: Nein | P26: Nicht regelbar | Q26: Nein | R26: SOT
A27: E1006601S725010041700050299200001 | B27: DE0002147250100001004170005002992 | C27: Gammertingen | D27: Baden-Württemberg | E27: 72501 | F27: Bubenhofenstr. 5 | G27: 9.1 | H27: Solar | I27: 2003-10-14 | N27: NS | O27: Nein | P27: Nicht regelbar | Q27: Nein | R27: SOT
A28: E1006601S725010040900570274700001 | B28: DE0002147250100001004090057002747 | C28: Gammertingen | D28: Baden-Württemberg | E28: 72501 | F28: Sigmaringer Str. 57 | G28: 6.4 | H28: Solar | I28: 2003-11-04 | N28: NS | O28: Nein | P28: Nicht regelbar | Q28: Nein | R28: SOT
A29: E1006601S725010022600060114900001 | B29: DE0002147250100001002260006001149 | C29: Gammertingen | D29: Baden-Württemberg | E29: 72501 | F29: Äussere Lochern 6 | G29: 4.2 | H29: Solar | I29: 2003-12-11 | N29: NS | O29: Nein | P29: Nicht regelbar | Q29: Nein | R29: SOT
A30: E1006601S725010010800230000100001 | B30: DE0002147250100001001080023000001 | C30: Gammertingen | D30: Baden-Württemberg | E30: 72501 | F30: Kiverlinstr. 23 | G30: 1 | H30: Solar | I30: 2004-01-01 | N30: NS | O30: Nein | P30: Nicht regelbar | Q30: Nein | R30: SOT
A31: E1006601S725010010800250000100001 | B31: DE0002147250100001001080025000001 | C31: Gammertingen | D31: Baden-Württemberg | E31: 72501 | F31: Kiverlinstr. 25 | G31: 1 | H31: Solar | I31: 2004-01-01 | N31: NS | O31: Nein | P31: Nicht regelbar | Q31: Nein | R31: SOT
A32: E1006601S725010022900020366300001 | B32: DE0002147250100001002290002003663 | C32: Gammertingen | D32: Baden-Württemberg | E32: 72501 | F32: Danziger Str. 2 | G32: 4 | H32: Solar | I32: 2004-03-29 | N32: NS | O32: Nein | P32: Nicht regelbar | Q32: Nein | R32: SOT
A33: E1006601S725010022800060127100001 | B33: DE0002147250100001002280006001271 | C33: Gammertingen | D33: Baden-Württemberg | E33: 72501 | F33: Kohlhalde 6 | G33: 2.04 | H33: Solar | I33: 2004-04-06 | N33: NS | O33: Nein | P33: Nicht regelbar | Q33: Nein | R33: SOT
A34: E1006601S725010011100020387200002 | B34: DE0002147250100001001110002003872 | C34: Gammertingen | D34: Baden-Württemberg | E34: 72501 | F34: Roter Dill 2 | G34: 1.92 | H34: Solar | I34: 2004-05-19 | N34: NS | O34: Nein | P34: Nicht regelbar | Q34: Nein | R34: SOT
A35: E1006601S725010023500260144800001 | B35: DE0002147250100001002350026001448 | C35: Gammertingen | D35: Baden-Württemberg | E35: 72501 | F35: Dresdener Str. 26 | G35: 5.75 | H35: Solar | I35: 2004-08-02 | N35: NS | O35: Nein | P35: Nicht regelbar | Q35: Nein | R35: SOT
A36: E1006601S725010042500140317800001 | B36: DE0002147250100001004250014003178 | C36: Gammertingen | D36: Baden-Württemberg | E36: 72501 | F36: Gräfin-Adelheid-Str. 14 | G36: 6.21 | H36: Solar | I36: 2004-09-30 | N36: NS | O36: Nein | P36: Nicht regelbar | Q36: Nein | R36: SOT
A37: E1006601S725010022000130104700001 | B37: DE0002147250100001002200013001047 | C37: Gammertingen | D37: Baden-Württemberg | E37: 72501 | F37: Neufraer Str. 13 | G37: 5.845 | H37: Solar | I37: 2005-03-23 | N37: NS | O37: Nein | P37: Nicht regelbar | Q37: Nein | R37: SOT
A38: E1006601S725010022600170117100001 | B38: DE0002147250100001002260017001171 | C38: Gammertingen | D38: Baden-Württemberg | E38: 72501 | F38: Äussere Lochern 17 | G38: 4.99 | H38: Solar | I38: 2005-06-02 | N38: NS | O38: Nein | P38: Nicht regelbar | Q38: Nein | R38: SOT
A39: E1006601S725010030500190175400001 | B39: DE0002147250100001003050019001754 | C39: Gammertingen | D39: Baden-Württemberg | E39: 72501 | F39: Schillerstr. 19 | G39: 4.73 | H39: Solar | I39: 2005-06-13 | N39: NS | O39: Nein | P39: Nicht regelbar | Q39: Nein | R39: SOT
A40: E1006601S725010040900570274800001 | B40: DE0002147250100001004090057002748 | C40: Gammertingen | D40: Baden-Württemberg | E40: 72501 | F40: Sigmaringer Str. 57 | G40: 6.3 | H40: Solar | I40: 2005-08-12 | N40: NS | O40: Nein | P40: Nicht regelbar | Q40: Nein | R40: SOT
A41: E1006601S725010020300100064100001 | B41: DE0002147250100001002030010000641 | C41: Gammertingen | D41: Baden-Württemberg | E41: 72501 | F41: Daimlerstr. 10 | G41: 5.1 | H41: Solar | I41: 2005-11-09 | N41: NS | O41: Nein | P41: Nicht regelbar | Q41: Nein | R41: SOT
A42: E1006601S725010031500090210600001 | B42: DE0002147250100001003150009002106 | C42: Gammertingen | D42: Baden-Württemberg | E42: 72501 | F42: Obere Bohlstr. 9 | G42: 4.5 | H42: Solar | I42: 2005-12-06 | N42: NS | O42: Nein | P42: Nicht regelbar | Q42: Nein | R42: SOT
A43: E1006601S725010021100100086100001 | B43: DE0002147250100001002110010000861 | C43: Gammertingen | D43: Baden-Württemberg | E43: 72501 | F43: Buchenweg 10 | G43: 6.63 | H43: Solar | I43: 2006-03-17 | N43: NS | O43: Nein | P43: Nicht regelbar | Q43: Nein | R43: SOT
A44: E1006601S725010041550080291800001 | B44: DE0002147250100001004155008002918 | C44: Gammertingen | D44: Baden-Württemberg | E44: 72501 | F44: Robert-Seifert-Str. 8 | G44: 10.2 | H44: Solar | I44: 2006-03-30 | N44: NS | O44: Nein | P44: Nicht regelbar | Q44: Nein | R44: SOT
A45: E1006601S725010021300340093200001 | B45: DE0002147250100001002130034000932 | C45: Gammertingen | D45: Baden-Württemberg | E45: 72501 | F45: Hochbergstr. 34 | G45: 6.4 | H45: Solar | I45: 2006-04-19 | N45: NS | O45: Nein | P45: Nicht regelbar | Q45: Nein | R45: SOT
A46: E1006601S725010041550150292800001 | B46: DE0002147250100001004155015002928 | C46: Gammertingen | D46: Baden-Württemberg | E46: 72501 | F46: Robert-Seifert-Str. 15 | G46: 7.48 | H46: Solar | I46: 2006-04-20 | N46: NS | O46: Nein | P46: Nicht regelbar | Q46: Nein | R46: SOT
A47: E1006601S725010040900730277100001 | B47: DE0002147250100001004090073002771 | C47: Gammertingen | D47: Baden-Württemberg | E47: 72501 | F47: Sigmaringer Str. 73 | G47: 1 | H47: Solar | I47: 2006-07-06 | N47: NS | O47: Nein | P47: Nicht regelbar | Q47: Nein | R47: SOT
A48: E1006601S725010020200110058700001 | B48: DE0002147250100001002020011000587 | C48: Gammertingen | D48: Baden-Württemberg | E48: 72501 | F48: Schelmengartenstr. 11 | G48: 8.575 | H48: Solar | I48: 2006-07-10 | N48: NS | O48: Nein | P48: Nicht regelbar | Q48: Nein | R48: SOT
A49: E1006601S725010030800020183300001 | B49: DE0002147250100001003080002001833 | C49: Gammertingen | D49: Baden-Württemberg | E49: 72501 | F49: Uhlandstr. 6 | G49: 7.2 | H49: Solar | I49: 2006-09-26 | N49: NS | O49: Nein | P49: Nicht regelbar | Q49: Nein | R49: SOT
A50: E1006601S725010010100250003300001 | B50: DE0002147250100001001010025000033 | C50: Gammertingen | D50: Baden-Württemberg | E50: 72501 | F50: Alte Steige 25 | G50: 6.65 | H50: Solar | I50: 2006-10-06 | N50: NS | O50: Nein | P50: Nicht regelbar | Q50: Nein | R50: SOT
A51: E1006601S725010030100220153900001 | B51: DE0002147250100001003010022001539 | C51: Gammertingen | D51: Baden-Württemberg | E51: 72501 | F51: Friedhofstr. 22 | G51: 11.52 | H51: Solar | I51: 2006-11-02 | N51: NS | O51: Nein | P51: Nicht regelbar | Q51: Nein | R51: SOT
A52: E1006601S725010040900570274900001 | B52: DE0002147250100001004090057002749 | C52: Gammertingen | D52: Baden-Württemberg | E52: 72501 | F52: Sigmaringer Str. 57 | G52: 16.2 | H52: Solar | I52: 2006-11-13 | N52: NS | O52: Nein | P52: Nicht regelbar | Q52: Nein | R52: SOT
A53: E1006601S725010023500090141700001 | B53: DE0002147250100001002350009001417 | C53: Gammertingen | D53: Baden-Württemberg | E53: 72501 | F53: Dresdener Str. 9 | G53: 8.46 | H53: Solar | I53: 2007-04-12 | N53: NS | O53: Nein | P53: Nicht regelbar | Q53: Nein | R53: SOT
A54: E1006601S725010020300150064900001 | B54: DE0002147250100001002030015000649 | C54: Gammertingen | D54: Baden-Württemberg | E54: 72501 | F54: Daimlerstr. 15 | G54: 12.83 | H54: Solar | I54: 2007-06-19 | N54: NS | O54: Nein | P54: Nicht regelbar | Q54: Nein | R54: SOT
A55: E1006601S725010030500050172100001 | B55: DE0002147250100001003050005001721 | C55: Gammertingen | D55: Baden-Württemberg | E55: 72501 | F55: Schillerstr. 5 | G55: 8.65 | H55: Solar | I55: 2007-06-20 | N55: NS | O55: Nein | P55: Nicht regelbar | Q55: Nein | R55: SOT
A56: E1006601S725010042900080389800001 | B56: DE0002147250100001004290008003898 | C56: Gammertingen | D56: Baden-Württemberg | E56: 72501 | F56: Heiligenbühlweg 8 | G56: 4.59 | H56: Solar | I56: 2007-07-12 | N56: NS | O56: Nein | P56: Nicht regelbar | Q56: Nein | R56: SOT
A57: E1006601S725010023000010000100001 | B57: DE0002147250100001002300001000001 | C57: Gammertingen | D57: Baden-Württemberg | E57: 72501 | F57: Herdleäcker 1 | G57: 29.64 | H57: Solar | I57: 2007-07-17 | N57: NS | O57: Nein | P57: Nicht regelbar | Q57: Nein | R57: SOT
A58: E1006601S725010040800060251400001 | B58: DE0002147250100001004080006002514 | C58: Gammertingen | D58: Baden-Württemberg | E58: 72501 | F58: Reutlinger Str. 6 | G58: 24.5 | H58: Solar | I58: 2007-09-29 | N58: NS | O58: Nein | P58: Nicht regelbar | Q58: Nein | R58: SOT
A59: E1006601S725010022600080345200002 | B59: DE0002147250100001002260008003452 | C59: Gammertingen | D59: Baden-Württemberg | E59: 72501 | F59: Äußere Lochern 8 | G59: 2.05 | H59: Solar | I59: 2007-10-02 | N59: NS | O59: Nein | P59: Nicht regelbar | Q59: Nein | R59: SOT
A60: E1006601S725010024300020416100001 | B60: DE0002147250100001002430002004161 | C60: Gammertingen | D60: Baden-Württemberg | E60: 72501 | F60: Leipziger Str. 2 | G60: 5.52 | H60: Solar | I60: 2007-10-12 | N60: NS | O60: Nein | P60: Nicht regelbar | Q60: Nein | R60: SOT
A61: E1006601S725010024000060151300001 | B61: DE0002147250100001002400006001513 | C61: Gammertingen | D61: Baden-Württemberg | E61: 72501 | F61: Papstdorfer Weg 6 | G61: 10.98 | H61: Solar | I61: 2007-10-12 | N61: NS | O61: Nein | P61: Nicht regelbar | Q61: Nein | R61: SOT
A62: E1006601S725010023100080400000001 | B62: DE0002147250100001002310008004000 | C62: Gammertingen | D62: Baden-Württemberg | E62: 72501 | F62: Burladinger Str. 8 | G62: 31.2 | H62: Solar | I62: 2007-11-12 | N62: NS | O62: Nein | P62: Nicht regelbar | Q62: Nein | R62: SOT
A63: E1006601S725010024600020000200001 | B63: DE0002147250100001002460002000002 | C63: Gammertingen | D63: Baden-Württemberg | E63: 72501 | F63: Maybachstr. 2 | G63: 38.5 | H63: Solar | I63: 2007-12-27 | N63: NS | O63: Nein | P63: regelbar nach § 9 Abs. 2 EEG 2014 | Q63: Nein | R63: SOT
A64: E1006601S725010020200090058500001 | B64: DE0002147250100001002020009000585 | C64: Gammertingen | D64: Baden-Württemberg | E64: 72501 | F64: Schelmengartenstr. 9 | G64: 7.98 | H64: Solar | I64: 2007-12-27 | N64: NS | O64: Nein | P64: Nicht regelbar | Q64: Nein | R64: SOT
A65: E1006601S725010021800050010400001 | B65: DE0002147250100001002180005001004 | C65: Gammertingen | D65: Baden-Württemberg | E65: 72501 | F65: Augstbergweg 5 | G65: 5.5 | H65: Solar | I65: 2008-04-22 | N65: NS | O65: Nein | P65: Nicht regelbar | Q65: Nein | R65: SOT
A66: E1006601S725010021200050000200001 | B66: DE0002147250100001002120005000002 | C66: Gammertingen | D66: Baden-Württemberg | E66: 72501 | F66: Achalmstr. 5 | G66: 7.36 | H66: Solar | I66: 2008-06-23 | N66: NS | O66: Nein | P66: Nicht regelbar | Q66: Nein | R66: SOT
A67: E1006601S725010020400030000200001 | B67: DE0002147250100001002040003000002 | C67: Gammertingen | D67: Baden-Württemberg | E67: 72501 | F67: Robert-Bosch-Str. 3 | G67: 62.422 | H67: Solar | I67: 2008-06-23 | N67: NS | O67: Nein | P67: regelbar nach § 9 Abs. 2 EEG 2014 | Q67: Nein | R67: SOT
A68: E1006601S725010030600090000900001 | B68: DE0002147250100001003060009000009 | C68: Gammertingen | D68: Baden-Württemberg | E68: 72501 | F68: Hölderlinstr. 9 | G68: 12.95 | H68: Solar | I68: 2008-07-28 | N68: NS | O68: Nein | P68: Nicht regelbar | Q68: Nein | R68: SOT
A69: E1006601S725010022100180108000001 | B69: DE0002147250100001002210018001080 | C69: Gammertingen | D69: Baden-Württemberg | E69: 72501 | F69: Teckstr. 18 | G69: 6.84 | H69: Solar | I69: 2008-08-06 | N69: NS | O69: Nein | P69: Nicht regelbar | Q69: Nein | R69: SOT
A70: E1006601S725010040300050244300001 | B70: DE0002147250100001004030005002443 | C70: Gammertingen | D70: Baden-Württemberg | E70: 72501 | F70: Fidelisweg 5 | G70: 7.7 | H70: Solar | I70: 2008-08-28 | N70: NS | O70: Nein | P70: Nicht regelbar | Q70: Nein | R70: SOT
A71: E1006601S725010023900050149600001 | B71: DE0002147250100001002390005001496 | C71: Gammertingen | D71: Baden-Württemberg | E71: 72501 | F71: Erfurter Str. 5 | G71: 8.6 | H71: Solar | I71: 2008-09-16 | N71: NS | O71: Nein | P71: Nicht regelbar | Q71: Nein | R71: SOT
A72: E1006601S725010021300100000100001 | B72: DE0002147250100001002130010000001 | C72: Gammertingen | D72: Baden-Württemberg | E72: 72501 | F72: Hochbergstr. 10 | G72: 9.8 | H72: Solar | I72: 2008-09-24 | N72: NS | O72: Nein | P72: Nicht regelbar | Q72: Nein | R72: SOT
A73: E1006601S725010031100040188200001 | B73: DE0002147250100001003110004001882 | C73: Gammertingen | D73: Baden-Württemberg | E73: 72501 | F73: Eichendorffstr. 4 | G73: 6.48 | H73: Solar | I73: 2008-10-22 | N73: NS | O73: Nein | P73: Nicht regelbar | Q73: Nein | R73: SOT
A74: E1006601S725010040900790278000001 | B74: DE0002147250100001004090079002780 | C74: Gammertingen | D74: Baden-Württemberg | E74: 72501 | F74: Sigmaringer Str. 79 | G74: 30.015 | H74: Solar | I74: 2008-12-04 | N74: NS | O74: Nein | P74: regelbar nach § 9 Abs. 2 EEG 2014 | Q74: Nein | R74: SOT
A75: E1006601S725010030500220176000001 | B75: DE0002147250100001003050022001760 | C75: Gammertingen | D75: Baden-Württemberg | E75: 72501 | F75: Schillerstr. 22 | G75: 7.56 | H75: Solar | I75: 2008-12-12 | N75: NS | O75: Nein | P75: Nicht regelbar | Q75: Nein | R75: SOT
A76: E1006601S725010024200080000300001 | B76: DE0002147250100001002420008000003 | C76: Gammertingen | D76: Baden-Württemberg | E76: 72501 | F76: Potsdamer Str. 8 | G76: 6.63 | H76: Solar | I76: 2008-12-22 | N76: NS | O76: Nein | P76: Nicht regelbar | Q76: Nein | R76: SOT
A77: E1006601S725010030600030176600001 | B77: DE0002147250100001003060003001766 | C77: Gammertingen | D77: Baden-Württemberg | E77: 72501 | F77: Hölderlinstr. 3 | G77: 7.02 | H77: Solar/Gebäude | I77: 2009-02-11 | N77: NS | O77: Nein | P77: Nicht regelbar | Q77: Nein | R77: SOT
A78: E1006601S725010041550070291700001 | B78: DE0002147250100001004155007002917 | C78: Gammertingen | D78: Baden-Württemberg | E78: 72501 | F78: Robert-Seifert-Str. 7 | G78: 12.42 | H78: Solar/Gebäude | I78: 2009-03-12 | N78: NS | O78: Nein | P78: Nicht regelbar | Q78: Nein | R78: SOT
A79: E1006601S725010041550350294900001 | B79: DE0002147250100001004155035002949 | C79: Gammertingen | D79: Baden-Württemberg | E79: 72501 | F79: Robert-Seifert-Str. 35 | G79: 10.58 | H79: Solar/Gebäude | I79: 2009-03-24 | N79: NS | O79: Nein | P79: Nicht regelbar | Q79: Nein | R79: SOT
A80: E1006601S725010020400050151200001 | B80: DE0002147250100001002400005001512 | C80: Gammertingen | D80: Baden-Württemberg | E80: 72501 | F80: Papstdorfer Weg 5 | G80: 8.8 | H80: Solar/Gebäude | I80: 2009-05-06 | N80: NS | O80: Nein | P80: Nicht regelbar | Q80: Nein | R80: SOT
A81: E1006601S725010031500110211100001 | B81: DE0002147250100001003150011002111 | C81: Gammertingen | D81: Baden-Württemberg | E81: 72501 | F81: Obere Bohlstr. 11 | G81: 6.3 | H81: Solar/Gebäude | I81: 2009-05-19 | N81: NS | O81: Nein | P81: Nicht regelbar | Q81: Nein | R81: SOT
A82: E1006601S725010023500280144900001 | B82: DE0002147250100001002350028001449 | C82: Gammertingen | D82: Baden-Württemberg | E82: 72501 | F82: Dresdener Str. 28 | G82: 10.4 | H82: Solar/Gebäude | I82: 2009-05-22 | N82: NS | O82: Nein | P82: Nicht regelbar | Q82: Nein | R82: SOT
A83: E1006601S725010042700170342900001 | B83: DE0002147250100001004270017003429 | C83: Gammertingen | D83: Baden-Württemberg | E83: 72501 | F83: Salierstr. 17 | G83: 7.35 | H83: Solar/Gebäude | I83: 2009-05-26 | N83: NS | O83: Nein | P83: Nicht regelbar | Q83: Nein | R83: SOT
A84: E1006601S725010042000050346400001 | B84: DE0002147250100001004200005003064 | C84: Gammertingen | D84: Baden-Württemberg | E84: 72501 | F84: Freiherrn-von-Speth-Str. 5 | G84: 6.38 | H84: Solar/Gebäude | I84: 2009-06-10 | N84: NS | O84: Nein | P84: Nicht regelbar | Q84: Nein | R84: SOT
A85: E1006601S725010030400070167100001 | B85: DE0002147250100001003040007001671 | C85: Gammertingen | D85: Baden-Württemberg | E85: 72501 | F85: Goethestr. 7 | G85: 5.75 | H85: Solar/Gebäude | I85: 2009-06-23 | N85: NS | O85: Nein | P85: Nicht regelbar | Q85: Nein | R85: SOT
A86: E1006601S725010041550040291300001 | B86: DE0002147250100001004155004002913 | C86: Gammertingen | D86: Baden-Württemberg | E86: 72501 | F86: Robert-Seifert-Str. 4 | G86: 8.46 | H86: Solar/Gebäude | I86: 2009-06-25 | N86: NS | O86: Nein | P86: Nicht regelbar | Q86: Nein | R86: SOT
A87: E1006601S725010022800170128600001 | B87: DE0002147250100001002280017001286 | C87: Gammertingen | D87: Baden-Württemberg | E87: 72501 | F87: Kohlhalde 17 | G87: 5.72 | H87: Solar/Gebäude | I87: 2009-06-29 | N87: NS | O87: Nein | P87: Nicht regelbar | Q87: Nein | R87: SOT
A88: E1006601S725010022900030129800001 | B88: DE0002147250100001002290003001298 | C88: Gammertingen | D88: Baden-Württemberg | E88: 72501 | F88: Danziger Str. 3 | G88: 4.68 | H88: Solar/Gebäude | I88: 2009-07-02 | N88: NS | O88: Nein | P88: Nicht regelbar | Q88: Nein | R88: SOT
A89: E1006601S725010022900030129700001 | B89: DE0002147250100001002290003001297 | C89: Gammertingen | D89: Baden-Württemberg | E89: 72501 | F89: Danziger Str. 3 | G89: 4.68 | H89: Solar/Gebäude | I89: 2009-07-02 | N89: NS | O89: Nein | P89: Nicht regelbar | Q89: Nein | R89: SOT
A90: E1006601S725010022700310125400001 | B90: DE0002147250100001002270031001254 | C90: Gammertingen | D90: Baden-Württemberg | E90: 72501 | F90: Breslauer Str. 31 | G90: 5.58 | H90: Solar/Gebäude | I90: 2009-07-22 | N90: NS | O90: Nein | P90: Nicht regelbar | Q90: Nein | R90: SOT
A91: E1006601S725010031100040188300001 | B91: DE0002147250100001003110004001883 | C91: Gammertingen | D91: Baden-Württemberg | E91: 72501 | F91: Eichendorffstr. 4 | G91: 4.68 | H91: Solar/Gebäude | I91: 2009-08-05 | N91: NS | O91: Nein | P91: Nicht regelbar | Q91: Nein | R91: SOT
A92: E1006601S725010021200030087200001 | B92: DE0002147250100001002120003000872 | C92: Gammertingen | D92: Baden-Württemberg | E92: 72501 | F92: Achalmstr. 3 | G92: 10.56 | H92: Solar/Gebäude | I92: 2009-09-21 | N92: NS | O92: Nein | P92: Nicht regelbar | Q92: Nein | R92: SOT
A93: E1006601S725010041400050289000001 | B93: DE0002147250100001004140005002890 | C93: Gammertingen | D93: Baden-Württemberg | E93: 72501 | F93: Zeppelinstr. 5 | G93: 13.88 | H93: Solar/Gebäude | I93: 2009-10-06 | N93: NS | O93: Nein | P93: Nicht regelbar | Q93: Nein | R93: SOT
A94: E1006601S725010041600060296800001 | B94: DE0002147250100001004160006002968 | C94: Gammertingen | D94: Baden-Württemberg | E94: 72501 | F94: Gartenstr. 6 | G94: 10.66 | H94: Solar/Gebäude | I94: 2009-10-29 | N94: NS | O94: Nein | P94: Nicht regelbar | Q94: Nein | R94: SOT
A95: E1006601S725010041600040298200001 | B95: DE0002147250100001004160004002982 | C95: Gammertingen | D95: Baden-Württemberg | E95: 72501 | F95: Gartenstr. 4 | G95: 29.725 | H95: Solar/Gebäude | I95: 2009-10-29 | N95: NS | O95: Nein | P95: Nicht regelbar | Q95: Nein | R95: SOT
A96: E1006601S725010022400060111700001 | B96: DE0002147250100001002240006001117 | C96: Gammertingen | D96: Baden-Württemberg | E96: 72501 | F96: Fehlatalstr. 41 | G96: 19.98 | H96: Solar/Gebäude | I96: 2009-11-18 | N96: NS | O96: Nein | P96: Nicht regelbar | Q96: Nein | R96: SOT
A97: E1006601S725010040900420000700001 | B97: DE0002147250100001004090042000007 | C97: Gammertingen | D97: Baden-Württemberg | E97: 72501 | F97: Sigmaringer Str. 42 | G97: 59.68 | H97: Solar/Gebäude | I97: 2009-12-04 | N97: NS | O97: Nein | P97: regelbar nach § 9 Abs. 2 EEG 2014 | Q97: Nein | R97: SOT
A98: E1006601S725010020300100064200001 | B98: DE0002147250100001002030010000642 | C98: Gammertingen | D98: Baden-Württemberg | E98: 72501 | F98: Daimlerstr. 10 | G98: 8.28 | H98: Solar/Gebäude | I98: 2009-12-10 | N98: NS | O98: Nein | P98: Nicht regelbar | Q98: Nein | R98: SOT
A99: E1006601S725010030800060184200001 | B99: DE0002147250100001003080006001842 | C99: Gammertingen | D99: Baden-Württemberg | E99: 72501 | F99: Uhlandstr. 6 | G99: 6.3 | H99: Solar/Gebäude | I99: 2009-12-21 | N99: NS | O99: Nein | P99: Nicht regelbar | Q99: Nein | R99: SOT
A100: E1006601S725010023600210146900001 | B100: DE0002147250100001002360021001469 | C100: Gammertingen | D100: Baden-Württemberg | E100: 72501 | F100: Schweriner Str. 21 | G100: 15.4 | H100: Solar/Gebäude | I100: 2009-12-30 | N100: NS | O100: Nein | P100: Nicht regelbar | Q100: Nein | R100: SOT
A101: E1006601S725010030500010171400001 | B101: DE0002147250100001003050001001714 | C101: Gammertingen | D101: Baden-Württemberg | E101: 72501 | F101: Schillerstr. 1/1 | G101: 6.3 | H101: Solar/Gebäude | I101: 2009-12-30 | N101: NS | O101: Nein | P101: Nicht regelbar | Q101: Nein | R101: SOT
A102: E1006601S725010040900440272500001 | B102: DE0002147250100001004090044002725 | C102: Gammertingen | D102: Baden-Württemberg | E102: 72501 | F102: Sigmaringer Str. 44 | G102: 80.33 | H102: Solar/Gebäude | I102: 2009-12-30 | N102: NS | O102: Nein | P102: regelbar nach § 9 Abs. 2 EEG 2014 | Q102: Nein | R102: SOT
A103: E1006601S725010030500010171500001 | B103: DE0002147250100001003050001001715 | C103: Gammertingen | D103: Baden-Württemberg | E103: 72501 | F103: Schillerstr. 1/1 | G103: 6.3 | H103: Solar/Gebäude | I103: 2009-12-31 | N103: NS | O103: Nein | P103: Nicht regelbar | Q103: Nein | R103: SOT
A104: E1006601S725010023100140403100001 | B104: DE0002147250100001002310014004031 | C104: Gammertingen | D104: Baden-Württemberg | E104: 72501 | F104: Burladinger Str. 14 | G104: 29.93 | H104: Solar/Gebäude | I104: 2010-03-16 | N104: NS | O104: Nein | P104: Nicht regelbar | Q104: Nein | R104: SOT
A105: E1006601S725010022300070110200001 | B105: DE0002147250100001002230007001102 | C105: Gammertingen | D105: Baden-Württemberg | E105: 72501 | F105: Raichbergweg 7 | G105: 16.577 | H105: Solar/Gebäude | I105: 2010-04-09 | N105: NS | O105: Nein | P105: Nicht regelbar | Q105: Nein | R105: SOT
A106: E1006601S725010022700240358500001 | B106: DE0002147250100001002270024003585 | C106: Gammertingen | D106: Baden-Württemberg | E106: 72501 | F106: Salierstr. 24 | G106: 9.45 | H106: Solar/Gebäude | I106: 2010-04-14 | N106: NS | O106: Nein | P106: Nicht regelbar | Q106: Nein | R106: SOT
A107: E1006601S725010023100090405700001 | B107: DE0002147250100001002310009004057 | C107: Gammertingen | D107: Baden-Württemberg | E107: 72501 | F107: Burladinger Str. 9 | G107: 12.825 | H107: Solar/Gebäude | I107: 2010-04-22 | N107: NS | O107: Nein | P107: Nicht regelbar | Q107: Nein | R107: SOT
A108: E1006601S725010042900080389900001 | B108: DE0002147250100001004290008003899 | C108: Gammertingen | D108: Baden-Württemberg | E108: 72501 | F108: Heiligenbühlweg 8 | G108: 4.48 | H108: Solar/Gebäude | I108: 2010-04-29 | N108: NS | O108: Nein | P108: Nicht regelbar | Q108: Nein | R108: SOT
A109: E1006601S725010040900790278100001 | B109: DE0002147250100001004090079002781 | C109: Gammertingen | D109: Baden-Württemberg | E109: 72501 | F109: Sigmaringer Str. 79a | G109: 10.56 | H109: Solar/Gebäude | I109: 2010-05-21 | N109: NS | O109: Nein | P109: Nicht regelbar | Q109: Nein | R109: SOT
A110: E1006601S725010031600100215500001 | B110: DE0002147250100001003160010002155 | C110: Gammertingen | D110: Baden-Württemberg | E110: 72501 | F110: Mozartstr. 10 | G110: 9.25 | H110: Solar/Gebäude | I110: 2010-05-21 | N110: NS | O110: Nein | P110: Nicht regelbar | Q110: Nein | R110: SOT
A111: E1006601S725010041550450295600001 | B111: DE0002147250100001004155045002956 | C111: Gammertingen | D111: Baden-Württemberg | E111: 72501 | F111: Robert-Seifert-Str. 45 | G111: 9.43 | H111: Solar/Gebäude | I111: 2010-06-01 | N111: NS | O111: Nein | P111: Nicht regelbar | Q111: Nein | R111: SOT
A112: E1006601S725010031550090197300001 | B112: DE0002147250100001003115009001973 | C112: Gammertingen | D112: Baden-Württemberg | E112: 72501 | F112: Hauffstr. 9 | G112: 13.5 | H112: Solar/Gebäude | I112: 2010-06-01 | N112: NS | O112: Nein | P112: Nicht regelbar | Q112: Nein | R112: SOT
A113: E1006601S725010041200040282000001 | B113: DE0002147250100001004120004002820 | C113: Gammertingen | D113: Baden-Württemberg | E113: 72501 | F113: Alemannenweg 4 | G113: 28.28 | H113: Solar/Gebäude | I113: 2010-06-01 | N113: NS | O113: Nein | P113: Nicht regelbar | Q113: Nein | R113: SOT
A114: E1006601S725010020300150065000001 | B114: DE0002147250100001002030015000650 | C114: Gammertingen | D114: Baden-Württemberg | E114: 72501 | F114: Daimlerstr. 15 | G114: 19.43 | H114: Solar/Gebäude | I114: 2010-06-01 | N114: NS | O114: Nein | P114: Nicht regelbar | Q114: Nein | R114: SOT
A115: E1006601S725010020300150065100001 | B115: DE0002147250100001002030015000651 | C115: Gammertingen | D115: Baden-Württemberg | E115: 72501 | F115: Daimlerstr. 15 | G115: 8.75 | H115: Solar/Gebäude | I115: 2010-06-01 | N115: NS | O115: Nein | P115: Nicht regelbar | Q115: Nein | R115: SOT
A116: E1006601S725010020800130076900001 | B116: DE0002147250100001002080013000769 | C116: Gammertingen | D116: Baden-Württemberg | E116: 72501 | F116: Eschenweg 13 | G116: 27.2 | H116: Solar/Gebäude | I116: 2010-06-18 | N116: NS | O116: Nein | P116: Nicht regelbar | Q116: Nein | R116: SOT
A117: E1006601S725010040200060000100001 | B117: DE0002147250100001004020006000001 | C117: Gammertingen | D117: Baden-Württemberg | E117: 72501 | F117: Marktstr. 6 | G117: 12.15 | H117: Solar/Gebäude | I117: 2010-06-22 | N117: NS | O117: Nein | P117: Nicht regelbar | Q117: Nein | R117: SOT
A118: E1006601S725010023700030147700001 | B118: DE0002147250100001002370003001477 | C118: Gammertingen | D118: Baden-Württemberg | E118: 72501 | F118: Rostocker Str. 3 | G118: 10.08 | H118: Solar/Gebäude | I118: 2010-06-25 | N118: NS | O118: Nein | P118: Nicht regelbar | Q118: Nein | R118: SOT
A119: E1006601S725010020200150059000001 | B119: DE0002147250100001002020015000590 | C119: Gammertingen | D119: Baden-Württemberg | E119: 72501 | F119: Schelmengartenstr. 15 | G119: 6.12 | H119: Solar/Gebäude | I119: 2010-06-29 | N119: NS | O119: Nein | P119: Nicht regelbar | Q119: Nein | R119: SOT
A120: E1006601S725010041550190293300001 | B120: DE0002147250100001004155019002933 | C120: Gammertingen | D120: Baden-Württemberg | E120: 72501 | F120: Robert-Seifert-Str. 19 | G120: 9.24 | H120: Solar/Gebäude | I120: 2010-06-29 | N120: NS | O120: Nein | P120: Nicht regelbar | Q120: Nein | R120: SOT
A121: E1006601S725010041600040298300001 | B121: DE0002147250100001004160004002983 | C121: Gammertingen | D121: Baden-Württemberg | E121: 72501 | F121: Gartenstr. 4 | G121: 9.84 | H121: Solar/Gebäude | I121: 2010-06-30 | N121: NS | O121: Nein | P121: Nicht regelbar | Q121: Nein | R121: SOT
A122: E1006601S725010023500140143000001 | B122: DE0002147250100001002350014001430 | C122: Gammertingen | D122: Baden-Württemberg | E122: 72501 | F122: Dresdener Str. 14 | G122: 12.6 | H122: Solar/Gebäude | I122: 2010-06-30 | N122: NS | O122: Nein | P122: Nicht regelbar | Q122: Nein | R122: SOT
A123: E1006601S725010023100220000100001 | B123: DE0002147250100001002310022000001 | C123: Gammertingen | D123: Baden-Württemberg | E123: 72501 | F123: Burladinger Str. 22 | G123: 125.58 | H123: Solar/Gebäude | I123: 2010-06-30 | N123: NS | O123: Nein | P123: regelbar nach § 6 Abs. 1 EEG 2012 | Q123: Ja | R123: SOL
A124: E1006601S725010020350020000200001 | B124: DE0002147250100001002035002000002 | C124: Gammertingen | D124: Baden-Württemberg | E124: 72501 | F124: Mittelberg 2 | G124: 104.5 | H124: Solar/Gebäude | I124: 2010-06-30 | N124: NS | O124: Nein | P124: regelbar nach § 6 Abs. 1 EEG 2012 | Q124: Ja | R124: SOL
A125: E1006601S725010020350100065300001 | B125: DE0002147250100001002035002000653 | C125: Gammertingen | D125: Baden-Württemberg | E125: 72501 | F125: Mittelberg 10 | G125: 58.3 | H125: Solar/Gebäude | I125: 2010-06-30 | N125: NS | O125: Nein | P125: regelbar nach § 9 Abs. 2 EEG 2014 | Q125: Ja | R125: SOL
A126: E1006601S725010042500100317400001 | B126: DE0002147250100001004250010003174 | C126: Gammertingen | D126: Baden-Württemberg | E126: 72501 | F126: Gräfin-Adelheid-Str. 10 | G126: 10.915 | H126: Solar/Gebäude | I126: 2010-06-30 | N126: NS | O126: Nein | P126: Nicht regelbar | Q126: Nein | R126: SOT
A127: E1006601S725010021100030085200001 | B127: DE0002147250100001002110003000852 | C127: Gammertingen | D127: Baden-Württemberg | E127: 72501 | F127: Buchenweg 3 | G127: 9 | H127: Solar/Gebäude | I127: 2010-08-25 | N127: NS | O127: Nein | P127: Nicht regelbar | Q127: Nein | R127: SOT
A128: E1006601S725010031600060215000001 | B128: DE0002147250100001003160006002150 | C128: Gammertingen | D128: Baden-Württemberg | E128: 72501 | F128: Mozartstr. 6 | G128: 9.625 | H128: Solar/Gebäude | I128: 2010-09-01 | N128: NS | O128: Nein | P128: Nicht regelbar | Q128: Nein | R128: SOT
A129: E1006601S725010041550140292700001 | B129: DE8002147250100001004155014002927 | C129: Gammertingen | D129: Baden-Württemberg | E129: 72501 | F129: Robert-Seifert-Str. 14 | G129: 13.735 | H129: Solar/Gebäude | I129: 2010-09-23 | N129: NS | O129: Nein | P129: Nicht regelbar | Q129: Nein | R129: SOT
A130: E1006601S725010024000060151400001 | B130: DE8002147250100001002400006001514 | C130: Gammertingen | D130: Baden-Württemberg | E130: 72501 | F130: Papstdorfer Weg 6 | G130: 6.84 | H130: Solar/Gebäude | I130: 2010-09-30 | N130: NS | O130: Nein | P130: Nicht regelbar | Q130: Nein | R130: SOT
A131: E1006601S725010010100080000100001 | B131: DE8002147250100001001010008000001 | C131: Gammertingen | D131: Baden-Württemberg | E131: 72501 | F131: Alte Steige 8 | G131: 4.14 | H131: Solar/Gebäude | I131: 2010-09-30 | N131: NS | O131: Nein | P131: Nicht regelbar | Q131: Nein | R131: SOT
A132: E1006601S725010030300210163900001 | B132: DE8002147250100001003030021001639 | C132: Gammertingen | D132: Baden-Württemberg | E132: 72501 | F132: Untere Bohlstr. 21 | G132: 9.72 | H132: Solar/Gebäude | I132: 2010-09-30 | N132: NS | O132: Nein | P132: Nicht regelbar | Q132: Nein | R132: SOT
A133: E1006601S725010030400080167200001 | B133: DE8002147250100001003040008001672 | C133: Gammertingen | D133: Baden-Württemberg | E133: 72501 | F133: Goethestr. 8 | G133: 8.05 | H133: Solar/Gebäude | I133: 2010-10-27 | N133: NS | O133: Nein | P133: Nicht regelbar | Q133: Nein | R133: SOT
A134: E1006601S725010022200080109300001 | B134: DE8002147250100001002220008001093 | C134: Gammertingen | D134: Baden-Württemberg | E134: 72501 | F134: Steinbeissstr. 8 | G134: 10.34 | H134: Solar/Gebäude | I134: 2010-12-15 | N134: NS | O134: Nein | P134: Nicht regelbar | Q134: Nein | R134: SOT
A135: E1006601S725010031100250191100001 | B135: DE8002147250100001003110025001911 | C135: Gammertingen | D135: Baden-Württemberg | E135: 72501 | F135: Eichendorffstr. 25 | G135: 5.7 | H135: Solar/Gebäude | I135: 2010-12-15 | N135: NS | O135: Nein | P135: Nicht regelbar | Q135: Nein | R135: SOT
A136: E1006601S725010041700160300700001 | B136: DE8002147250100001004170016003007 | C136: Gammertingen | D136: Baden-Württemberg | E136: 72501 | F136: Bubenhofenstr. 16 | G136: 3.36 | H136: Solar/Gebäude | I136: 2010-12-22 | N136: NS | O136: Nein | P136: Nicht regelbar | Q136: Nein | R136: SOT
A137: E1006601S725010040600020250000001 | B137: DE8002147250100001004060002002500 | C137: Gammertingen | D137: Baden-Württemberg | E137: 72501 | F137: Mühlburren 2 | G137: 91.93 | H137: Solar/Gebäude | I137: 2010-12-31 | N137: NS | O137: Nein | P137: regelbar nach § 9 Abs. 2 EEG 2014 | Q137: Ja | R137: SOL
A138: E1006601S725010022000070104000001 | B138: DE8002147250100001002200007001040 | C138: Gammertingen | D138: Baden-Württemberg | E138: 72501 | F138: Neufraer Str. 7 | G138: 6.58 | H138: Solar/Gebäude | I138: 2010-12-31 | N138: NS | O138: Ja (keine Belieferung Dritter) | P138: Nicht regelbar | Q138: Nein | R138: SOT
A139: E1006601S725010023100220000300001 | B139: DE8002147250100001002310022000003 | C139: Gammertingen | D139: Baden-Württemberg | E139: 72501 | F139: Burladinger Str. 22 | G139: 491.92 | H139: Solar/Gebäude | I139: 2010-12-31 | N139: NS | O139: Nein | P139: regelbar nach § 6 Abs. 1 EEG 2012 | Q139: Ja | R139: SOL
A140: E1006601S725010042000110307200001 | B140: DE8002147250100001004200011003072 | C140: Gammertingen | D140: Baden-Württemberg | E140: 72501 | F140: Freiherrn-von-Speth-Str. 11 | G140: 8.58 | H140: Solar/Gebäude | I140: 2011-03-30 | N140: NS | O140: Nein | P140: Nicht regelbar | Q140: Nein | R140: SOT
A141: E1006601S725010022600290118700001 | B141: DE8002147250100001002260029001187 | C141: Gammertingen | D141: Baden-Württemberg | E141: 72501 | F141: Äußere Lochern 29 | G141: 5.04 | H141: Solar/Gebäude | I141: 2011-05-27 | N141: NS | O141: Ja (keine Belieferung Dritter) | P141: Nicht regelbar | Q141: Nein | R141: SOT
A142: E1006601S725010022200070000200001 | B142: DE8002147250100001002220007000002 | C142: Gammertingen | D142: Baden-Württemberg | E142: 72501 | F142: Steinbeisstr. 7 | G142: 83.43 | H142: Solar/Gebäude | I142: 2011-06-06 | N142: MS | O142: Nein | P142: regelbar nach § 9 Abs. 2 EEG 2014 | Q142: Ja | R142: SOL
A143: E1006001S725010021800030363100001 | B143: DE8002147250100001002180003003631 | C143: Gammertingen | D143: Baden-Württemberg | E143: 72501 | F143: Augstbergweg 3 | G143: 2.52 | H143: Solar/Gebäude | I143: 2011-06-24 | N143: NS | O143: Nein | P143: Nicht regelbar | Q143: Nein | R143: SOT
A144: E1006601S725010023100060000200001 | B144: DE8002147250100001002310006000002 | C144: Gammertingen | D144: Baden-Württemberg | E144: 72501 | F144: Burladinger Str. 6 | G144: 30.36 | H144: Solar/Gebäude | I144: 2011-06-29 | N144: NS | O144: Nein | P144: regelbar nach § 9 Abs. 2 EEG 2014 | Q144: Nein | R144: SOT
A145: E1006601S725010041500070290100001 | B145: DE8002147250100001004150007002901 | C145: Gammertingen | D145: Baden-Württemberg | E145: 72501 | F145: Wendelsteinweg 7 | G145: 12.985 | H145: Solar/Gebäude | I145: 2011-07-05 | N145: NS | O145: Nein | P145: Nicht regelbar | Q145: Nein | R145: SOT
A146: E1006601S725010040900790278200001 | B146: DE8002147250100001004090079002782 | C146: Gammertingen | D146: Baden-Württemberg | E146: 72501 | F146: Sigmaringer Str. 79 | G146: 29 | H146: Solar/Gebäude | I146: 2011-07-05 | N146: NS | O146: Nein | P146: Nicht regelbar | Q146: Nein | R146: SOT
A147: E1006001S725010023700050000100001 | B147: DE8002147250100001002370005000001 | C147: Gammertingen | D147: Baden-Württemberg | E147: 72501 | F147: Rostocker Str. 5 | G147: 11.96 | H147: Solar/Gebäude | I147: 2011-07-05 | N147: NS | O147: Nein | P147: Nicht regelbar | Q147: Nein | R147: SOT
A148: E1006601S725010041600020296200001 | B148: DE8002147250100001004160002002962 | C148: Gammertingen | D148: Baden-Württemberg | E148: 72501 | F148: Gartenstr. 2/2 | G148: 28.2 | H148: Solar/Gebäude | I148: 2011-07-27 | N148: NS | O148: Nein | P148: Nicht regelbar | Q148: Nein | R148: SOT
A149: E1006601S725010041550050291400001 | B149: DE8002147250100001004155005002914 | C149: Gammertingen | D149: Baden-Württemberg | E149: 72501 | F149: Robert-Seifert-Str. 5 | G149: 13.475 | H149: Solar/Gebäude | I149: 2011-08-22 | N149: NS | O149: Nein | P149: Nicht regelbar | Q149: Nein | R149: SOT
A150: E1006601S725010021800080100600001 | B150: DE8002147250100001002180008001006 | C150: Gammertingen | D150: Baden-Württemberg | E150: 72501 | F150: Augstbergweg 8 | G150: 8.19 | H150: Solar/Gebäude | I150: 2011-08-30 | N150: NS | O150: Nein | P150: Nicht regelbar | Q150: Nein | R150: SOT
A151: E1006601S725010022400110111500001 | B151: DE8002147250100001002240011001115 | C151: Gammertingen | D151: Baden-Württemberg | E151: 72501 | F151: Fehlatalstr. 11 | G151: 17.64 | H151: Solar/Gebäude | I151: 2011-08-30 | N151: NS | O151: Nein | P151: Nicht regelbar | Q151: Nein | R151: SOT
A152: E1006001S725010020900150082800001 | B152: DE8002147250100001002090015000828 | C152: Gammertingen | D152: Baden-Württemberg | E152: 72501 | F152: Fichtenweg 15 | G152: 22.94 | H152: Solar/Gebäude | I152: 2011-09-12 | N152: NS | O152: Nein | P152: Nicht regelbar | Q152: Nein | R152: SOT
A153: E1006001S725010022700070120500001 | B153: DE8002147250100001002270007001205 | C153: Gammertingen | D153: Baden-Württemberg | E153: 72501 | F153: Breslauer Straße 7 | G153: 9.24 | H153: Solar/Gebäude | I153: 2011-09-28 | N153: NS | O153: Nein | P153: Nicht regelbar | Q153: Nein | R153: SOT
A154: E1006001S725010030500030171800001 | B154: DE8002147250100001003050003001718 | C154: Gammertingen | D154: Baden-Württemberg | E154: 72501 | F154: Schillerstraße 3 | G154: 7.25 | H154: Solar/Gebäude | I154: 2011-10-11 | N154: NS | O154: Nein | P154: Nicht regelbar | Q154: Nein | R154: SOT
A155: E1006001S725010042700120319600001 | B155: DE8002147250100001004270012003196 | C155: Gammertingen | D155: Baden-Württemberg | E155: 72501 | F155: Salierstr. 12 | G155: 10.92 | H155: Solar/Gebäude | I155: 2011-10-19 | N155: NS | O155: Nein | P155: Nicht regelbar | Q155: Nein | R155: SOT
A156: E1006001S725010024200060000200001 | B156: DE8002147250100001002420006000002 | C156: Gammertingen | D156: Baden-Württemberg | E156: 72501 | F156: Potsdamer Str. 6 | G156: 8.575 | H156: Solar/Gebäude | I156: 2011-11-18 | N156: NS | O156: Nein | P156: Nicht regelbar | Q156: Nein | R156: SOT
A157: E1006001S725010011300060051900001 | B157: DE8002147250100001001130006000519 | C157: Gammertingen | D157: Baden-Württemberg | E157: 72501 | F157: Schwedengasse 6 | G157: 18.845 | H157: Solar/Gebäude | I157: 2011-12-05 | N157: NS | O157: Nein | P157: Nicht regelbar | Q157: Nein | R157: SOT
A158: E1006001S725010020800080076100001 | B158: DE8002147250100001002080008000761 | C158: Gammertingen | D158: Baden-Württemberg | E158: 72501 | F158: Eschenweg 8 | G158: 14.44 | H158: Solar/Gebäude | I158: 2011-12-06 | N158: NS | O158: Nein | P158: Nicht regelbar | Q158: Nein | R158: SOT
A159: E1006001S725010022100190108200001 | B159: DE0002147250100001002210019001082 | C159: Gammertingen | D159: Baden-Württemberg | E159: 72501 | F159: Teckstr. 19 | G159: 5.88 | H159: Solar/Gebäude | I159: 2011-12-12 | N159: NS | O159: Ja (keine Belieferung Dritter) | P159: Nicht regelbar | Q159: Nein | R159: SOT
A160: E1006001S725010020800250079200001 | B160: DE8002147250100001002080025000792 | C160: Gammertingen | D160: Baden-Württemberg | E160: 72501 | F160: Eschenweg 25 | G160: 7.98 | H160: Solar/Gebäude | I160: 2011-12-19 | N160: NS | O160: Nein | P160: Nicht regelbar | Q160: Nein | R160: SOT
A161: E1006001S725010021000130084900001 | B161: DE8002147250100001002100013000849 | C161: Gammertingen | D161: Baden-Württemberg | E161: 72501 | F161: Birkenweg 13 | G161: 14.28 | H161: Solar/Gebäude | I161: 2011-12-20 | N161: NS | O161: Nein | P161: Nicht regelbar | Q161: Nein | R161: SOT
A162: E1006001S725010023100050135800001 | B162: DE0002147250100001002310005001358 | C162: Gammertingen | D162: Baden-Württemberg | E162: 72501 | F162: Burladinger Str. 5 | G162: 29.8 | H162: Solar/Gebäude | I162: 2011-12-29 | N162: NS | O162: Nein | P162: Nicht regelbar | Q162: Nein | R162: SOT
A163: E1006001S725010031000010186300001 | B163: DE0002147250100001003100001001863 | C163: Gammertingen | D163: Baden-Württemberg | E163: 72501 | F163: Rilkeweg 1 | G163: 4.875 | H163: Solar/Gebäude | I163: 2011-12-29 | N163: NS | O163: Nein | P163: Nicht regelbar | Q163: Nein | R163: SOT
A164: E1006001S725010022900020366400001 | B164: DE0002147250100001002290002003664 | C164: Gammertingen | D164: Baden-Württemberg | E164: 72501 | F164: Danziger Str. 2 | G164: 17 | H164: Solar/Gebäude | I164: 2011-12-29 | N164: NS | O164: Nein | P164: Nicht regelbar | Q164: Nein | R164: SOT
A165: E1006001S725010022900060130300001 | B165: DE0002147250100001002290006001303 | C165: Gammertingen | D165: Baden-Württemberg | E165: 72501 | F165: Danziger Str. 6 | G165: 29.4 | H165: Solar/Gebäude | I165: 2011-12-30 | N165: NS | O165: Nein | P165: Nicht regelbar | Q165: Nein | R165: SOT
A166: E1006001S725010041700040299200001 | B166: DE0002147250100001004170004002992 | C166: Gammertingen | D166: Baden-Württemberg | E166: 72501 | F166: Bubenhofenstr. 4/1 | G166: 8.19 | H166: Solar/Gebäude | I166: 2011-12-31 | N166: NS | O166: Nein | P166: Nicht regelbar | Q166: Nein | R166: SOT
A167: E1006001S725010042000120000500001 | B167: DE0002147250100001004200012000005 | C167: Gammertingen | D167: Baden-Württemberg | E167: 72501 | F167: Freiherrn-von-Speth-Str. 12 | G167: 9.4 | H167: Solar/Gebäude | I167: 2012-03-27 | N167: NS | O167: Ja (keine Belieferung Dritter) | P167: regelbar nach § 6 Abs. 2 EEG 2012 | Q167: Nein | R167: SOT
A168: E1006001S725010042900070417700001 | B168: DE0002147250100001004290007004177 | C168: Gammertingen | D168: Baden-Württemberg | E168: 72501 | F168: Heiligenbühlweg 7 | G168: 7.82 | H168: Solar/Gebäude | I168: 2012-03-29 | N168: NS | O168: Nein | P168: regelbar nach § 6 Abs. 2 EEG 2012 | Q168: Nein | R168: SOT
A169: E1006001S725010021200090088700001 | B169: DE0002147250100001002120009000887 | C169: Gammertingen | D169: Baden-Württemberg | E169: 72501 | F169: Achalmstr. 9 | G169: 5.28 | H169: Solar/Gebäude | I169: 2012-03-30 | N169: NS | O169: Ja (keine Belieferung Dritter) | P169: regelbar nach § 6 Abs. 2 EEG 2012 | Q169: Nein | R169: SOT
A170: E1006001S725010031400040202900001 | B170: DE0002147250100001003140004002029 | C170: Gammertingen | D170: Baden-Württemberg | E170: 72501 | F170: Bohlhalde 4 | G170: 10.535 | H170: Solar/Gebäude | I170: 2012-03-30 | N170: NS | O170: Ja (keine Belieferung Dritter) | P170: regelbar nach § 6 Abs. 2 EEG 2012 | Q170: Nein | R170: SOT
A171: E1006001S725010042700210000300001 | B171: DE0002147250100001004270021000003 | C171: Gammertingen | D171: Baden-Württemberg | E171: 72501 | F171: Salierstr. 21 | G171: 12.495 | H171: Solar/Gebäude | I171: 2012-03-30 | N171: NS | O171: Ja (keine Belieferung Dritter) | P171: regelbar nach § 6 Abs. 2 EEG 2012 | Q171: Nein | R171: SOT
A172: E1006001S725010023800070149100001 | B172: DE0002147250100001002380007001491 | C172: Gammertingen | D172: Baden-Württemberg | E172: 72501 | F172: Jenaer Str. 7 | G172: 9.25 | H172: Solar/Gebäude | I172: 2012-03-31 | N172: NS | O172: Ja (keine Belieferung Dritter) | P172: regelbar nach § 6 Abs. 2 EEG 2012 | Q172: Nein | R172: SOT
A173: E1006001S725010042100200312600001 | B173: DE0002147250100001004210020003126 | C173: Gammertingen | D173: Baden-Württemberg | E173: 72501 | F173: Mauren 20 | G173: 8.4 | H173: Solar/Gebäude | I173: 2012-05-22 | N173: NS | O173: Ja (keine Belieferung Dritter) | P173: regelbar nach § 6 Abs. 2 EEG 2012 | Q173: Nein | R173: SOT
A174: E1006001S725010042200060314100001 | B174: DE0002147250100001004220006003141 | C174: Gammertingen | D174: Baden-Württemberg | E174: 72501 | F174: Constantin-Hanner-Str. 6 | G174: 4.935 | H174: Solar/Gebäude | I174: 2012-05-29 | N174: NS | O174: Ja (keine Belieferung Dritter) | P174: regelbar nach § 6 Abs. 2 EEG 2012 | Q174: Nein | R174: SOT
A175: E1006001S725010022100220000200001 | B175: DE0002147250100001002210022000002 | C175: Gammertingen | D175: Baden-Württemberg | E175: 72501 | F175: Teckstr. 22 | G175: 7.14 | H175: Solar/Gebäude | I175: 2012-06-29 | N175: NS | O175: Ja (keine Belieferung Dritter) | P175: regelbar nach § 6 Abs. 2 EEG 2012 | Q175: Nein | R175: SOT
A176: E1006001S725010023500240144600001 | B176: DE0002147250100001002350024001446 | C176: Gammertingen | D176: Baden-Württemberg | E176: 72501 | F176: Dresdener Str. 24 | G176: 11.04 | H176: Solar/Gebäude | I176: 2012-07-07 | N176: NS | O176: Ja (keine Belieferung Dritter) | P176: regelbar nach § 6 Abs. 2 EEG 2012 | Q176: Nein | R176: SOT
A177: E1006001S725010020400040065800001 | B177: DE0002147250100001002040004000658 | C177: Gammertingen | D177: Baden-Württemberg | E177: 72501 | F177: Robert-Bosch-Str. 4 | G177: 9.87 | H177: Solar/Gebäude | I177: 2012-07-12 | N177: NS | O177: Ja (keine Belieferung Dritter) | P177: regelbar nach § 6 Abs. 2 EEG 2012 | Q177: Nein | R177: SOT
A178: E1006001S725010022700190122600001 | B178: DE0002147250100001002270019001226 | C178: Gammertingen | D178: Baden-Württemberg | E178: 72501 | F178: Breslauer Str. 19 | G178: 3.36 | H178: Solar/Gebäude | I178: 2012-07-27 | N178: NS | O178: Ja (keine Belieferung Dritter) | P178: 70%-Begrenzung | Q178: Nein | R178: SOT
A179: E1006001S725010023600110410000001 | B179: DE0002147250100001002360011004100 | C179: Gammertingen | D179: Baden-Württemberg | E179: 72501 | F179: Schweriner Str. 11 | G179: 3.975 | H179: Solar/Gebäude | I179: 2012-08-16 | N179: NS | O179: Ja (keine Belieferung Dritter) | P179: regelbar nach § 6 Abs. 2 EEG 2012 | Q179: Nein | R179: SOT
A180: E1006001S725010020600130072200001 | B180: DE0002147250100001002060013000722 | C180: Gammertingen | D180: Baden-Württemberg | E180: 72501 | F180: Tannenweg 13 | G180: 9.555 | H180: Solar/Gebäude | I180: 2012-10-18 | N180: NS | O180: Ja (keine Belieferung Dritter) | P180: regelbar nach § 6 Abs. 2 EEG 2012 | Q180: Nein | R180: SOT
A181: E1006001S725010021300320093100001 | B181: DE0002147250100001002130032000931 | C181: Gammertingen | D181: Baden-Württemberg | E181: 72501 | F181: Hochbergstr. 32 | G181: 32.18 | H181: Solar/Gebäude | I181: 2012-10-24 | N181: NS | O181: Ja (keine Belieferung Dritter) | P181: regelbar nach § 6 Abs. 2 EEG 2012 | Q181: Nein | R181: SOT
A182: E1006001S725010042200010313800001 | B182: DE0002147250100001004220001003136 | C182: Gammertingen | D182: Baden-Württemberg | E182: 72501 | F182: Constantin-Hanner-Str. 1 | G182: 9.8 | H182: Solar/Gebäude | I182: 2012-10-26 | N182: NS | O182: Ja (keine Belieferung Dritter) | P182: regelbar nach § 6 Abs. 2 EEG 2012 | Q182: Nein | R182: SOT
A183: E1006001S725010040900350270800001 | B183: DE0002147250100001004090035002708 | C183: Gammertingen | D183: Baden-Württemberg | E183: 72501 | F183: Sigmaringer Str. 35 | G183: 12.48 | H183: Solar/Gebäude | I183: 2012-10-28 | N183: NS | O183: Ja (keine Belieferung Dritter) | P183: regelbar nach § 6 Abs. 2 EEG 2012 | Q183: Nein | R183: SOT
A184: E1006001S725010022400090111200001 | B184: DE0002147250100001002240009001112 | C184: Gammertingen | D184: Baden-Württemberg | E184: 72501 | F184: Fehlatalstr. 9 | G184: 9.88 | H184: Solar/Gebäude | I184: 2012-12-18 | N184: NS | O184: Ja (mit Belieferung Dritter) | P184: regelbar nach § 6 Abs. 2 EEG 2012 | Q184: Nein | R184: SOT
A185: E1006001S725010023500050000300001 | B185: DE0002147250100001002350050000003 | C185: Gammertingen | D185: Baden-Württemberg | E185: 72501 | F185: Dresdener Str. 50 | G185: 8.13 | H185: Solar/Gebäude | I185: 2013-01-31 | N185: NS | O185: Ja (keine Belieferung Dritter) | P185: regelbar nach § 6 Abs. 2 EEG 2012 | Q185: Nein | R185: SOT
A186: E1006001S725010042100150418200001 | B186: DE0002147250100001004210015004182 | C186: Gammertingen | D186: Baden-Württemberg | E186: 72501 | F186: Mauren 15 | G186: 9.8 | H186: Solar/Gebäude | I186: 2013-03-15 | N186: NS | O186: Ja (keine Belieferung Dritter) | P186: regelbar nach § 6 Abs. 2 EEG 2012 | Q186: Nein | R186: SOT
A187: E1006001S725010024200040414700001 | B187: DE0002147250100001002420016004147 | C187: Gammertingen | D187: Baden-Württemberg | E187: 72501 | F187: Potsdamer Str. 4 | G187: 7.595 | H187: Solar/Gebäude | I187: 2013-03-28 | N187: NS | O187: Ja (keine Belieferung Dritter) | P187: regelbar nach § 6 Abs. 2 EEG 2012 | Q187: Nein | R187: SOT
A188: E1006001S725010020300030063100001 | B188: DE0002147250100001002030003000631 | C188: Gammertingen | D188: Baden-Württemberg | E188: 72501 | F188: Daimlerstr. 3 | G188: 6 | H188: Solar/Gebäude | I188: 2013-05-16 | N188: NS | O188: Ja (keine Belieferung Dritter) | P188: regelbar nach § 6 Abs. 2 EEG 2012 | Q188: nein | R188: SOT
A189: E1006001S725010040900630275800001 | B189: DE0002147250100001004090063002758 | C189: Gammertingen | D189: Baden-Württemberg | E189: 72501 | F189: Sigmaringer Str. 63 | G189: 17.28 | H189: Solar/Gebäude | I189: 2013-05-31 | N189: NS | O189: Ja (keine Belieferung Dritter) | P189: regelbar nach § 6 Abs. 2 EEG 2012 | Q189: Nein | R189: SOT
A190: E1006001S725010021900080101800001 | B190: DE0002147250100001002190008001018 | C190: Gammertingen | D190: Baden-Württemberg | E190: 72501 | F190: Stauffenweg 8 | G190: 5.1 | H190: Solar/Gebäude | I190: 2014-01-29 | N190: NS | O190: Ja (keine Belieferung Dritter) | P190: regelbar nach § 6 Abs. 2 EEG 2012 | Q190: Nein | R190: SOT
A191: E1006001S725010031600130000100001 | B191: DE0002147250100001003160013000001 | C191: Gammertingen | D191: Baden-Württemberg | E191: 72501 | F191: Mozartstr. 13 | G191: 9.62 | H191: Solar/Gebäude | I191: 2014-02-25 | N191: NS | O191: Ja (keine Belieferung Dritter) | P191: regelbar nach § 6 Abs. 2 EEG 2012 | Q191: Nein | R191: SOT
A192: E1006001S725010023500420000400001 | B192: DE0002147250100001002350042000004 | C192: Gammertingen | D192: Baden-Württemberg | E192: 72501 | F192: Dresdener Str. 42 | G192: 5.2 | H192: Solar/Gebäude | I192: 2014-05-28 | N192: NS | O192: Ja (keine Belieferung Dritter) | P192: regelbar nach § 6 Abs. 2 EEG 2012 | Q192: Nein | R192: SOT
A193: E1006001S725010024100110000300001 | B193: DE0002147250100001002410011000003 | C193: Gammertingen | D193: Baden-Württemberg | E193: 72501 | F193: Egertsbühl 11 | G193: 7.8 | H193: Solar/Gebäude | I193: 2014-06-23 | N193: NS | O193: Ja (keine Belieferung Dritter) | P193: regelbar nach § 6 Abs. 2 EEG 2012 | Q193: Nein | R193: SOT
A194: E1006001S725010024200110000300001 | B194: DE0002147250100001002420011000003 | C194: Gammertingen | D194: Baden-Württemberg | E194: 72501 | F194: Potsdamer Str. 11 | G194: 6.48 | H194: Solar/Gebäude | I194: 2014-12-23 | N194: NS | O194: Ja (keine Belieferung Dritter) | P194: 70%-Begrenzung | Q194: Nein | R194: SOT
A195: E1006001S725010041600110000100001 | B195: DE0002147250100001004160011000001 | C195: Gammertingen | D195: Baden-Württemberg | E195: 72501 | F195: Gartenstr. 11 | G195: 5.46 | H195: Solar/Gebäude | I195: 2014-10-30 | N195: NS | O195: Ja (keine Belieferung Dritter) | P195: 70%-Begrenzung | Q195: Nein | R195: SOT
A196: E1006001S725010031600110000100001 | B196: DE0002147250100001003160011000001 | C196: Gammertingen | D196: Baden-Württemberg | E196: 72501 | F196: Mozartstr. 11 | G196: 6.44 | H196: Solar/Gebäude | I196: 2014-12-19 | N196: NS | O196: Ja (keine Belieferung Dritter) | P196: 70%-Begrenzung | Q196: Nein | R196: SOT

Sheet Direktvermarktung
A3: Netzbetreiber : | B3: =Deckblatt!C11 -> Gammertinger Energie- u. Wasserversorgung GmbH
B5: Prozentualer Anteil der direkt vermarkteten Anlagen in der Marktprämie | N5: Prozentualer Anteil der zum Zweck der Verringerung der EEG-Umlage direkt vermarkteten Anlagen (Grünstromprivileg) | U5: Prozentualer Anteil der Anlagen in der Ausfallvermarktung | Z5: Prozentualer Anteil der direkt vermarkteten Anlagen in der sonstigen Direktvermarktung
A6: Anlagenschlüssel | B6: Monat Januar 2014 | C6: Monat Februar 2014 | D6: Monat März 2014 | E6: Monat April 2014 | F6: Monat Mai 2014 | G6: Monat Juni 2014 | H6: Monat Juli 2014 | I6: Monat August 2014 | J6: Monat September 2014 | K6: Monat Oktober 2014 | L6: Monat November 2014 | M6: Monat Dezember 2014 | N6: Monat Januar 2014 | O6: Monat Februar 2014 | P6: Monat März 2014 | Q6: Monat April 2014 | R6: Monat Mai 2014 | S6: Monat Juni 2014 | T6: Monat Juli 2014 | U6: Monat August 2014 | V6: Monat September 2014 | W6: Monat Oktober 2014 | X6: Monat November 2014 | Y6: Monat Dezember 2014 | Z6: Monat Januar 2014 | AA6: Monat Februar 2014 | AB6: Monat März 2014 | AC6: Monat April 2014 | AD6: Monat Mai 2014 | AE6: Monat Juni 2014 | AF6: Monat Juli 2014 | AG6: Monat August 2014 | AH6: Monat September 2014 | AI6: Monat Oktober 2014 | AJ6: Monat November 2014 | AK6: Monat Dezember 2014

Sheet Einspeisevergütung_GSP_Sonst
F1: =Deckblatt!H1 -> 24.03.2015
A3: Netzbetreiber : | B3: =Deckblatt!C11 -> Gammertinger Energie- u. Wasserversorgung GmbH
A5: Anlagenschlüssel | B5: Vergütungskategorie | C5: erzeugte Strommenge in der jeweiligen Vergütungskategorie [kWh] | D5: tatsächlich ausbezahlte EEG-Mindestvergütung für Kategorien ohne festen Vergütungssatz [€] | E5: Vergütungssatz der angegebenen Kategorie [ct/kWh) | F5: Berechnete EEG-Mindestvergütung [€]
B6: Festvergütung inkl. Eigenverbrauch / Grünstrom / sonstige Direktvermarktung | D6: Pflichtfeld bei Kategorien, die mit Marktwert zu vergüten sind (Kategorien die auf "MW" enden)
A7: E1006601W725010011300060051800001 | B7: WaK231BS----12 | C7: 108330 | E7: 11.67 | F7: 12642.11
A8: E1006601S725010041700070299700001 | B8: SoK81a------01 | C8: 1973 | E8: 50.62 | F8: 998.73
A9: E1006601S725010022600030114300001 | B9: SoK81a------01 | C9: 1690 | E9: 50.62 | F9: 855.48
A10: E1006601S725010022600080345200001 | B10: SoK81a------01 | C10: 1713 | E10: 50.62 | F10: 867.12
A11: E1006601S725010042100140358500001 | B11: SoK81a------01 | C11: 6854 | E11: 50.62 | F11: 3469.49
A12: E1006601S725010021200160359400001 | B12: SoK81a------01 | C12: 860 | E12: 50.62 | F12: 435.33
A13: E1006601S725010022900020366200001 | B13: SoK81a------01 | C13: 7972 | E13: 50.62 | F13: 4035.43
A14: E1006601S725010021800030363100001 | B14: SoK81a------01 | C14: 2113 | E14: 50.62 | F14: 1069.6
A15: E1006601S725010042900010368900001 | B15: SoK81a------01 | C15: 3827 | E15: 50.62 | F15: 1937.23
A16: E1006601S725010041700010385300001 | B16: SoK81a------02 | C16: 1882 | E16: 48.1 | F16: 905.24
A17: E1006601S725010011100020387200001 | B17: SoK81a------02 | C17: 2016 | E17: 48.1 | F17: 969.7
A18: E1006601S725010030600180404000001 | B18: SoK81a------02 | C18: 2711 | E18: 48.1 | F18: 1303.99
A19: E1006601S725010041550110404700001 | B19: SoK81a------02 | C19: 2945 | E19: 48.1 | F19: 1416.55
A20: E1006601S725010010200100409400001 | B20: SoK81a------02 | C20: 2625 | E20: 48.1 | F20: 1262.63
A21: E1006601S725010023600110409900001 | B21: SoK81a------02 | C21: 3041 | E21: 48.1 | F21: 1462.72
A22: E1006601S725010041550340418800001 | B22: SoK81a------03 | C22: 1709 | E22: 45.7 | F22: 781.01
A23: E1006601S725010024300090410600001 | B23: SoK81a------03 | C23: 1548 | E23: 45.7 | F23: 707.44
A24: E1006601S725010031700030232100001 | B24: SoK81a------03 | C24: 3333 | E24: 45.7 | F24: 1523.18
A25: E1006601S725010022800060127000001 | B25: SoK81a------03 | C25: 5516 | E25: 45.7 | F25: 2520.81
A26: E1006601S725010041700050299200001 | B26: SoK81a------03 | C26: 8864 | E26: 45.7 | F26: 4050.85
A27: E1006601S725010040900570274700001 | B27: SoK81a------03 | C27: 6059 | E27: 45.7 | F27: 2768.96
A28: E1006601S725010022600060114900001 | B28: SoK81a------03 | C28: 3206 | E28: 45.7 | F28: 1465.14
A29: E1006601S725010010800230000100001 | B29: SoK111------04 | C29: 900 | E29: 57.4 | F29: 516.6
A30: E1006601S725010010800250000100001 | B30: SoK111------04 | C30: 713 | E30: 57.4 | F30: 409.26
A31: E1006601S725010022900020366300001 | B31: SoK111------04 | C31: 1930 | E31: 57.4 | F31: 1107.82
A32: E1006601S725010022800060127100001 | B32: SoK111------04 | C32: 1857 | E32: 57.4 | F32: 1065.92
A33: E1006601S725010011100020387200002 | B33: SoK111------04 | C33: 2016 | E33: 57.4 | F33: 1157.18
A34: E1006601S725010023500260144800001 | B34: SoK111------04 | C34: 6016 | E34: 57.4 | F34: 3453.18
A35: E1006601S725010042500140317800001 | B35: SoK111------04 | C35: 6019 | E35: 57.4 | F35: 3454.91
A36: E1006601S725010022000130104700001 | B36: SoK111------05 | C36: 5886 | E36: 54.53 | F36: 3209.64
A37: E1006601S725010022600170117100001 | B37: SoK111------05 | C37: 4137 | E37: 54.53 | F37: 2255.91
A38: E1006601S725010030500190175400001 | B38: SoK111------05 | C38: 4176 | E38: 54.53 | F38: 2277.17
A39: E1006601S725010040900570274800001 | B39: SoK111------05 | C39: 6000 | E39: 54.53 | F39: 3271.8
A40: E1006601S725010020300100064100001 | B40: SoK111------05 | C40: 4869 | E40: 54.53 | F40: 2655.07
A41: E1006601S725010031500090210600001 | B41: SoK111------05 | C41: 4083 | E41: 54.53 | F41: 2226.46
A42: E1006601S725010021100100086100001 | B42: SoK111------06 | C42: 6129 | E42: 51.8 | F42: 3174.82
A43: E1006601S725010041550080291800001 | B43: SoK111------06 | C43: 11066 | E43: 51.8 | F43: 5732.19
A44: E1006601S725010021300340093200001 | B44: SoK111------06 | C44: 5583 | E44: 51.8 | F44: 2891.99
A45: E1006601S725010041550150292800001 | B45: SoK111------06 | C45: 5062 | E45: 51.8 | F45: 2622.12
A46: E1006601S725010040900730277100001 | B46: SoK111------06 | C46: 695 | E46: 51.8 | F46: 360.01
A47: E1006601S725010020200110058700001 | B47: SoK111------06 | C47: 8480 | E47: 51.8 | F47: 4392.64
A48: E1006601S725010030800020183300001 | B48: SoK111------06 | C48: 7005 | E48: 51.8 | F48: 3628.59
A49: E1006601S725010010100250003300001 | B49: SoK111------06 | C49: 6013 | E49: 51.8 | F49: 3114.73
A50: E1006601S725010030100220153900001 | B50: SoK111------06 | C50: 9277 | E50: 51.8 | F50: 4805.49
A51: E1006601S725010040900570274900001 | B51: SoK111------06 | C51: 13959 | E51: 51.8 | F51: 7230.76
A52: E1006601S725010023500090141700001 | B52: SoK111------07 | C52: 7884 | E52: 49.21 | F52: 3879.72
A53: E1006601S725010020300150064900001 | B53: SoK111------07 | C53: 13635 | E53: 49.21 | F53: 6709.78
A54: E1006601S725010030500050172100001 | B54: SoK111------07 | C54: 9653 | E54: 49.21 | F54: 4750.24
A55: E1006601S725010042900080389800001 | B55: SoK111------07 | C55: 4382 | E55: 49.21 | F55: 2156.38
A56: E1006601S725010023000010000100001 | B56: SoK111------07 | C56: 27912 | E56: 49.21 | F56: 13735.5
A57: E1006601S725010040800060251400001 | B57: SoK111------07 | C57: 23740 | E57: 49.21 | F57: 11682.45
A58: E1006601S725010022600080345200002 | B58: SoK111------07 | C58: 1782 | E58: 49.21 | F58: 876.92
A59: E1006601S725010024300020416100001 | B59: SoK111------07 | C59: 5594 | E59: 49.21 | F59: 2752.81
A60: E1006601S725010024000060151300001 | B60: SoK111------07 | C60: 10728 | E60: 49.21 | F60: 5279.25
A61: E1006601S725010023100080400000001 | B61: SoK111------07 | C61: 30017.3 | E61: 49.21 | F61: 14771.51
A62: E1006601S725010023100080400000001 | B62: SoK112------07 | C62: 1200.7 | E62: 46.82 | F62: 562.17
A63: E1006601S725010024600020000200001 | B63: SoK111------07 | C63: 23347.8 | E63: 49.21 | F63: 11489.45
A64: E1006601S725010024600020000200001 | B64: SoK112------07 | C64: 6615.2 | E64: 46.82 | F64: 3097.24
A65: E1006601S725010020200090058500001 | B65: SoK111------07 | C65: 7393 | E65: 49.21 | F65: 3638.1
A66: E1006601S725010021800050010400001 | B66: SoK111------08 | C66: 5749 | E66: 46.75 | F66: 2687.66
A67: E1006601S725010021200050000200001 | B67: SoK111------08 | C67: 7100 | E67: 46.75 | F67: 3319.25
A68: E1006601S725010020400030000200001 | B68: SoK111------08 | C68: 24390.4 | E68: 46.75 | F68: 11402.51
A69: E1006601S725010020400030000200001 | B69: SoK112------08 | C69: 26359.6 | E69: 44.48 | F69: 11724.75
A70: E1006601S725010030600090000900001 | B70: SoK111------08 | C70: 13252 | E70: 46.75 | F70: 6195.31
A71: E1006601S725010022100180108000001 | B71: SoK111------08 | C71: 6864 | E71: 46.75 | F71: 3208.92
A72: E1006601S725010040300050244300001 | B72: SoK111------08 | C72: 6418 | E72: 46.75 | F72: 3000.42
A73: E1006601S725010023900050149600001 | B73: SoK111------08 | C73: 8458 | E73: 46.75 | F73: 3954.12
A74: E1006601S725010021300100000100001 | B74: SoK111------08 | C74: 9173 | E74: 46.75 | F74: 4288.38
A75: E1006601S725010031100040188200001 | B75: SoK111------08 | C75: 6565 | E75: 46.75 | F75: 3069.14
A76: E1006601S725010040900790278000001 | B76: SoK111------08 | C76: 25162.4 | E76: 46.75 | F76: 11763.42
A77: E1006601S725010040900790278000001 | B77: SoK112------08 | C77: 12.6 | E77: 44.48 | F77: 5.6
A78: E1006601S725010030500220176000001 | B78: SoK111------08 | C78: 7143 | E78: 46.75 | F78: 3339.35
A79: E1006601S725010024200080000300001 | B79: SoK111------08 | C79: 6883 | E79: 46.75 | F79: 3217.8
A80: E1006601S725010030600030176600001 | B80: SgK330------09 | C80: 7150 | E80: 43.01 | F80: 3075.22
A81: E1006601S725010041550070291700001 | B81: SgK330------09 | C81: 12944 | E81: 43.01 | F81: 5567.21
A82: E1006601S725010041550350294900001 | B82: SgK330------09 | C82: 10462 | E82: 43.01 | F82: 4499.71
A83: E1006601S725010020400050151200001 | B83: SgK330------09 | C83: 8710 | E83: 43.01 | F83: 3746.17
A84: E1006601S725010031500110211100001 | B84: SgK330------09 | C84: 6025 | E84: 43.01 | F84: 2591.35
A85: E1006601S725010023500280144900001 | B85: SgK330------09 | C85: 11257 | E85: 43.01 | F85: 4841.64
A86: E1006601S725010042700170342900001 | B86: SgK330------09 | C86: 7644 | E86: 43.01 | F86: 3287.68
A87: E1006601S725010042000050346400001 | B87: SgK330------09 | C87: 6721 | E87: 43.01 | F87: 2890.7
A88: E1006601S725010030400070167100001 | B88: SgK330------09 | C88: 5626 | E88: 43.01 | F88: 2419.74
A89: E1006601S725010041550040291300001 | B89: SgK330------09 | C89: 8732 | E89: 43.01 | F89: 3755.63
A90: E1006601S725010022800170128600001 | B90: SgK330------09 | C90: 5775 | E90: 43.01 | F90: 2483.83
A91: E1006601S725010022900030129800001 | B91: SgK330------09 | C91: 4766 | E91: 43.01 | F91: 2049.86
A92: E1006601S725010022900030129700001 | B92: SgK330------09 | C92: 4822 | E92: 43.01 | F92: 2073.94
A93: E1006601S725010022700310125400001 | B93: SgK330------09 | C93: 5718 | E93: 43.01 | F93: 2459.31
A94: E1006601S725010031100040188300001 | B94: SgK330------09 | C94: 4572 | E94: 43.01 | F94: 1966.42
A95: E1006601S725010021200030087200001 | B95: SgK330------09 | C95: 11269 | E95: 43.01 | F95: 4846.8
A96: E1006601S725010041400050289000001 | B96: SgK330------09 | C96: 14333 | E96: 43.01 | F96: 6164.62
A97: E1006601S725010041600060296800001 | B97: SgK330------09 | C97: 10935 | E97: 43.01 | F97: 4703.14
A98: E1006601S725010041600040298200001 | B98: SgK330------09 | C98: 30606 | E98: 43.01 | F98: 13163.64
A99: E1006601S725010022400060111700001 | B99: SgK330------09 | C99: 13865 | E99: 43.01 | F99: 5963.34
A100: E1006601S725010040900420000700001 | B100: SgK330------09 | C100: 24744.5 | E100: 43.01 | F100: 10642.61
A101: E1006601S725010040900420000700001 | B101: SgK331------09 | C101: 24480.5 | E101: 40.91 | F101: 10014.97
A102: E1006601S725010020300100064200001 | B102: SgK330------09 | C102: 7545 | E102: 43.01 | F102: 3245.1
A103: E1006601S725010030800060184200001 | B103: SgK330------09 | C103: 2680 | E103: 43.01 | F103: 1152.67
A104: E1006601S725010023600210146900001 | B104: SgK330------09 | C104: 16573 | E104: 43.01 | F104: 7128.05
A105: E1006601S725010030500010171400001 | B105: SgK330------09 | C105: 6046 | E105: 43.01 | F105: 2600.38
A106: E1006601S725010040900440272500001 | B106: SgK330------09 | C106: 24667 | E106: 43.01 | F106: 10609.28
A107: E1006601S725010040900440272500001 | B107: SgK331------09 | C107: 41383 | E107: 40.91 | F107: 16929.79
A108: E1006601S725010030500010171500001 | B108: SgK330------09 | C108: 6045 | E108: 43.01 | F108: 2599.95
A109: E1006601S725010023100140403100001 | B109: SgK330------10 | C109: 30266 | E109: 39.14 | F109: 11846.11
A110: E1006601S725010022300070110200001 | B110: SgK330------10 | C110: 12188 | E110: 39.14 | F110: 4770.38
A111: E1006601S725010022700240358500001 | B111: SgK330------10 | C111: 10123 | E111: 39.14 | F111: 3962.14
A112: E1006601S725010023100090405700001 | B112: SgK330------10 | C112: 12630 | E112: 39.14 | F112: 4943.38
A113: E1006601S725010042900080389900001 | B113: SgK330------10 | C113: 3364 | E113: 39.14 | F113: 1316.67
A114: E1006601S725010040900790278100001 | B114: SgK330------10 | C114: 10469 | E114: 39.14 | F114: 4097.57
A115: E1006601S725010031600100215500001 | B115: SgK330------10 | C115: 9162 | E115: 39.14 | F115: 3586.01
A116: E1006601S725010041550450295600001 | B116: SgK330------10 | C116: 9624 | E116: 39.14 | F116: 3766.83
A117: E1006601S725010031550090197300001 | B117: SgK330------10 | C117: 13818 | E117: 39.14 | F117: 5408.37
A118: E1006601S725010041200040282000001 | B118: SgK330------10 | C118: 24627 | E118: 39.14 | F118: 9639.01
A119: E1006601S725010020300150065000001 | B119: SgK330------10 | C119: 18566 | E119: 39.14 | F119: 7266.73
A120: E1006601S725010020300150065100001 | B120: SgK330------10 | C120: 8863 | E120: 39.14 | F120: 3468.98
A121: E1006601S725010020800130076900001 | B121: SgK330------10 | C121: 24159 | E121: 39.14 | F121: 9455.83
A122: E1006601S725010040200060000100001 | B122: SgK330------10 | C122: 9715 | E122: 39.14 | F122: 3802.45
A123: E1006601S725010023700030147700001 | B123: SgK330------10 | C123: 10739 | E123: 39.14 | F123: 4203.24
A124: E1006601S725010020200150059000001 | B124: SgK330------10 | C124: 6398 | E124: 39.14 | F124: 2504.18
A125: E1006601S725010041550190293300001 | B125: SgK330------10 | C125: 9389 | E125: 39.14 | F125: 3674.85
A126: E1006601S725010041600040298300001 | B126: SgK330------10 | C126: 10350 | E126: 39.14 | F126: 4050.99
A127: E1006601S725010023500140143000001 | B127: SgK330------10 | C127: 13895 | E127: 39.14 | F127: 5438.5
A128: E1006601S725010023100220000100001 | B128: SgK330------10 | C128: 21290.3 | E128: 39.14 | F128: 8333.02
A129: E1006601S725010023100220000100001 | B129: SgK331------10 | C129: 49677.2 | E129: 37.23 | F129: 18494.82
A130: E1006601S725010023100220000100001 | B130: SgK332------10 | C130: 18153.5 | E130: 35.23 | F130: 6395.48
A131: E1006601S725010020350020000200001 | B131: SgK330------10 | C131: 31771.3 | E131: 39.14 | F131: 12435.29
A132: E1006601S725010020350020000200001 | B132: SgK331------10 | C132: 74133 | E132: 37.23 | F132: 27599.72
A133: E1006601S725010020350020000200001 | B133: SgK332------10 | C133: 4765.7 | E133: 35.23 | F133: 1678.96
A134: E1006601S725010020350100065300001 | B134: SgK330------10 | C134: 32732.4 | E134: 39.14 | F134: 12811.46
A135: E1006601S725010020350100065300001 | B135: SgK331------10 | C135: 30877.6 | E135: 37.23 | F135: 11495.73
A136: E1006601S725010042500100317400001 | B136: SgK330------10 | C136: 10816 | E136: 39.14 | F136: 4233.38
A137: E1006601S725010021100030085200001 | B137: SgK330---Jul10 | C137: 7808 | E137: 34.05 | F137: 2658.62
A138: E1006601S725010031600060215000001 | B138: SgK330---Jul10 | C138: 9326 | E138: 34.05 | F138: 3175.5
A139: E1006601S725010041550140292700001 | B139: SgK330---Jul10 | C139: 14829 | E139: 34.05 | F139: 5049.27
A140: E1006601S725010024000060151400001 | B140: SgK330---Jul10 | C140: 6687 | E140: 34.05 | F140: 2276.92
A141: E1006601S725010010100080000100001 | B141: SgK330---Jul10 | C141: 3445 | E141: 34.05 | F141: 1173.02
A142: E1006601S725010030300210163900001 | B142: SgK330---Jul10 | C142: 7323 | E142: 34.05 | F142: 2493.48
A143: E1006601S725010030400080167200001 | B143: SgK330---Okt10 | C143: 7748 | E143: 33.03 | F143: 2559.16
A144: E1006601S725010022200080109300001 | B144: SgK330---Okt10 | C144: 10802 | E144: 33.03 | F144: 3567.9
A145: E1006601S725010031100250191100001 | B145: SgK330---Okt10 | C145: 5875 | E145: 33.03 | F145: 1940.51
A146: E1006601S725010041700160300700001 | B146: SgK330---Okt10 | C146: 3535 | E146: 33.03 | F146: 1167.61
A147: E1006601S725010040600020250000001 | B147: SgK330---Okt10 | C147: 27406.3 | E147: 33.03 | F147: 9052.3
A148: E1006601S725010040600020250000001 | B148: SgK331---Okt10 | C148: 56575.7 | E148: 31.42 | F148: 17776.08
A149: E1006601S725010022000070104000001 | B149: SgK330---Okt10 | C149: 4012 | E149: 33.03 | F149: 1325.16
A150: E1006601S725010022000070104000001 | B150: SgK33410-Okt10 | C150: 1648 | E150: 33.03 | F150: 544.33
A151: E1006601S725010022000070104000001 | B151: SgK33420-Okt10 | C151: -1648 | E151: 16.38 | F151: -269.94
A152: E1006601S725010023100220000300001 | B152: SgK332---Okt10 | C152: 500676 | E152: 29.73 | F152: 148850.97
A153: E1006601S725010042000110307200001 | B153: SgK330------11 | C153: 8389 | E153: 28.74 | F153: 2411
A154: E1006601S725010022600290118700001 | B154: SgK330------11 | C154: 2579 | E154: 28.74 | F154: 741.2
A155: E1006601S725010022600290118700001 | B155: SgK33410----11 | C155: 1739 | E155: 28.74 | F155: 499.79
A156: E1006601S725010022600290118700001 | B156: SgK33420----11 | C156: -1295 | E156: 16.38 | F156: -212.12
A157: E1006601S725010022600290118700001 | B157: SgK33430----11 | C157: -444 | E157: 12 | F157: -53.28
A158: E1006601S725010022200070000200001 | B158: SgK330------11 | C158: 30592 | E158: 28.74 | F158: 8792.14
A159: E1006601S725010022200070000200001 | B159: SgK331------11 | C159: 54484 | E159: 27.33 | F159: 14890.48
A160: E1006001S725010021800030363100001 | B160: SgK330------11 | C160: 2383 | E160: 28.74 | F160: 684.87
A161: E1006601S725010023100060000200001 | B161: SgK330------11 | C161: 30036.6 | E161: 28.74 | F161: 8632.52
A162: E1006601S725010023100060000200001 | B162: SgK331------11 | C162: 360.4 | E162: 27.33 | F162: 98.5
A163: E1006601S725010041500070290100001 | B163: SgK330------11 | C163: 10848 | E163: 28.74 | F163: 3117.72
A164: E1006601S725010040900790278200001 | B164: SgK330------11 | C164: 23411 | E164: 28.74 | F164: 6728.32
A165: E1006001S725010023700050000100001 | B165: SgK330------11 | C165: 12183 | E165: 28.74 | F165: 3501.39
A166: E1006601S725010041600020296200001 | B166: SgK330------11 | C166: 25980 | E166: 28.74 | F166: 7466.65
A167: E1006601S725010041550050291400001 | B167: SgK330------11 | C167: 12135 | E167: 28.74 | F167: 3487.6
A168: E1006601S725010021800080100600001 | B168: SgK330------11 | C168: 8044 | E168: 28.74 | F168: 2311.85
A169: E1006601S725010022400110111500001 | B169: SgK330------11 | C169: 11974 | E169: 28.74 | F169: 3441.33
A170: E1006001S725010020900150082800001 | B170: SgK330------11 | C170: 20219 | E170: 28.74 | F170: 5810.94
A171: E1006001S725010022700070120500001 | B171: SgK330------11 | C171: 9398 | E171: 28.74 | F171: 2700.99
A172: E1006001S725010030500030171800001 | B172: SgK330------11 | C172: 6526 | E172: 28.74 | F172: 1875.57
A173: E1006001S725010042700120319600001 | B173: SgK330------11 | C173: 10887 | E173: 28.74 | F173: 3128.92
A174: E1006001S725010024200060000200001 | B174: SgK330------11 | C174: 8871 | E174: 28.74 | F174: 2549.53
A175: E1006001S725010011300060051900001 | B175: SgK330------11 | C175: 15978 | E175: 28.74 | F175: 4592.08
A176: E1006001S725010020800080076100001 | B176: SgK330------11 | C176: 11576 | E176: 28.74 | F176: 3326.94
A177: E1006001S725010022100190108200001 | B177: SgK330------11 | C177: 3168 | E177: 28.74 | F177: 910.48
A178: E1006001S725010022100190108200001 | B178: SgK33410----11 | C178: 1801 | E178: 28.74 | F178: 517.61
A179: E1006001S725010022100190108200001 | B179: SgK33420----11 | C179: -1491 | E179: 16.38 | F179: -244.23
A180: E1006001S725010022100190108200001 | B180: SgK33430----11 | C180: -310 | E180: 12 | F180: -37.2
A181: E1006001S725010020800250079200001 | B181: SgK330------11 | C181: 6427 | E181: 28.74 | F181: 1847.12
A182: E1006001S725010021000130084900001 | B182: SgK330------11 | C182: 13159 | E182: 28.74 | F182: 3781.9
A183: E1006001S725010023100050135800001 | B183: SgK330------11 | C183: 23609 | E183: 28.74 | F183: 6785.23
A184: E1006001S725010031000010186300001 | B184: SgK330------11 | C184: 4352 | E184: 28.74 | F184: 1250.76
A185: E1006001S725010022900020366400001 | B185: SgK330------11 | C185: 11156 | E185: 28.74 | F185: 3206.23
A186: E1006001S725010022900060130300001 | B186: SgK330------11 | C186: 27151 | E186: 28.74 | F186: 7803.2
A187: E1006001S725010041700040299200001 | B187: SgK330------11 | C187: 8290 | E187: 28.74 | F187: 2382.55
A188: E1006001S725010042000120000500001 | B188: SgK330------12 | C188: 6321 | E188: 24.43 | F188: 1544.22
A189: E1006001S725010042000120000500001 | B189: SgK33410----12 | C189: 3035 | E189: 24.43 | F189: 741.45
A190: E1006001S725010042000120000500001 | B190: SgK33420----12 | C190: -2807 | E190: 16.38 | F190: -459.79
A191: E1006001S725010042000120000500001 | B191: SgK33430----12 | C191: -228 | E191: 12 | F191: -27.36
A192: E1006001S725010042900070417700001 | B192: SgK330------12 | C192: 7972 | E192: 24.43 | F192: 1947.56
A193: E1006001S725010021200090088700001 | B193: SgK330------12 | C193: 3734 | E193: 24.43 | F193: 912.22
A194: E1006001S725010021200090088700001 | B194: SgK33410----12 | C194: 980 | E194: 24.43 | F194: 239.41
A195: E1006001S725010021200090088700001 | B195: SgK33420----12 | C195: -980 | E195: 16.38 | F195: -160.52
A196: E1006001S725010031400040202900001 | B196: SgK330------12 | C196: 9369 | E196: 24.43 | F196: 2288.85
A197: E1006001S725010031400040202900001 | B197: SgK33410----12 | C197: 1096 | E197: 24.43 | F197: 267.75
A198: E1006001S725010031400040202900001 | B198: SgK33420----12 | C198: -1096 | E198: 16.38 | F198: -179.52
A199: E1006001S725010042700210000300001 | B199: SgK330------12 | C199: 11318 | E199: 24.43 | F199: 2764.99
A200: E1006001S725010042700210000300001 | B200: SgK33410----12 | C200: 2202 | E200: 24.43 | F200: 537.95
A201: E1006001S725010042700210000300001 | B201: SgK33420----12 | C201: -2202 | E201: 16.38 | F201: -360.69
A202: E1006001S725010023800070149100001 | B202: SgK330------12 | C202: 7950 | E202: 24.43 | F202: 1942.19
... 35 more rows

Sheet Ausfallvermarktung
F1: =Deckblatt!H1 -> 24.03.2015
A3: Netzbetreiber : | B3: =Deckblatt!C11 -> Gammertinger Energie- u. Wasserversorgung GmbH
A5: Anlagenschlüssel | B5: Vergütungskategorie | C5: erzeugte Strommenge in der jeweiligen Vergütungskategorie [kWh] | D5: tatsächlich ausbezahlte EEG-Vergütung für Kategorien ohne festen Vergütungssatz [€] | E5: Vergütungssatz der angegebenen Kategorie [ct/kWh] | F5: Berechnete EEG-Mindestvergütung [€]
B6: Ausfallvermarktung inkl. Eigenverbrauch | D6: Pflichtfeld bei Kategorien, die mit Marktwert zu vergüten sind (Kategorien die auf "MW" enden)

Sheet Preisblätter-vNE
D1: =Deckblatt!H1 -> 24.03.2015
A3: Netzbetreiber : | B3: =Deckblatt!C11 -> Gammertinger Energie- u. Wasserversorgung GmbH
B5: Name des Netzgebiets bzw. gültiger Zeitraum des Preisblatts*
A6: Preisblatt 1 | B6: Gammertinger Energie- und Wasserversorgung GmbH gültig ab 01.01.2014 | E6: *Sofern Sie im Jahr 2014 mehrere gültige Preisblätter hatten (aufgrund von unterjährigen Anpassungen, bzw. mehreren Netzgebieten), sind die vermiedenen Netzentgelte für die unterschiedlichen Zeiträume bzw. Netzgebiete separat auszuweisen. Bei einer unterjährigen Anpassung Ihres Preisblattes sind die betroffenen Anlagen im Tabellenblatt "vNE" pro Zeitraum einmal aufzuführen und Vermeidungsarbeit und Vermeidungsleistung sinnvoll (entsprechend der von Ihnen vorgegebenen Berechnung der vNE) zu verteilen.
A7: Preisblatt 2 | B7: EnBW gütlig ab 01.01.2014
A8: Preisblatt 3
A10: Preisblatt 1 | B10: Arbeitspreis** [ct/kWh] | C10: Leistungspreis** [€/kW*a] | D10: Anmerkungen | E10: **Preise gemäß Preisblatt für das Jahr 2014. Die für Ihr Netz vorgelagerten Netzebenen ist der Preis aus dem Preisblatt des vorgelagerten Netzbetreibers einzutragen. Die Preisblätter (auch das des vorgelagerten Netzbetreibers) sind uns zusammen mit der Jahresmeldung bis spätestens zum 30.04.2015 per E-Mail zuzusenden. Für den Fall, dass für die Berechnung der vNE nicht die direkt überlagerte Spannungsebene verwendet wurde, ist der verwendete Wert in die entsprechende Zeile der direkt überlagerten Ebene einzutragen - auch wenn der Preis im Preisblatt für eine höhere Ebene gilt. Dies ist entsprechend im Feld "Anmerkungen" kenntlich zu machen. Sofern es zu einer Rückspeisung in eine oder mehrere überlagerte Spannungsebenen gekommen ist und sich dadurch Auswirkungen auf die Berechnung der vermiedenen Netzentgelte einer Spannungsebene ergeben, ist dies ebenfalls im Feld "Anmerkungen" mitzuteilen.
A11: Spannungsebene: HöS
A12: Spannungsebene: Hös/HS
A13: Spannungsebene: HS
A14: Spannungsebene: HS/MS
A15: Spannungsebene: MS | B15: 0.61 | C15: 54.38
A16: Spannungsebene: MS/NS | B16: 0.67 | C16: 76.65
A17: Spannungsebene: NS | B17: 1.48 | C17: 74.01
A20: Preisblatt 2 | E20: **Preise gemäß Preisblatt für das Jahr 2014. Die für Ihr Netz vorgelagerten Netzebenen ist der Preis aus dem Preisblatt des vorgelagerten Netzbetreibers einzutragen. Die Preisblätter (auch das des vorgelagerten Netzbetreibers) sind uns zusammen mit der Jahresmeldung bis spätestens zum 30.04.2015 per E-Mail zuzusenden. Für den Fall, dass für die Berechnung der vNE nicht die direkt überlagerte Spannungsebene verwendet wurde, ist der verwendete Wert in die entsprechende Zeile der direkt überlagerten Ebene einzutragen - auch wenn der Preis im Preisblatt für eine höhere Ebene gilt. Dies ist entsprechend im Feld "Anmerkungen" kenntlich zu machen. Sofern es zu einer Rückspeisung in eine oder mehrere überlagerte Spannungsebenen gekommen ist und sich dadurch Auswirkungen auf die Berechnung der vermiedenen Netzentgelte einer Spannungsebene ergeben, ist dies ebenfalls im Feld "Anmerkungen" mitzuteilen.
A21: Spannungsebene: HöS
A22: Spannungsebene: Hös/HS
A23: Spannungsebene: HS
A24: Spannungsebene: HS/MS | B24: 0.656 | C24: 53.254 | D24: doppelte Mittelspannung § 14
A25: Spannungsebene: MS
A26: Spannungsebene: MS/NS
A27: Spannungsebene: NS
A30: Preisblatt 3 | E30: **Preise gemäß Preisblatt für das Jahr 2014. Die für Ihr Netz vorgelagerten Netzebenen ist der Preis aus dem Preisblatt des vorgelagerten Netzbetreibers einzutragen. Die Preisblätter (auch das des vorgelagerten Netzbetreibers) sind uns zusammen mit der Jahresmeldung bis spätestens zum 30.04.2015 per E-Mail zuzusenden. Für den Fall, dass für die Berechnung der vNE nicht die direkt überlagerte Spannungsebene verwendet wurde, ist der verwendete Wert in die entsprechende Zeile der direkt überlagerten Ebene einzutragen - auch wenn der Preis im Preisblatt für eine höhere Ebene gilt. Dies ist entsprechend im Feld "Anmerkungen" kenntlich zu machen. Sofern es zu einer Rückspeisung in eine oder mehrere überlagerte Spannungsebenen gekommen ist und sich dadurch Auswirkungen auf die Berechnung der vermiedenen Netzentgelte einer Spannungsebene ergeben, ist dies ebenfalls im Feld "Anmerkungen" mitzuteilen.
A31: Spannungsebene: HöS
A32: Spannungsebene: Hös/HS
A33: Spannungsebene: HS
A34: Spannungsebene: HS/MS
A35: Spannungsebene: MS
A36: Spannungsebene: MS/NS
A37: Spannungsebene: NS

Sheet vNE
H1: =Deckblatt!H1 -> 24.03.2015
A3: Netzbetreiber : | B3: =Deckblatt!C11 -> Gammertinger Energie- u. Wasserversorgung GmbH
A5: Anlagenschlüssel | B5: vNE-Kategorie | C5: Für Angabe gültiges Preisblatt entsprechend Tabellenblatt "Preisblätter vNE" | D5: Leistungsanteil an den vNE* [€] | E5: Arbeitsanteil an den vNE [€] | F5: nur eingeschränkte Prüfung möglich optional - sofern Sondersachverhalte vorliegen | G5: Erläuterung für eingeschränkte Prüfung Plichtfeld sofern Spalte F befüllt ist | H5: berechnete vNE gesamt [€] | I5: *Pflichtfeld bei allen lastganggemessenen Anlagen.
A6: E1006601W725010011300060051800001 | B6: Wa-vNNe--SpE07 | C6: Preisblatt 1 | E6: 725.811 | H6: 725.81
A7: E1006601S725010041700070299700001 | B7: So-vNNe--SpE07 | C7: Preisblatt 1 | E7: 13.2191 | H7: 13.22
A8: E1006601S725010022600030114300001 | B8: So-vNNe--SpE07 | C8: Preisblatt 1 | E8: 11.323 | H8: 11.32
A9: E1006601S725010022600080345200001 | B9: So-vNNe--SpE07 | C9: Preisblatt 1 | E9: 11.4771 | H9: 11.48
A10: E1006601S725010042100140358500001 | B10: So-vNNe--SpE07 | C10: Preisblatt 1 | E10: 45.9218 | H10: 45.92
A11: E1006601S725010021200160359400001 | B11: So-vNNe--SpE07 | C11: Preisblatt 1 | E11: 5.762 | H11: 5.76
A12: E1006601S725010022900020366200001 | B12: So-vNNe--SpE07 | C12: Preisblatt 1 | E12: 53.4124 | H12: 53.41
A13: E1006601S725010021800030363100001 | B13: So-vNNe--SpE07 | C13: Preisblatt 1 | E13: 14.1571 | H13: 14.16
A14: E1006601S725010042900010368900001 | B14: So-vNNe--SpE07 | C14: Preisblatt 1 | E14: 25.6409 | H14: 25.64
A15: E1006601S725010041700010385300001 | B15: So-vNNe--SpE07 | C15: Preisblatt 1 | E15: 12.6094 | H15: 12.61
A16: E1006601S725010011100020387200001 | B16: So-vNNe--SpE07 | C16: Preisblatt 1 | E16: 13.5072 | H16: 13.51
A17: E1006601S725010030600180404000001 | B17: So-vNNe--SpE07 | C17: Preisblatt 1 | E17: 18.1637 | H17: 18.16
A18: E1006601S725010041550110404700001 | B18: So-vNNe--SpE07 | C18: Preisblatt 1 | E18: 19.7315 | H18: 19.73
A19: E1006601S725010010200100409400001 | B19: So-vNNe--SpE07 | C19: Preisblatt 1 | E19: 17.5875 | H19: 17.59
A20: E1006601S725010023600110409900001 | B20: So-vNNe--SpE07 | C20: Preisblatt 1 | E20: 20.3747 | H20: 20.37
A21: E1006601S725010041550340418800001 | B21: So-vNNe--SpE07 | C21: Preisblatt 1 | E21: 11.4503 | H21: 11.45
A22: E1006601S725010024300090410600001 | B22: So-vNNe--SpE07 | C22: Preisblatt 1 | E22: 10.3716 | H22: 10.37
A23: E1006601S725010031700030232100001 | B23: So-vNNe--SpE07 | C23: Preisblatt 1 | E23: 22.3311 | H23: 22.33
A24: E1006601S725010022800060127000001 | B24: So-vNNe--SpE07 | C24: Preisblatt 1 | E24: 36.9572 | H24: 36.96
A25: E1006601S725010041700050299200001 | B25: So-vNNe--SpE07 | C25: Preisblatt 1 | E25: 59.3888 | H25: 59.39
A26: E1006601S725010040900570274700001 | B26: So-vNNe--SpE07 | C26: Preisblatt 1 | E26: 40.5953 | H26: 40.6
A27: E1006601S725010022600060114900001 | B27: So-vNNe--SpE07 | C27: Preisblatt 1 | E27: 21.4802 | H27: 21.48
A28: E1006601S725010010800230000100001 | B28: So-vNNe--SpE07 | C28: Preisblatt 1 | E28: 6.03 | H28: 6.03
A29: E1006601S725010010800250000100001 | B29: So-vNNe--SpE07 | C29: Preisblatt 1 | E29: 4.7771 | H29: 4.78
A30: E1006601S725010022900020366300001 | B30: So-vNNe--SpE07 | C30: Preisblatt 1 | E30: 12.931 | H30: 12.93
A31: E1006601S725010022800060127100001 | B31: So-vNNe--SpE07 | C31: Preisblatt 1 | E31: 12.4419 | H31: 12.44
A32: E1006601S725010011100020387200002 | B32: So-vNNe--SpE07 | C32: Preisblatt 1 | E32: 13.5072 | H32: 13.51
A33: E1006601S725010023500260144800001 | B33: So-vNNe--SpE07 | C33: Preisblatt 1 | E33: 40.3072 | H33: 40.31
A34: E1006601S725010042500140317800001 | B34: So-vNNe--SpE07 | C34: Preisblatt 1 | E34: 40.3273 | H34: 40.33
A35: E1006601S725010022000130104700001 | B35: So-vNNe--SpE07 | C35: Preisblatt 1 | E35: 39.4362 | H35: 39.44
A36: E1006601S725010022600170117100001 | B36: So-vNNe--SpE07 | C36: Preisblatt 1 | E36: 27.7179 | H36: 27.72
A37: E1006601S725010030500190175400001 | B37: So-vNNe--SpE07 | C37: Preisblatt 1 | E37: 27.9792 | H37: 27.98
A38: E1006601S725010040900570274800001 | B38: So-vNNe--SpE07 | C38: Preisblatt 1 | E38: 40.2 | H38: 40.2
A39: E1006601S725010020300100064100001 | B39: So-vNNe--SpE07 | C39: Preisblatt 1 | E39: 32.6223 | H39: 32.62
A40: E1006601S725010031500090210600001 | B40: So-vNNe--SpE07 | C40: Preisblatt 1 | E40: 27.3561 | H40: 27.36
A41: E1006601S725010021100100086100001 | B41: So-vNNe--SpE07 | C41: Preisblatt 1 | E41: 41.0643 | H41: 41.06
A42: E1006601S725010041550080291800001 | B42: So-vNNe--SpE07 | C42: Preisblatt 1 | E42: 74.1422 | H42: 74.14
A43: E1006601S725010021300340093200001 | B43: So-vNNe--SpE07 | C43: Preisblatt 1 | E43: 37.4061 | H43: 37.41
A44: E1006601S725010041550150292800001 | B44: So-vNNe--SpE07 | C44: Preisblatt 1 | E44: 33.9154 | H44: 33.92
A45: E1006601S725010040900730277100001 | B45: So-vNNe--SpE07 | C45: Preisblatt 1 | E45: 4.6565 | H45: 4.66
A46: E1006601S725010020200110058700001 | B46: So-vNNe--SpE07 | C46: Preisblatt 1 | E46: 56.816 | H46: 56.82
A47: E1006601S725010030800020183300001 | B47: So-vNNe--SpE07 | C47: Preisblatt 1 | E47: 46.9335 | H47: 46.93
A48: E1006601S725010010100250003300001 | B48: So-vNNe--SpE07 | C48: Preisblatt 1 | E48: 40.2871 | H48: 40.29
A49: E1006601S725010030100220153900001 | B49: So-vNNe--SpE07 | C49: Preisblatt 1 | E49: 62.1559 | H49: 62.16
A50: E1006601S725010040900570274900001 | B50: So-vNNe--SpE07 | C50: Preisblatt 1 | E50: 93.5253 | H50: 93.53
A51: E1006601S725010023500090141700001 | B51: So-vNNe--SpE07 | C51: Preisblatt 1 | E51: 52.8228 | H51: 52.82
A52: E1006601S725010020300150064900001 | B52: So-vNNe--SpE07 | C52: Preisblatt 1 | E52: 91.3545 | H52: 91.35
A53: E1006601S725010030500050172100001 | B53: So-vNNe--SpE07 | C53: Preisblatt 1 | E53: 64.6751 | H53: 64.68
A54: E1006601S725010042900080389800001 | B54: So-vNNe--SpE07 | C54: Preisblatt 1 | E54: 29.3594 | H54: 29.36
A55: E1006601S725010023000010000100001 | B55: So-vNNe--SpE07 | C55: Preisblatt 1 | E55: 187.0104 | H55: 187.01
A56: E1006601S725010040800060251400001 | B56: So-vNNe--SpE07 | C56: Preisblatt 1 | E56: 159.058 | H56: 159.06
A57: E1006601S725010022600080345200002 | B57: So-vNNe--SpE07 | C57: Preisblatt 1 | E57: 11.9394 | H57: 11.94
A58: E1006601S725010024300020416100001 | B58: So-vNNe--SpE07 | C58: Preisblatt 1 | E58: 37.4798 | H58: 37.48
A59: E1006601S725010024000060151300001 | B59: So-vNNe--SpE07 | C59: Preisblatt 1 | E59: 71.8776 | H59: 71.88
A60: E1006601S725010023100080400000001 | B60: So-vNNe--SpE07 | C60: Preisblatt 1 | E60: 209.1606 | H60: 209.16
A61: E1006601S725010024600020000200001 | B61: So-vNNe--SpE07 | C61: Preisblatt 1 | E61: 200.7521 | H61: 200.75
A62: E1006601S725010020200090058500001 | B62: So-vNNe--SpE07 | C62: Preisblatt 1 | E62: 49.5331 | H62: 49.53
A63: E1006601S725010021800050010400001 | B63: So-vNNe--SpE07 | C63: Preisblatt 1 | E63: 38.5183 | H63: 38.52
A64: E1006601S725010021200050000200001 | B64: So-vNNe--SpE07 | C64: Preisblatt 1 | E64: 47.57 | H64: 47.57
A65: E1006601S725010020400030000200001 | B65: So-vNNe--SpE07 | C65: Preisblatt 1 | E65: 340.025 | H65: 340.03
A66: E1006601S725010030600090000900001 | B66: So-vNNe--SpE07 | C66: Preisblatt 1 | E66: 88.7884 | H66: 88.79
A67: E1006601S725010022100180108000001 | B67: So-vNNe--SpE07 | C67: Preisblatt 1 | E67: 45.9888 | H67: 45.99
A68: E1006601S725010040300050244300001 | B68: So-vNNe--SpE07 | C68: Preisblatt 1 | E68: 43.0006 | H68: 43
A69: E1006601S725010023900050149600001 | B69: So-vNNe--SpE07 | C69: Preisblatt 1 | E69: 56.6686 | H69: 56.67
A70: E1006601S725010021300100000100001 | B70: So-vNNe--SpE07 | C70: Preisblatt 1 | E70: 61.4591 | H70: 61.46
A71: E1006601S725010031100040188200001 | B71: So-vNNe--SpE07 | C71: Preisblatt 1 | E71: 43.9855 | H71: 43.99
A72: E1006601S725010040900790278000001 | B72: So-vNNe--SpE07 | C72: Preisblatt 1 | E72: 168.6725 | H72: 168.67
A73: E1006601S725010030500220176000001 | B73: So-vNNe--SpE07 | C73: Preisblatt 1 | E73: 47.8581 | H73: 47.86
A74: E1006601S725010024200080000300001 | B74: So-vNNe--SpE07 | C74: Preisblatt 1 | E74: 46.1161 | H74: 46.12
A75: E1006601S725010030600030176600001 | B75: Sg-vNNe--SpE07 | C75: Preisblatt 1 | E75: 47.905 | H75: 47.91
A76: E1006601S725010041550070291700001 | B76: Sg-vNNe--SpE07 | C76: Preisblatt 1 | E76: 86.7248 | H76: 86.72
A77: E1006601S725010041550350294900001 | B77: Sg-vNNe--SpE07 | C77: Preisblatt 1 | E77: 70.0954 | H77: 70.1
A78: E1006601S725010020400050151200001 | B78: Sg-vNNe--SpE07 | C78: Preisblatt 1 | E78: 58.357 | H78: 58.36
A79: E1006601S725010031500110211100001 | B79: Sg-vNNe--SpE07 | C79: Preisblatt 1 | E79: 40.3675 | H79: 40.37
A80: E1006601S725010023500280144900001 | B80: Sg-vNNe--SpE07 | C80: Preisblatt 1 | E80: 75.4219 | H80: 75.42
A81: E1006601S725010042700170342900001 | B81: Sg-vNNe--SpE07 | C81: Preisblatt 1 | E81: 51.2148 | H81: 51.21
A82: E1006601S725010042000050346400001 | B82: Sg-vNNe--SpE07 | C82: Preisblatt 1 | E82: 45.0307 | H82: 45.03
A83: E1006601S725010030400070167100001 | B83: Sg-vNNe--SpE07 | C83: Preisblatt 1 | E83: 37.6942 | H83: 37.69
A84: E1006601S725010041550040291300001 | B84: Sg-vNNe--SpE07 | C84: Preisblatt 1 | E84: 58.5044 | H84: 58.5
A85: E1006601S725010022800170128600001 | B85: Sg-vNNe--SpE07 | C85: Preisblatt 1 | E85: 38.6925 | H85: 38.69
A86: E1006601S725010022900030129800001 | B86: Sg-vNNe--SpE07 | C86: Preisblatt 1 | E86: 31.9322 | H86: 31.93
A87: E1006601S725010022900030129700001 | B87: Sg-vNNe--SpE07 | C87: Preisblatt 1 | E87: 32.3074 | H87: 32.31
A88: E1006601S725010022700310125400001 | B88: Sg-vNNe--SpE07 | C88: Preisblatt 1 | E88: 38.3106 | H88: 38.31
A89: E1006601S725010031100040188300001 | B89: Sg-vNNe--SpE07 | C89: Preisblatt 1 | E89: 30.6324 | H89: 30.63
A90: E1006601S725010021200030087200001 | B90: Sg-vNNe--SpE07 | C90: Preisblatt 1 | E90: 75.5023 | H90: 75.5
A91: E1006601S725010041400050289000001 | B91: Sg-vNNe--SpE07 | C91: Preisblatt 1 | E91: 96.0311 | H91: 96.03
A92: E1006601S725010041600060296800001 | B92: Sg-vNNe--SpE07 | C92: Preisblatt 1 | E92: 73.2645 | H92: 73.26
A93: E1006601S725010041600040298200001 | B93: Sg-vNNe--SpE07 | C93: Preisblatt 1 | E93: 205.0602 | H93: 205.06
A94: E1006601S725010022400060111700001 | B94: Sg-vNNe--SpE07 | C94: Preisblatt 1 | E94: 92.8955 | H94: 92.9
A95: E1006601S725010040900420000700001 | B95: Sg-vNNe--SpE07 | C95: Preisblatt 1 | E95: 329.8075 | H95: 329.81
A96: E1006601S725010020300100064200001 | B96: Sg-vNNe--SpE07 | C96: Preisblatt 1 | E96: 50.5515 | H96: 50.55
A97: E1006601S725010030800060184200001 | B97: Sg-vNNe--SpE07 | C97: Preisblatt 1 | E97: 17.956 | H97: 17.96
A98: E1006601S725010023600210146900001 | B98: Sg-vNNe--SpE07 | C98: Preisblatt 1 | E98: 111.0391 | H98: 111.04
A99: E1006601S725010030500010171400001 | B99: Sg-vNNe--SpE07 | C99: Preisblatt 1 | E99: 40.5082 | H99: 40.51
A100: E1006601S725010040900440272500001 | B100: Sg-vNNe--SpE07 | C100: Preisblatt 1 | E100: 442.535 | H100: 442.54
A101: E1006601S725010030500010171500001 | B101: Sg-vNNe--SpE07 | C101: Preisblatt 1 | E101: 40.5015 | H101: 40.5
A102: E1006601S725010023100140403100001 | B102: Sg-vNNe--SpE07 | C102: Preisblatt 1 | E102: 202.7822 | H102: 202.78
A103: E1006601S725010022300070110200001 | B103: Sg-vNNe--SpE07 | C103: Preisblatt 1 | E103: 81.6596 | H103: 81.66
A104: E1006601S725010022700240358500001 | B104: Sg-vNNe--SpE07 | C104: Preisblatt 1 | E104: 67.8241 | H104: 67.82
A105: E1006601S725010023100090405700001 | B105: Sg-vNNe--SpE07 | C105: Preisblatt 1 | E105: 84.621 | H105: 84.62
A106: E1006601S725010042900080389900001 | B106: Sg-vNNe--SpE07 | C106: Preisblatt 1 | E106: 22.5388 | H106: 22.54
A107: E1006601S725010040900790278100001 | B107: Sg-vNNe--SpE07 | C107: Preisblatt 1 | E107: 70.1423 | H107: 70.14
A108: E1006601S725010031600100215500001 | B108: Sg-vNNe--SpE07 | C108: Preisblatt 1 | E108: 61.3854 | H108: 61.39
A109: E1006601S725010041550450295600001 | B109: Sg-vNNe--SpE07 | C109: Preisblatt 1 | E109: 64.4808 | H109: 64.48
A110: E1006601S725010031550090197300001 | B110: Sg-vNNe--SpE07 | C110: Preisblatt 1 | E110: 92.5806 | H110: 92.58
A111: E1006601S725010041200040282000001 | B111: Sg-vNNe--SpE07 | C111: Preisblatt 1 | E111: 165.0009 | H111: 165
A112: E1006601S725010020300150065000001 | B112: Sg-vNNe--SpE07 | C112: Preisblatt 1 | E112: 124.3922 | H112: 124.39
A113: E1006601S725010020300150065100001 | B113: Sg-vNNe--SpE07 | C113: Preisblatt 1 | E113: 59.3821 | H113: 59.38
A114: E1006601S725010020800130076900001 | B114: Sg-vNNe--SpE07 | C114: Preisblatt 1 | E114: 161.8653 | H114: 161.87
A115: E1006601S725010040200060000100001 | B115: Sg-vNNe--SpE07 | C115: Preisblatt 1 | E115: 65.0905 | H115: 65.09
A116: E1006601S725010023700030147700001 | B116: Sg-vNNe--SpE07 | C116: Preisblatt 1 | E116: 71.9513 | H116: 71.95
A117: E1006601S725010020200150059000001 | B117: Sg-vNNe--SpE07 | C117: Preisblatt 1 | E117: 42.8666 | H117: 42.87
A118: E1006601S725010041550190293300001 | B118: Sg-vNNe--SpE07 | C118: Preisblatt 1 | E118: 62.9063 | H118: 62.91
A119: E1006601S725010041600040298300001 | B119: Sg-vNNe--SpE07 | C119: Preisblatt 1 | E119: 69.345 | H119: 69.35
A120: E1006601S725010023500140143000001 | B120: Sg-vNNe--SpE07 | C120: Preisblatt 1 | E120: 93.0965 | H120: 93.1
A121: E1006601S725010023100220000100001 | B121: Sg-vNNe--SpE07 | C121: Preisblatt 1 | D121: 567.52 | E121: 597.1107 | H121: 1164.63
A122: E1006601S725010020350020000200001 | B122: Sg-vNNe--SpE07 | C122: Preisblatt 1 | D122: 576.94 | E122: 741.489 | H122: 1318.43
A123: E1006601S725010020350100065300001 | B123: Sg-vNNe--SpE07 | C123: Preisblatt 1 | D123: 0 | E123: 426.187 | H123: 426.19
A124: E1006601S725010042500100317400001 | B124: Sg-vNNe--SpE07 | C124: Preisblatt 1 | E124: 72.4672 | H124: 72.47
A125: E1006601S725010021100030085200001 | B125: Sg-vNNe--SpE07 | C125: Preisblatt 1 | E125: 52.3136 | H125: 52.31
A126: E1006601S725010031600060215000001 | B126: Sg-vNNe--SpE07 | C126: Preisblatt 1 | E126: 62.4842 | H126: 62.48
A127: E1006601S725010041550140292700001 | B127: Sg-vNNe--SpE07 | C127: Preisblatt 1 | E127: 99.3543 | H127: 99.35
A128: E1006601S725010024000060151400001 | B128: Sg-vNNe--SpE07 | C128: Preisblatt 1 | E128: 44.8029 | H128: 44.8
A129: E1006601S725010010100080000100001 | B129: Sg-vNNe--SpE07 | C129: Preisblatt 1 | E129: 23.0815 | H129: 23.08
A130: E1006601S725010030300210163900001 | B130: Sg-vNNe--SpE07 | C130: Preisblatt 1 | E130: 49.0641 | H130: 49.06
A131: E1006601S725010030400080167200001 | B131: Sg-vNNe--SpE07 | C131: Preisblatt 1 | E131: 51.9116 | H131: 51.91
A132: E1006601S725010022200080109300001 | B132: Sg-vNNe--SpE07 | C132: Preisblatt 1 | E132: 72.3734 | H132: 72.37
A133: E1006601S725010031100250191100001 | B133: Sg-vNNe--SpE07 | C133: Preisblatt 1 | E133: 39.3625 | H133: 39.36
A134: E1006601S725010041700160300700001 | B134: Sg-vNNe--SpE07 | C134: Preisblatt 1 | E134: 23.6845 | H134: 23.68
A135: E1006601S725010040600020250000001 | B135: Sg-vNNe--SpE07 | C135: Preisblatt 1 | D135: 0 | E135: 562.6794 | H135: 562.68
A136: E1006601S725010022000070104000001 | B136: Sg-vNNe--SpE07 | C136: Preisblatt 1 | E136: 26.8804 | H136: 26.88
A137: E1006601S725010023100220000300001 | B137: Sg-vNNe--SpE07 | C137: Preisblatt 1 | D137: 2664.28 | E137: 3354.5292 | H137: 6018.81
A138: E1006601S725010042000110307200001 | B138: Sg-vNNe--SpE07 | C138: Preisblatt 1 | E138: 56.2063 | H138: 56.21
A139: E1006601S725010022600290118700001 | B139: Sg-vNNe--SpE07 | C139: Preisblatt 1 | E139: 17.2793 | H139: 17.28
A140: E1006601S725010022200070000200001 | B140: Sg-vNNe--SpE05 | C140: Preisblatt 2 | D140: 0 | E140: 558.09856 | H140: 558.1
A141: E1006001S725010021800030363100001 | B141: Sg-vNNe--SpE07 | C141: Preisblatt 1 | E141: 15.9661 | H141: 15.97
A142: E1006601S725010023100060000200001 | B142: Sg-vNNe--SpE07 | C142: Preisblatt 1 | E142: 203.6599 | H142: 203.66
A143: E1006601S725010041500070290100001 | B143: Sg-vNNe--SpE07 | C143: Preisblatt 1 | E143: 72.6816 | H143: 72.68
A144: E1006601S725010040900790278200001 | B144: Sg-vNNe--SpE07 | C144: Preisblatt 1 | E144: 156.8537 | H144: 156.85
A145: E1006001S725010023700050000100001 | B145: Sg-vNNe--SpE07 | C145: Preisblatt 1 | E145: 81.6261 | H145: 81.63
A146: E1006601S725010041600020296200001 | B146: Sg-vNNe--SpE07 | C146: Preisblatt 1 | E146: 174.066 | H146: 174.07
A147: E1006601S725010041550050291400001 | B147: Sg-vNNe--SpE07 | C147: Preisblatt 1 | E147: 81.3045 | H147: 81.3
A148: E1006601S725010021800080100600001 | B148: Sg-vNNe--SpE07 | C148: Preisblatt 1 | E148: 53.8948 | H148: 53.89
A149: E1006601S725010022400110111500001 | B149: Sg-vNNe--SpE07 | C149: Preisblatt 1 | E149: 80.2258 | H149: 80.23
A150: E1006001S725010020900150082800001 | B150: Sg-vNNe--SpE07 | C150: Preisblatt 1 | E150: 135.4673 | H150: 135.47
A151: E1006001S725010022700070120500001 | B151: Sg-vNNe--SpE07 | C151: Preisblatt 1 | E151: 62.9666 | H151: 62.97
A152: E1006001S725010030500030171800001 | B152: Sg-vNNe--SpE07 | C152: Preisblatt 1 | E152: 43.7242 | H152: 43.72
A153: E1006001S725010042700120319600001 | B153: Sg-vNNe--SpE07 | C153: Preisblatt 1 | E153: 72.9429 | H153: 72.94
A154: E1006001S725010024200060000200001 | B154: Sg-vNNe--SpE07 | C154: Preisblatt 1 | E154: 59.4357 | H154: 59.44
A155: E1006001S725010011300060051900001 | B155: Sg-vNNe--SpE07 | C155: Preisblatt 1 | E155: 107.0526 | H155: 107.05
A156: E1006001S725010020800080076100001 | B156: Sg-vNNe--SpE07 | C156: Preisblatt 1 | E156: 77.5592 | H156: 77.56
A157: E1006001S725010022100190108200001 | B157: Sg-vNNe--SpE07 | C157: Preisblatt 1 | E157: 21.2256 | H157: 21.23
A158: E1006001S725010020800250079200001 | B158: Sg-vNNe--SpE07 | C158: Preisblatt 1 | E158: 43.0609 | H158: 43.06
A159: E1006001S725010021000130084900001 | B159: Sg-vNNe--SpE07 | C159: Preisblatt 1 | E159: 88.1653 | H159: 88.17
A160: E1006001S725010023100050135800001 | B160: Sg-vNNe--SpE07 | C160: Preisblatt 1 | E160: 158.1803 | H160: 158.18
A161: E1006001S725010031000010186300001 | B161: Sg-vNNe--SpE07 | C161: Preisblatt 1 | E161: 29.1584 | H161: 29.16
A162: E1006001S725010022900020366400001 | B162: Sg-vNNe--SpE07 | C162: Preisblatt 1 | E162: 74.7452 | H162: 74.75
A163: E1006001S725010022900060130300001 | B163: Sg-vNNe--SpE07 | C163: Preisblatt 1 | E163: 181.9117 | H163: 181.91
A164: E1006001S725010041700040299200001 | B164: Sg-vNNe--SpE07 | C164: Preisblatt 1 | E164: 55.543 | H164: 55.54
A165: E1006001S725010042000120000500001 | B165: Sg-vNNe--SpE07 | C165: Preisblatt 1 | E165: 42.3507 | H165: 42.35
A166: E1006001S725010042900070417700001 | B166: Sg-vNNe--SpE07 | C166: Preisblatt 1 | E166: 53.4124 | H166: 53.41
A167: E1006001S725010021200090088700001 | B167: Sg-vNNe--SpE07 | C167: Preisblatt 1 | E167: 25.0178 | H167: 25.02
A168: E1006001S725010031400040202900001 | B168: Sg-vNNe--SpE07 | C168: Preisblatt 1 | E168: 62.7723 | H168: 62.77
A169: E1006001S725010042700210000300001 | B169: Sg-vNNe--SpE07 | C169: Preisblatt 1 | E169: 75.8306 | H169: 75.83
A170: E1006001S725010023800070149100001 | B170: Sg-vNNe--SpE07 | C170: Preisblatt 1 | E170: 53.265 | H170: 53.27
A171: E1006001S725010042100200312600001 | B171: Sg-vNNe--SpE07 | C171: Preisblatt 1 | E171: 33.1047 | H171: 33.1
A172: E1006001S725010042200060314100001 | B172: Sg-vNNe--SpE07 | C172: Preisblatt 1 | E172: 24.3009 | H172: 24.3
A173: E1006001S725010022100220000200001 | B173: Sg-vNNe--SpE07 | C173: Preisblatt 1 | E173: 38.3039 | H173: 38.3
A174: E1006001S725010023500240144600001 | B174: Sg-vNNe--SpE07 | C174: Preisblatt 1 | E174: 69.2378 | H174: 69.24
A175: E1006001S725010020400040065800001 | B175: Sg-vNNe--SpE07 | C175: Preisblatt 1 | E175: 57.4592 | H175: 57.46
A176: E1006001S725010022700190122600001 | B176: Sg-vNNe--SpE07 | C176: Preisblatt 1 | E176: 17.4937 | H176: 17.49
A177: E1006001S725010023600110410000001 | B177: Sg-vNNe--SpE07 | C177: Preisblatt 1 | E177: 4.2143 | H177: 4.21
A178: E1006001S725010020600130072200001 | B178: Sg-vNNe--SpE07 | C178: Preisblatt 1 | E178: 50.8396 | H178: 50.84
A179: E1006001S725010021300320093100001 | B179: Sg-vNNe--SpE07 | C179: Preisblatt 1 | E179: 127.6953 | H179: 127.7
A180: E1006001S725010042200010313800001 | B180: Sg-vNNe--SpE07 | C180: Preisblatt 1 | E180: 68.474 | H180: 68.47
A181: E1006001S725010040900350270800001 | B181: Sg-vNNe--SpE07 | C181: Preisblatt 1 | E181: 76.822602 | H181: 76.82
A182: E1006001S725010022400090111200001 | B182: Sg-vNNe--SpE07 | C182: Preisblatt 1 | E182: 44.1128 | H182: 44.11
A183: E1006001S725010023500050000300001 | B183: Sg-vNNe--SpE07 | C183: Preisblatt 1 | E183: 43.6505 | H183: 43.65
A184: E1006001S725010042100150418200001 | B184: Sg-vNNe--SpE07 | C184: Preisblatt 1 | E184: 32.0327 | H184: 32.03
A185: E1006001S725010024200040414700001 | B185: Sg-vNNe--SpE07 | C185: Preisblatt 1 | E185: 50.8463 | H185: 50.85
A186: E1006001S725010020300030063100001 | B186: Sg-vNNe--SpE07 | C186: Preisblatt 1 | E186: 29.7547 | H186: 29.75
A187: E1006001S725010040900630275800001 | B187: Sg-vNNe--SpE07 | C187: Preisblatt 1 | E187: 34.3643 | H187: 34.36
A188: E1006001S725010021900080101800001 | B188: Sg-vNNe--SpE07 | C188: Preisblatt 1 | E188: 23.6175 | H188: 23.62
A189: E1006001S725010031600130000100001 | B189: Sg-vNNe--SpE07 | C189: Preisblatt 1 | E189: 34.2839 | H189: 34.28
A190: E1006001S725010023500420000400001 | B190: Sg-vNNe--SpE07 | C190: Preisblatt 1 | E190: 12.328 | H190: 12.33
A191: E1006001S725010024100110000300001 | B191: Sg-vNNe--SpE07 | C191: Preisblatt 1 | E191: 15.9125 | H191: 15.91
A192: E1006001S725010024200110000300001 | B192: Sg-vNNe--SpE07 | C192: Preisblatt 1 | E192: 0 | H192: 0
A193: E1006001S725010041600110000100001 | B193: Sg-vNNe--SpE07 | C193: Preisblatt 1 | E193: 0.0737 | H193: 0.07
A194: E1006001S725010031600110000100001 | B194: Sg-vNNe--SpE07 | C194: Preisblatt 1 | E194: 0 | H194: 0

Sheet MPM_anzulegender_Wert
C1: =Deckblatt!H1 -> 24.03.2015
A3: Netzbetreiber : | B3: =Deckblatt!C11 -> Gammertinger Energie- u. Wasserversorgung GmbH
A5: Angaben zur Berechnung des anzulegenden Werts nach § 33 h EEG für die Berechnung der Marktprämie
A7: Anlagenschlüssel | B7: Vergütungskategorie | C7: erzeugte Strommenge in der jeweiligen Kategorie [kWh] | D7: theoretisch auszuzahlende EEG-Mindestvergütung für Kategorien ohne festen Vergütungssatz [€] | E7: Vergütungssatz der angegebenen Kategorie [ct/kWh] | F7: Berechnete theoretisch auszuzahlende EEG-Mindestvergütung [€]
B8: Vergütungskategorien, die mit dem Anlagenbetreiber abgerechnet worden wären, wenn die Anlage in der Festvergütung vergütet worden wäre. | C8: Erzeugte Strommenge in der jeweiligen Kategorie für die Zeit, in der die Anlage in der Direktvermarktung nach § 33b Nr. 1 EEG (Markprämie) war. Vergütungskürzungen bei Nichteinhaltung von § 27 Abs. 3 und 4, § 27a Abs. 2 sowie § 27c Abs. 3 EEG sind hier nicht zu berücksichtigen. | D8: Pflichtfeld bei Kategorien, die mit Marktwert zu vergüten sind (Kategorien die auf "MW" enden)

Sheet MPM_Monatswerte
D1: =Deckblatt!H1 -> 24.03.2015
A3: Netzbetreiber : | B3: =Deckblatt!C11 -> Gammertinger Energie- u. Wasserversorgung GmbH
A5: Anlagenschlüssel | B5: Marktprämienkategorie bzw. Kategorie für Entfall der Marktprämie | C5: erzeugte Strommenge im zur Kategorie gehörigen Monat bzw. in der jeweiligen Kategorie [kWh] | D5: Bemerkungen | E5: monats- und anlagenspezifischer anzulegender Wert gemäß § 33 h EEG [ct/kWh] | F5: berechneter jahres- und anlagenspezifischer anzulegender Wert [ct/kWh] | G5: berechnete Marktprämie [€]
D6: bspw. Angabe der Monate in denen ein Entfall der Marktprämie angesetzt wurde | E6: Angabe nur dann erforderlich, wenn sich die theoretische EEG-Vergütung einer Anlage während dem Jahr geändert hat oder wenn sich durch die Berechnung Rundungsdifferenzen zu den von Ihren Systemen berechneten Werten ergeben (Nur Werte innerhalb der Rundungstoleranz zulässig). | F6: gemäß Tabellenblatt "MPM_anzulegender Wert" (bzw. bei ganzjähriger Verringerung der Vergütung auf den Marktwert der jeweilige Marktwert)

Sheet Flexibilitätsvergütung
E1: =Deckblatt!H1 -> 24.03.2015
A3: Netzbetreiber : | B3: =Deckblatt!C11 -> Gammertinger Energie- u. Wasserversorgung GmbH
A5: Anlagenschlüssel | B5: Vergütungskategorie | C5: erzeugte Strommenge in der jeweiligen Kategorie [kWh] | D5: Zusatzleistung [kW] | E5: Flexibilitätsvergütung [€]
A6: Pflichtfeld | B6: Pflichtfeld | C6: nur erforderlich bei Flexibilitätsprämie | D6: nur erforderlich bei Flexibilitätsprämie | E6: Pflichtfeld

Sheet Nachträgliche_Korrekturen
I1: =Deckblatt!H1 -> 24.03.2015
A3: Netzbetreiber : | B3: =Deckblatt!C11 -> Gammertinger Energie- u. Wasserversorgung GmbH
A5: Anlagenschlüssel | B5: A: Grund für die nachträgliche Korrektur | C5: B: betrifft Abrechnung (Jahr) [JJJJ] | D5: C: ggf. Name [Gericht/Notar] | E5: D: Aktenzeichen/Urkundennummer | F5: Strommenge [kWh] | G5: finanzielle Förderung vor Abzug der vNE [EUR] | H5: vNE [EUR] | I5: finanzielle Förderung nach Abzug der vNE [EUR]

Sheet MPM_Ergebnissblatt
J1: =Deckblatt!H1 -> 24.03.2015
A3: Netzbetreiber : | B3: =Deckblatt!C11 -> Gammertinger Energie- u. Wasserversorgung GmbH
A5: Anlagenschlüssel | B5: Marktprämie [€] | C5: Marktprämie [€] | D5: Marktprämie [€] | E5: Marktprämie [€] | F5: Marktprämie [€] | G5: Marktprämie [€] | H5: Marktprämie [€] | I5: Marktprämie [€] | J5: Marktprämie [€] | K5: Marktprämie [€] | L5: Marktprämie [€] | M5: Marktprämie [€] | N5: Marktprämie gesamt [€]
B6: Januar | C6: Februar | D6: März | E6: April | F6: Mai | G6: Juni | H6: Juli | I6: August | J6: September | K6: Oktober | L6: November | M6: Dezember | N6: 2014

Sheet Marktwerte
A1: Monat | B1: Januar | C1: Februar | D1: März | E1: April | F1: Mai | G1: Juni | H1: Juli | I1: August | J1: September | K1: Oktober | L1: November | M1: Dezember
B2: 2014 | C2: 2014 | D2: 2014 | E2: 2014 | F2: 2014 | G2: 2014 | H2: 2014 | I2: 2014 | J2: 2014 | K2: 2014 | L2: 2014 | M2: 2014
A3: MW-EPEX (Marktwert-EPEX) | B3: 3.587 | C3: 3.359 | D3: 3.105 | E3: 3.158 | F3: 3.063 | G3: 3.152 | H3: 3.188 | I3: 2.793 | J3: 3.479 | K3: 3.523 | L3: 3.637 | M3: 3.289
A5: MW Wind (Marktwert Wind) | B5: 3.066 | C5: 2.925 | D5: 2.324 | E5: 2.703 | F5: 2.713 | G5: 2.907 | H5: 3.115 | I5: 2.264 | J5: 3.379 | K5: 3.066 | L5: 3.273 | M5: 2.433
A6: PM Wind (Managementprämie Wind) | B6: 0.45 | C6: =$B6 -> 0.45 | D6: =$B6 -> 0.45 | E6: 0.45 | F6: 0.45 | G6: 0.45 | H6: 0.45 | I6: 0.45 | J6: 0.45 | K6: 0.45 | L6: 0.45 | M6: 0.45
A7: PM Wind fst. (Managementprämie Wind fernsteuerbar) | B7: 0.6 | C7: =$B7 -> 0.6 | D7: 0.6 | E7: 0.6 | F7: 0.6 | G7: 0.6 | H7: 0.6 | I7: 0.6 | J7: 0.6 | K7: 0.6 | L7: 0.6 | M7: 0.6
A8: RW Wind (Referenzmarktwert Wind) | B8: =B5-B6 -> 2.616 | C8: =C5-C6 -> 2.475 | D8: 1.874 | E8: 2.253 | F8: 2.263 | G8: 2.457 | H8: 2.665 | I8: 1.814 | J8: 2.929 | K8: 2.616 | L8: 2.823 | M8: 1.983
A9: RW Wind (Referenzmarktwert Wind fernsteuerbar) | B9: =B5-B7 -> 2.466 | C9: =C5-C7 -> 2.325 | D9: 1.724 | E9: 2.103 | F9: 2.113 | G9: 2.307 | H9: 2.515 | I9: 1.664 | J9: 2.779 | K9: 2.466 | L9: 2.673 | M9: 1.833
A11: MW Solar (Marktwert Solar) | B11: 3.872 | C11: 3.311 | D11: 2.902 | E11: 3.096 | F11: 3.039 | G11: 3.258 | H11: 3.311 | I11: 2.749 | J11: 3.618 | K11: 3.572 | L11: 3.72 | M11: 3.553
A12: PM Solar (Managementprämie Solar) | B12: =B6 -> 0.45 | C12: =$B12 -> 0.45 | D12: =$B12 -> 0.45 | E12: 0.45 | F12: 0.45 | G12: 0.45 | H12: 0.45 | I12: 0.45 | J12: 0.45 | K12: 0.45 | L12: 0.45 | M12: 0.45
A13: PM Solar fst. (Managementprämie Solar fernsteuerbar) | B13: =B7 -> 0.6 | C13: =$B13 -> 0.6 | D13: 0.6 | E13: 0.6 | F13: 0.6 | G13: 0.6 | H13: 0.6 | I13: 0.6 | J13: 0.6 | K13: 0.6 | L13: 0.6 | M13: 0.6
A14: RW Solar (Referenzmarktwert Solar) | B14: =B11-B12 -> 3.422 | C14: 2.861 | D14: 2.452 | E14: 2.646 | F14: 2.589 | G14: 2.808 | H14: 2.861 | I14: 2.299 | J14: 3.168 | K14: 3.122 | L14: 3.27 | M14: 3.103
A15: RW Solar (Referenzmarktwert Solar fernsteuerbar) | B15: =B11-B13 -> 3.272 | C15: 2.711 | D15: 2.302 | E15: 2.496 | F15: 2.439 | G15: 2.658 | H15: 2.711 | I15: 2.149 | J15: 3.018 | K15: 2.972 | L15: 3.12 | M15: 2.953
A17: MW steuerbar (Marktwert steuerbar) | B17: =B3 -> 3.587 | C17: 3.359 | D17: 3.105 | E17: 3.158 | F17: 3.063 | G17: 3.152 | H17: 3.188 | I17: 2.793 | J17: 3.479 | K17: 3.523 | L17: 3.637 | M17: 3.289
A18: PM steuerbar (Managementprämie steuerbar) | B18: 0.25 | C18: =$B18 -> 0.25 | D18: =$B18 -> 0.25 | E18: 0.25 | F18: 0.25 | G18: 0.25 | H18: 0.25 | I18: 0.25 | J18: 0.25 | K18: 0.25 | L18: 0.25 | M18: 0.25
A19: PM steuerbar (Managementprämie fernsteuerbar) | B19: =B18 -> 0.25 | C19: =$B19 -> 0.25 | D19: 0.25 | E19: 0.25 | F19: 0.25 | G19: 0.25 | H19: 0.25 | I19: 0.25 | J19: 0.25 | K19: 0.25 | L19: 0.25 | M19: 0.25
A20: RW steuerbar (Referenzmarktwert steuerbar) | B20: =B17-B18 -> 3.337 | C20: 3.109 | D20: 2.855 | E20: 2.908 | F20: 2.813 | G20: 2.902 | H20: 2.938 | I20: 2.543 | J20: 3.229 | K20: 3.273 | L20: 3.387 | M20: 3.039
A21: RW steuerbar (Referenzmarktwert steuerbar fernsteuerbar) | B21: =B17-B19 -> 3.337 | C21: 3.109 | D21: 2.855 | E21: 2.908 | F21: 2.813 | G21: 2.902 | H21: 2.938 | I21: 2.543 | J21: 3.229 | K21: 3.273 | L21: 3.387 | M21: 3.039
A25: Legende:
A26: erfasste Daten
A27: berechnete Daten

Sheet Erläuterungen Kategorien
A1: Erläuterungen zur EEG-Vergütungskategorientabelle bis einschl. Inbetriebnahmejahr 2011
A2: Informationen zu den Vergütungskategorien auf der gemeinsamen Internetseite der vier Übertragungsnetzbetreiber: www.eeg-kwk.net
A3: Bedeutung der farblichen Hinterlegung der Einträge:
A4: weiß | B4: Vergütungskategorie stimmt mit bisheriger Kategorie nach EEG 2004 überein
A5: grün | B5: Vergütungskategorie bestand bereits nach EEG 2004, Vergütung wird ab 1.1.2009 erhöht
A6: gelb | B6: Vergütungskategorie ist neu nach EEG 2009
A7: orange | B7: Vergütungskategorie ist 2012/2013 neu nach EEG 2009
A8: rosa | B8: Vergütungskategorie ist 2012 neu nach EEG 2012, nur auf Anlagen mit Inbetriebnahme nach 31.12.2011 anwendbar
A9: braun | B9: Vergütungskategorie ist 2012 neu nach EEG 2012, auch auf Anlagen mit Inbetriebnahme vor 1.1.2012 anwendbar
A10: rosa / braun | B10: Vergütungskategorie ist 2012 neu nach EEG 2012, Anwendbarkeit auf Anlagen mit Inbetriebnahme vor 1.1.2012 unsicher
A11: violett | B11: Vergütungskategorie ist 2012 neu nach EEG 2012 in der am 29.06.2012 beschlossenen Fassung (sogenannte PV-Novelle)
A12: blau | B12: Vergütungskategorie ist 2013 neu nach EEG 2012 und/oder der Managementprämienverordnung (MaPrV)
A13: blassblau | B13: Vergütungskategorie ist 2013 ergänzt worden
A15: Anmerkung: | B15: Sofern eine Unterscheidung zwischen dem EEG 2012 in der vom 01.01.2012 bis 31.03.2012 geltenden alten Fassung und der ab 01.04.2012 gelten neuen Fassung erforderlich ist, ist dies durch die Verwendung von EEG 2012 a.F. bzw. EEG 2012 n.F. gekennzeichnet.
A17: Bonusregeln für Anlagen bis einschließlich Inbetriebnahmejahr 2008
A18: aus EEG 2004 und EEG 2009
A19: Bonusregel a1: (§ 8 Abs. 2 Satz 1 EEG 2004) in Höhe von 6,0 ct/kWh für den Anteil der eingespeisten Wirkarbeit bis einschließlich 500 kW
A21: Bonusregel a2: (§ 8 Abs. 2 Satz 1 EEG 2004) in Höhe von 4,0 ct/kWh für den Anteil der eingespeisten Wirkarbeit oberhalb von 500 kW bis einschließlich 5 MW
A23: Bonusregeln a1 und a2 jeweils bei Anlagen mit ausschließlichem Einsatz von Biomasse aus: (a) Pflanzen oder Pflanzenbestandteilen ohne Aufbereitung im Sinne von § 8 Abs. 2 Satz 1 Nr. 1 EEG, (b) Gülle und Schlempe im Sinne von § 8 Abs. 2 Satz 1 Nr. 1 EEG oder (c) Stoffgemisch aus (a) und (b) sofern ein Tagebuch über den ausschließlichen Einsatz dieser Stoffe geführt wird oder eine Genehmigung der Anlage für den ausschließlichen Einsatz dieser Stoffe vorliegt, sowie keine Biomasseanlagen auf demselben Gelände betrieben werden, in denen Strom aus sonstigen Stoffen gewonnen wird.
A25: Bonusregel a3: (§ 8 Abs. 2 Satz 2 EEG 2004) in Höhe von 2,5 ct/kWh bei Verbrennung von Holz für den Anteil oberhalb von 500 kW bis einschließlich 5 MW.
A27: Weitere Nawaro-Bonusregeln G, M1, M2, L, X1, X2: siehe Erläuterungen unten für Inbetriebnahmejahre ab 2009.
A29: Bonusregel b: (§ 8 Abs. 4 EEG 2004) in Höhe von 2,0 ct/kWh für Anlagen, die auch in Kraft-Wärmekopplung betrieben werden, bei ausschließlicher Verwendung von Biomasse gemäß Biomasseverordnung und Umwandlung der Biomasse durch thermochemische Vergasung oder Trockenfermentation oder Aufarbeitung des Biogases auf Erdgasqualität oder Erzeugung des Stroms mittels Brennstoffzelle, Gasturbine, Dampfmotoren, Organic-Rankine-Anlagen, Mehrstoffgemisch-Anlagen (u.a. Kalina-Cycle-Anlagen) bzw. Stirling-Motoren für den Anteil bis einschließlich 5 MW.
A31: KWK-Bonusregeln (KWK, KA3, K09, K10, K11 und K12): Bonus KWK (§ 8 Abs. 3 EEG 2004) in Höhe von 2,0 ct/kWh bei ausschließlicher Verwendung von Biomasse gemäß Biomasseverordnung für Anlagen, die KWK-Anlage gemäß FW 308 sind und dies entsprechend nachweisen. Die Bonusregel gilt nur für den KWK-Anteil des erzeugten elektrischen Stroms. Bonus K09, K10, K11 und K12 (§ 66 Abs. 1 Nr. 3 Satz 1 EEG 2009): Für Biomasseanlagen, die vor dem 01.01.2009 in Betrieb genommen wurden und die nach dem 31.12.2008 erstmals in Kraft-Wärme-Kopplung nach Maßgabe der Anlage 3 zum EEG 2009 betrieben wurden, beträgt der KWK-Bonus 3,00 ct/kWh bei erstmaligem KWK-Betrieb in 2009 (Bonus K09), 2,97 ct/kWh bei erstmaligem KWK-Betrieb in 2010 (Bonus K10), 2,94 ct/kWh bei erstmaligem KWK-Betrieb in 2011 (Bonus K11) und 2,91 ct/kWh bei erstmaligem KWK-Betrieb in 2012 (Bonus K12). Bonus KA3 (§ 66 Abs. 1 Nr. 3 Satz 2 EEG 2009): Für Strom aus sonstigen Biomasseanlagen mit Inbetriebnahme vor dem 01.01.2009, der in Kraft-Wärme-Kopplung nach Maßgabe der Anlage 3 zum EEG 2009 erzeugt worden ist, beträgt der KWK-Bonus bis einschließlich einer Leistung von 500 Kilowatt 3,0 ct/kWh.
A33: Bonusregel y: (§ 66 Abs.1 Nr. 4a EEG 2009) Strom aus Biomasseanlagen bis zu einer Anlagenleistung von 500 KW, die Biogas einsetzen, erhalten eine um 1,0 ct/kWh höhere Vergütung, wenn entsprechende Formaldehydgrenzwerte nach TA Luft eingehalten werden (Bonus y).
A35: Bonusregel S: (§ 66 Abs. 1 Nr. 6 EEG 2009) Windenergieanlagen, die nach dem 31.12.2001 und vor dem 01.01.2009 in Betrieb genommen worden sind, erhalten einen Systemdienstleistungsbonus von 0,7 ct/kWh, wenn sie infolge einer Nachrüstung vor dem 01.01.2011 die Anforderungen der Verordnung nach § 64 Abs. 1 Nr. 1 EEG 2009 erstmals einhalten.
A38: Bonusregeln für Anlagen mit Inbetriebnahmejahr 2009, 2010, 2011, 2012
A39: aus EEG 2009
F40: Bonushöhe
A41: Bonusbezeichnung | B41: Beschreibung | C41: Einschränkung | D41: gesetzliche Norm | F41: IB in 2009 | G41: IB in 2010 | H41: IB in 2011 | I41: IB in 2012
A42: Immissionsbonus | C42: Biomasse
A43: i | B43: Immissionsschutzrechtlich genehmigte Anlagen | C43: < 0,5 MW | D43: § 27 Abs. 5 EEG | F43: 1 | G43: 0.99 | H43: 0.98
A45: Technologiebonus | C45: Deponiegas, Klärgas, Grubengas (nur t3), Biomasse
A46: t1 | B46: Technologiebonus Gasaufbereitung; | C46: < 5 MW, 0-350 Normkubikmeter pro Std. | D46: § 27 Abs. 4 Satz 1 Nr. 1 EEG; Anlage 1 Punkt I., 2a | F46: 2 | G46: 1,98 (Biom.) 1,97 (Gase) | H46: 1,96 (Biom.) 1,94 (Gase)
A47: t2 | B47: Technologiebonus Gasaufbereitung; | C47: < 5 MW, 350-700 Normkubikmeter pro Std. | D47: § 27 Abs. 4 Satz 1 Nr. 1 EEG; Anlage 1 Punkt I., 2b | F47: 1 | G47: 0.99 | H47: 0,98 (Biom.) 0,97 (Gase)
A48: t3 | B48: Technonogiebonus Innovative Anlagentechnik | C48: < 5 MW | D48: § 27 Abs. 4 Satz 1 Nr. 1 EEG; Anlage 1 Punkt II., 2 | F48: 2 | G48: 1,98 (Biom.) 1,97 (Gase) | H48: 1,96 (Biom.) 1,94 (Gase) | I48: 1,94 (Biom.)
A50: Nawarobonus | C50: Biomasse
A51: a1 | B51: Nawarobonus_allgemein | C51: <0,5 MW | D51: § 27 Abs. 4 Satz 1 Nr. 2 EEG; Anlage 2 Punkt VI., 1a (1) | F51: 6 | G51: 5.94 | H51: 5.88 | I51: 5.82
A52: a2 | B52: Nawarobonus_allgemein | C52: 0,5-5 MW | D52: § 27 Abs. 4 Satz 1 Nr. 2 EEG; Anlage 2 Punkt VI., 1a (2) | F52: 4 | G52: 3.96 | H52: 3.92 | I52: 3.88
A53: ah | B53: Nawarobonus_allgemein | C53: 0,5-5 MW; Einschränkung Holz | D53: § 27 Abs. 4 Satz 1 Nr. 2 EEG; Anlage 2 Punkt VI., 1b | F53: 2.5 | G53: 2.48 | H53: 2.45 | I53: 2.43
A55: G | B55: Nawarobonus_Biogas | C55: <0,5 MW; | D55: § 27 Abs. 4 Satz 1 Nr. 2 EEG; Anlage 2 Punkt VI., 2a | F55: 7 | G55: 6.93 | H55: 6.86
A56: M1 | B56: Nawarobonus_Biogas | C56: 0-0,150 MW; Gülleanteil > 30 % | D56: § 27 Abs. 4 Satz 1 Nr. 2 EEG; Anlage 2 Punkt VI., 2b (1) | F56: 11 | G56: 10.89 | H56: 10.78
A57: M2 | B57: Nawarobonus_Biogas | C57: 0,150-0,5 MW; Gülleanteil > 30 % | D57: § 27 Abs. 4 Satz 1 Nr. 2 EEG; Anlage 2 Punkt VI., 2b (2) | F57: 8 | G57: 7.92 | H57: 7.84
A59: L | B59: Nawarobonus_Biogas | C59: 0-0,5 MW; Landschaftspflege | D59: § 27 Abs. 4 Satz 1 Nr. 2 EEG; Anlage 2 Punkt VI., 2c | F59: 9 | G59: 8.91 | H59: 8.82
A60: X1 | B60: Nawarobonus_Biogas | C60: 0-0,150 MW; Landschaftspflege; Gülleanteil > 30 % | D60: § 27 Abs. 4 Satz 1 Nr. 2 EEG; Anlage 2 Punkt VI., 2b (1) und Punkt VI., 2c (Kombination aus Bonus M1 und Bonus L) | F60: 13 | G60: 12.87 | H60: 12.74
A61: X2 | B61: Nawarobonus_Biogas | C61: 0,150-0,5 MW; Landschaftspflege; Gülleanteil > 30 % | D61: § 27 Abs. 4 Satz 1 Nr. 2 EEG; Anlage 2 Punkt VI., 2b (2) und Punkt VI., 2c (Kombination aus Bonus M2 und Bonus L) | F61: 10 | G61: 9.9 | H61: 9.8
A63: KWK-Bonus | C63: Biomasse
A64: K | B64: KWK-Bonus | C64: Anteil KWK-Strom | D64: § 27 Abs. 4 Satz 1 Nr. 3 EEG | F64: 3 | G64: 2.97 | H64: 2.94 | I64: 2.91
A66: Wärmenutzungs-bonus | C66: Geothermie
A67: W | B67: Wärmenutzungsbonus | D67: § 28 Abs. 2 EEG; Anlage 4 | F67: 3 | G67: 2.97 | H67: 2.94
A69: Bonus für Einsatz petrothermaler Technik | C69: Geothermie
A70: P | B70: Bonus petrothermale Technik | D70: § 28 Abs. 3 EEG | F70: 4 | G70: 3.96 | H70: 3.92
A72: Systemdienst-leistungsbonus | C72: Wind
A73: S | B73: Systemdienstleistungs-bonus | D73: § 29 Abs. 2 EEG | F73: 0.5 | G73: 0.5 | H73: 0.49
A78: Hinweise zu den Bezeichnungen der Vergütungskategorien
A79: vgl. auch: Umsetzungshilfe zum EEG 2009, Version 1.1 vom 01.12.2009, Anhang 3, online unter http://www.bdew.de/bdew.nsf/id/DE_EEG-Verfahrensbeschreibun_und_-Umsetzungshilfen
A81: 1. Biomasseanlagen mit Inbetriebnahme bis Ende 2003
A82: und alle anderen Anlagen mit Inbetriebnahme bis Juli 2004
A83: Stellen 1-2: | B83: Energieart:
B84: Wa = Wasser,
B85: Bi = Biomasse,
B86: Ga = Deponie-, Klär- und Grubengas
B87: Ge = Geothermie
B88: Wi = Wind
B89: So = Solarenergie
A90: Stelle 3: | B90: „K“ für Kategorie
A91: Stelle 4 | B91: relevanter Paragraph aus dem EEG 2000:
B92: 4 für Wasserkraft sowie Deponie-, Klär- und Grubengas
B93: 5 für Biomasse
B94: 6 für Geothermie
B95: 7 für Windenergie
B96: 8 für Solarenergie
A97: Stelle 5 | B97: fortlaufende Nummer (i.d.R. entsprechende(r) Satz/ Ziffer innerhalb des Paragraphen) zur Angabe der jeweiligen Vergütungszone
A98: Stelle 6 | B98: „n“ bei Biomasseanlagen für die Vergütungszone 0-150 kW
B99: „a“ sonst
A100: Stellen 7-12 (Biomasse) | B100: Angabe der Bonusregelungen:
B101: Die Kürzel für die gewährten Vergütungsboni werden in den Stellen 7 bis 12 nach und nach in folgender Reihenfolge eingeführt:
B102: 1. NaWaRo-Bonus (a1, a2, a3, G, M1, M2, L, X1 oder X2)
B103: 2. KWK-Bonus (KWK, KA3 oder K09)
B104: 3. Formaldehyd-Bonus (y)
B105: Alle 3 Bonustypen sind – unter Beachtung der verschiedenen Geltungsbereiche (Vergütungszonen) – miteinander kombinierbar.
B106: Weitere, noch freie Stellen werden mit Minuszeichen aufgefüllt.
A107: Stellen 7-12 (außer Biomasse) | B107: Minuszeichen
A108: Stellen 13 bis 14: | B108: Inbetriebnahmejahr (2-stellig)
A111: 2. Biomasseanlagen des Inbetriebnahmezeitraums Januar 2004 bis Ende 2008
A112: und alle anderen Anlagen des Inbetriebnahmezeitraums August 2004 bis Ende 2008
A113: Stellen 1-2: | B113: Energieart (vgl. oben)
A114: Stelle 3: | B114: „K“ für Kategorie
A115: Stelle 4 (Wa, Ga, Bi, Ge) bzw. 4-5 (Wind, Solar) | B115: relevanter Paragraph aus dem EEG 2004:
B116: 6 für Wasserkraft
B117: 7 für Deponie-, Klär- und Grubengas
B118: 8 für Biomasse
B119: 9 für Geothermie
B120: 10 für Windenergie
B121: 11 für Solarenergie
A122: Stelle 5 (Wa, Ga, Bi, Ge) bzw. 6 (Wind, Solar) | B122: fortlaufende Nummer (i.d.R. entsprechende(r) Satz/ Ziffer innerhalb des Paragraphen zur Angabe der einzelnen Vergütungszone
B123: bzw. zur Darstellung weiterer vergütungsrelevanter Angaben:
B124: a) Zuschlag bei Gasen nach EEG 2004
B125: b) Wind: Unterscheidung zwischen Anfangs- und Endvergütung
B126: c) Solarenergie: Fassadenbonus
A127: Stellen 6 bis 12 (Biomasse) | B127: Angabe der Vergütungsboni bei Biomasseanlagen
B128: Die Kürzel für die gewährten Vergütungsboni werden in den Stellen 6 bis 12 nach und nach in folgender Reihenfolge eingeführt:
B129: 1. NaWaRo-Bonus (a1, a2, a3, G, M1, M2, L, X1 oder X2)
B130: 2. Technologiebonus (b)
B131: 3. Formaldehyd-Bonus (y)
B132: 4. KWK-Bonus (KWK, KA3, K09, K10, K11 oder K12)
B133: Alle 4 Bonustypen sind – unter Beachtung der verschiedenen Geltungsbereiche (Vergütungszonen) – miteinander kombinierbar.
B134: Freie Stellen bis Stelle 12 werden mit Minuszeichen aufgefüllt.
A135: Stellen 6 bis 7 (Geothermie) | B135: Angabe der Vergütungsboni bei Geothermieanlagen :
B136: Die Kürzel für die gewährten Vergütungsboni werden in den Stellen 6 bis 7 in folgender Reihenfolge eingeführt:
B137: 1. Wärmenutzungs-Bonus (W)
B138: 2. Bonus für petrothermale Techniken (P)
B139: Die Bonustypen sind miteinander kombinierbar.
B140: Freie Stellen bis Stelle 12 werden mit Minuszeichen aufgefüllt.
A141: Stelle 7 (Windenergie) | B141: Angabe des Systemdienstleistungs-Bonus (SDL-Bonus):
B142: „S“ bei Vorliegen der Voraussetzungen für den SDL-Bonus
B143: Alle weiteren Stellen bis Stelle 12 werden mit Minuszeichen aufgefüllt
A144: Stellen 13 bis 14: | B144: Inbetriebnahmejahr (2-stellig)
A147: 3. Anlagen mit Vergütung nach EEG 2009
A148: Stellen 1-2: | B148: Energieart:
B149: Wa = Wasser,
B150: Bi = Biomasse,
B151: De = Deponiegas (ab Inbetriebnahmejahr 2009)
B152: Kl = Klärgas (ab Inbetriebnahmejahr 2009)
B153: Gr = Grubengas (ab Inbetriebnahmejahr 2009)
B154: Ge = Geothermie
B155: Wn = Wind onshore (ab Inbetriebnahmejahr 2009)
B156: Wr = Wind Repowering (ab Inbetriebnahmejahr 2009)
B157: Wf = Wind offshore (ab Inbetriebnahmejahr 2009)
B158: So = Solarenergie-Freiflächenanlagen
B159: Sg = Solarenergie an oder auf Gebäuden (ab Inbetriebnahmejahr 2009)
A160: Stelle 3: | B160: „K“ für Kategorie
A161: Stellen 4-5 | B161: relevanter Paragraph aus dem EEG 2009:
B162: 23 für Wasserkraft
B163: 24 für Deponiegas
B164: 25 für Klärgas
B165: 26 für Grubengas
B166: 27 für Biomasse
B167: 28 für Geothermie
B168: 29 für Windenergie an Land
B169: 30 für Windenergie an Land Repowering
B170: 31 für Windenergie offshore
B171: 32 für Solarenergie (Freiflächenanlagen)
B172: 33 für Solarenergie an oder auf Gebäuden
A173: Stelle 6 | B173: fortlaufende Nummer (i.d.R. entsprechende(r) Satz/ Ziffer innerhalb des Paragraphen) zur Darstellung der jeweiligen Vergütungszone
B174: oder anderer vergütungsrelevanter Angaben:
B175: a) Wasserkraft: modernisierte Anlage oder Neubau
B176: b) Windenergie: Anfangs- oder Endvergütung
B177: c) Solarenergie: „normale“ Vergütung oder Eigenverbrauch
A178: Stelle 7-8 (Biomasse) | B178: Angabe der Vergütungsboni:
B179: Die Kürzel für die gewährten Vergütungsboni werden in den Stellen 7 bis 12 nach und nach in folgender Reihenfolge eingeführt:
B180: 1. Technologiebonus (t1, t2, t3)
B181: 2. NaWaRo-Bonus (a1, a2, ah, G, M1, M2, L, X1 oder X2)
B182: 3. Formaldehyd-Bonus (i)
B183: 4. KWK-Bonus (K)
B184: Alle 4 Bonustypen sind – unter Beachtung der verschiedenen Geltungsbereiche (Vergütungszonen) – miteinander kombinierbar.
A185: Stellen 7-8 (Geothermie) | B185: Angabe der Vergütungsboni:
B186: Die Kürzel für die gewährten Vergütungsboni werden in den Stellen 7 bis 8 in folgender Reihenfolge eingeführt:
B187: 1. Wärmenutzungs-Bonus (W)
B188: 2. Bonus für petrothermale Techniken (P)
B189: Die Bonustypen sind miteinander kombinierbar.
A190: Stelle 7 (Windenergie) | B190: Angabe des Systemdienstleistungs-Bonus (SDL-Bonus):
B191: „S“ bei Vorliegen der Voraussetzungen für den SDL-Bonus
A192: Stellen 7-8 (Solar) | B192: Angabe zum Solarstrom-Selbstverbrauch in Stelle 7:
B193: "1" - fiktive Einspeisung des selbstverbrauchten Stroms
B194: "2" - fiktive Rückspeisung des selbstverbrauchten Stroms, ggf. nur Anteil bis zu 30 % der Gesamterzeugung der Anlage im Kalenderjahr
B195: "3" - fiktive Rückspeisung des selbstverbrauchten Stroms über 30 % der Gesamterzeugung der Anlage im Kalenderjahr
B196: In Stelle 8 wird die Leistungsstufe (0 … 30 kW, 30 … 100 kW und 100 … 500 kW) unterschieden.
A197: Stellen 7-12 | B197: "BS" (teilweise nur "B") für Bestandsschutz: Durch Übergangsbestimmungen geregelter Investitionsschutz des Weitergeltens von Vergütungen
A198: Alle weiteren Stellen bis Stelle 12 werden mit Minuszeichen aufgefüllt, Ausnahmen:
B199: - unterjährig einsetzende neue Vergütungssätze (bei Photovoltaikanlagen ab Juli, September oder Oktober): Monatsangaben in den Stellen 10 bis 12
B200: - "BS" (teilweise nur "B") für Bestandsschutz: Durch Übergangsbestimmungen geregelter Investitionsschutz des Weitergeltens von Vergütungen
A201: Stellen 13 bis 14: | B201: Inbetriebnahmejahr (2-stellig)
A204: 4. Anlagen mit Vergütung nach EEG 2012
A205: Stellen 1-2: | B205: Energieart:
B206: Wa = Wasser,
B207: Bi = Biomasse,
B208: Ga = Deponie-, Klär- oder Grubengas (bis Inbetriebnahmejahr 2008)
B209: De = Deponiegas (ab Inbetriebnahmejahr 2009)
B210: Kl = Klärgas (ab Inbetriebnahmejahr 2009)
B211: Gr = Grubengas (ab Inbetriebnahmejahr 2009)
B212: Ge = Geothermie
B213: Wi = Wind (bis Inbetriebnahmejahr 2008)
B214: Wn = Wind onshore (ab Inbetriebnahmejahr 2009)
B215: Wr = Wind Repowering (ab Inbetriebnahmejahr 2009)
B216: Wf = Wind offshore (ab Inbetriebnahmejahr 2009)
B217: So = Solarenergie-Freiflächenanlagen (auch an oder auf Gebäuden bis Inbetriebnahmejahr 2008)
B218: Sg = Solarenergie an oder auf Gebäuden (ab Inbetriebnahmejahr 2009)
A219: Stelle 3: | B219: „K“ für Kategorie
A220: Stellen 4-5, teils 4-6 | B220: relevanter Paragraph aus dem EEG 2012:
B221: 17 für Verringerung des Vergütungsanspruchs (alle Energieträger)
B222: 23 für Wasserkraft
B223: 24 für Deponiegas
B224: 25 für Klärgas
B225: 26 für Grubengas
B226: 27 für Biomasse
B227: 27a für Vergärung von Bioabfällen (Energieträger Biomasse)
B228: 27b für Vergärung von Gülle (Energieträger Biomasse)
B229: 28 für Geothermie
B230: 29 für Windenergie an Land
B231: 30 für Windenergie an Land Repowering
... 74 more rows

Sheet Beispiel Solarstromeigenverbr.
A1: Beispiel für den Solarstrom-Eigenverbrauch einer PV-Anlage
A3: Photovoltaikanlage an oder auf Gebäude, Inbetriebnahme im Juli 2010
A4: elektrische Leistung: 200 kW
A5: Von der gesamten im Kalenderjahr erzeugten Strommenge von 200.000 kWh werden zeitgleich 80.000 kWh nach § 33 Abs. 2 EEG selbst verbraucht.
A7: 1. Aufteilung auf die Leistungszonen
A9: Bei Photovoltaikanlagen erfolgt die Aufteilung der Einspeisung auf die Leistungszone entsprechend der installierten Leistung.
A11: Der Leistungszone 0-30 kW werden zugerechnet:
A12: 30 / 200 = 15 % der erzeugten und selbstverbrauchten Strommenge
B13: Gesamterzeugung: | D13: 30.000 kWh
B14: Selbstverbrauch: | D14: 12.000 kWh
B15: davon | C15: bis 30 % Gesamterzeugung: | D15: 9.000 kWh
C16: über 30 % Gesamterzeugung: | D16: 3.000 kWh
B17: Einspeisung ins Netz: | D17: 18.000 kWh
A19: Der Leistungszone 30-100 kW werden zugerechnet:
A20: 70 / 200 = 35 % der erzeugten und selbstverbrauchten Strommenge
B21: Gesamterzeugung: | D21: 70.000 kWh
B22: Selbstverbrauch: | D22: 28.000 kWh
B23: davon | C23: bis 30 % Gesamterzeugung: | D23: 21.000 kWh
C24: über 30 % Gesamterzeugung: | D24: 7.000 kWh
B25: Einspeisung ins Netz: | D25: 42.000 kWh
A27: Der Leistungszone 100-1000 kW werden zugerechnet:
A28: Rest: 100 / 200 = 50 % der erzeugten und selbstverbrauchten Strommenge
B29: Gesamterzeugung: | D29: 100.000 kWh
B30: Selbstverbrauch: | D30: 40.000 kWh
B31: davon | C31: bis 30 % Gesamterzeugung: | D31: 30.000 kWh
C32: über 30 % Gesamterzeugung: | D32: 10.000 kWh
B33: Einspeisung ins Netz: | D33: 60.000 kWh
A36: 2. Vergütungskategorien
A38: Aus diesen Angaben ergibt sich folgende Aufteilung der gesamten EEG-Strommenge auf die Vergütungskategorien:
A40: Vergütungskategorie | B40: Vergütungssatz der Vergütungskategorie | D40: Strommenge, die der jeweiligen Kategorie zugerechnet wird | F40: Vergütung | H40: Beschreibung der Vergütungskategorie
B41: (ct/kWh) | D41: (kWh) | F41: (Euro)
A43: SgK330---Jul10 | B43: 34.05 | D43: 18000 | F43: =D43*B43/100 -> 6129 | H43: 0-30 KW
A44: SgK33410-Jul10 | B44: 34.05 | D44: 12000 | F44: 4086 | H44: 0-30 KW, selbstverbrauchte Erzeugung
A45: SgK33420-Jul10 | B45: 16.38 | D45: -9000 | F45: -1474.2 | H45: 0-30 KW, Rückvergütung für Selbstverbrauch bis 30% der Gesamterzeugung der Anlage
A46: SgK33430-Jul10 | B46: 12 | D46: -3000 | F46: -360 | H46: 0-30 KW, Rückvergütung für Selbstverbrauch über 30% der Gesamterzeugung der Anlage
A47: SgK331---Jul10 | B47: 32.39 | D47: 42000 | F47: 13603.8 | H47: 30-100 KW
A48: SgK33411-Jul10 | B48: 32.39 | D48: 28000 | F48: 9069.2 | H48: 30-100 KW, selbstverbrauchte Erzeugung
A49: SgK33421-Jul10 | B49: 16.38 | D49: -21000 | F49: -3439.8 | H49: 30-100 KW, Rückvergütung für Selbstverbrauch bis 30% der Gesamterzeugung der Anlage
A50: SgK33431-Jul10 | B50: 12 | D50: -7000 | F50: -840 | H50: 30-100 KW, Rückvergütung für Selbstverbrauch über 30% der Gesamterzeugung der Anlage
A51: SgK332---Jul10 | B51: 30.65 | D51: 60000 | F51: 18390 | H51: 100 KW-1 MW
A52: SgK33412-Jul10 | B52: 30.65 | D52: 40000 | F52: 12260 | H52: 100-500 KW, selbstverbrauchte Erzeugung
A53: SgK33422-Jul10 | B53: 16.38 | D53: -30000 | F53: -4914 | H53: 100-500 KW, Rückvergütung für Selbstverbrauch bis 30% der Gesamterzeugung der Anlage
A54: SgK33432-Jul10 | B54: 12 | D54: -10000 | F54: -1200 | H54: 100-500 KW, Rückvergütung für Selbstverbrauch über 30% der Gesamterzeugung der Anlage
A56: Summe | D56: =SUM(D43:D54) -> 120000 | F56: =SUM(F43:F54) -> 51310
A58: Die summierte Strommenge von 120.000 kWh entspricht der tatsächlichen Netzeinspeisung.
A59: Diese Strommenge ist bei der Berechnung der vermiedenen Netzentgelte zugrunde zu legen.
A60: Das heißt, dass für den selbst verbrauchten Strom (im Beispiel 80.000 kWh) keine vermiedenen Netzentgelte berechnet werden.
A63: 3. Berechnung der vermiedenen Netzentgelte:
A65: Erfolgt die Einspeisung z.B. in Spannungsebene 5 (Mittelspannung), so werden die vermiedenen Netzentgelte in die vNNE-Kategorie
A66: der Spannungsebene 5 eingetragen:
A67: Sg-vNNe--SpE05
A69: Die Höhe der vermiedenen Netzentgelte bemisst sich allerdings nach den Netzentgelten (Leistungsanteil und Arbeitsanteil) der
A70: Spannungsebene, in der durch die EEG-Einspeisung Netznutzung vermieden wird.
A71: In der Regel ist dies die Netz- bzw. Umspannebene, die der Einspeiseebene direkt vorgelagert ist - in diesem Beispiel wäre demnach
A72: das Netzentgelt der Ebene 4 (HS/MS) für die Berechnung der vermiedenen Netzentgelte maßgeblich.

Sheet Beispiel Biomasseanlage
A1: Beispiel für die Einordnung einer EEG-Anlage in die zutreffenden EEG-Vergütungskategorien
A3: Biomasseanlage, Inbetriebnahme in 2006
A4: elektrische Leistung: 400 kW
A5: Stromerzeugung erfolgt zu 30% in KWK-Betrieb, Anforderungen der Anlage 3 zum EEG werden erfüllt
A6: Die Anlage hat Anspruch auf den allgemeinen NaWaRo-Bonus a1
A8: Berechnung der EEG-Vergütung in 2009:
A10: 1. Berechnung der Leistung nach § 18 Abs. 2 EEG, die für die Aufteilung in die Vergütungszonen relevant ist ("Bemessungsleistung"):
A12: EEG-Strom-Erzeugung in 2009: | D12: W2009 = | E12: 3285000 | F12: kWh
A14: Anzahl der Stunden des Jahres 2009: | D14: n2009 = | E14: 8760 | F14: h
A16: Anzahl der Stunden von Jahresbeginn 2009 bis zur erstmaligen
A17: Erzeugung von Strom aus Erneuerbaren Energien | D17: n2009,vorEEGErzeugung = | E17: 0 | F17: h
A19: Anzahl der Stunden im Jahr 2009 von der endgültigen
A20: Stilllegung bis zum Ende des Kalenderjahres 2009: | D20: n2009,nachStillegung = | E20: 0 | F20: h
A22: Bemessungsleistung PB,i nach § 18 Abs. 2 EEG: | D22: PB,2009 = | E22: =E12/(E14-E17-E20) -> 375 | F22: kW
A24: Formel für PB,i allgemein (vgl. EEG-Verfahrensbeschreibung):
A31: 2. Aufteilung der Stromerzeugung auf die Vergütungskategorien:
A33: zu beachten: | B33: 1. Aufteilung auf die Leistungszonen 0-150 kW und 150-500 kW
B34: 2. Aufteilung zwischen KWK-Anteil und Nicht-KWK-Anteil
A36: Der Leistungszone 0-150 kW werden zugerechnet:
A37: 150 / 375 = 40 % der erzeugten Strommenge
A38: davon entfallen | B38: 70 % auf den Nicht-KWK-Anteil und
B39: 30 % auf den KWK-Anteil
A41: Der Leistungszone 150-500 kW werden zugerechnet:
A42: (375-150) / 375 = 60 % der erzeugten Strommenge
A43: davon entfallen | B43: 70 % auf den Nicht-KWK-Anteil und
B44: 30 % auf den KWK-Anteil
A47: Aus diesen Angaben ergibt sich folgende Aufteilung der gesamten EEG-Strommenge auf die Vergütungskategorien:
A49: Vergütungskategorie | B49: Anteil der gesamten Strom-erzeugung, der der jeweilig. Kategorie zugerechnet wird | D49: Strommenge, die der jeweiligen Kategorie zugerechnet wird | F49: Vergütungssatz der Vergütungskategorie | G49: Vergütung
E50: (kWh) | F50: (ct/kWh) | G50: (Euro)
A52: BiK81a1-----06 | B52: 40% * 70% = | C52: =0.4*0.7 -> 0.28 | D52: 28% von 3.285.000 = | E52: =C52*E$12 -> 919800 | F52: 17.67 | G52: =E52*F52/100 -> 162528.66
A53: BiK81a1KA3--06 | B53: 40% * 30% = | C53: =0.4*0.3 -> 0.12 | D53: 12% von 3.285.000 = | E53: =C53*E$12 -> 394200 | F53: 20.67 | G53: =E53*F53/100 -> 81481.14
A54: BiK82a1-----06 | B54: 60% * 70% = | C54: =0.6*0.7 -> 0.42 | D54: 42% von 3.285.000 = | E54: =C54*E$12 -> 1379700 | F54: 15.6 | G54: =E54*F54/100 -> 215233.2
A55: BiK82a1KA3--06 | B55: 60% * 30% = | C55: =0.6*0.3 -> 0.18 | D55: 18% von 3.285.000 = | E55: =C55*E$12 -> 591300 | F55: 18.6 | G55: =E55*F55/100 -> 109981.8
A57: Summe | C57: =SUM(C52:C55) -> 1 | E57: =SUM(E52:E55) -> 3285000 | G57: =SUM(G52:G55) -> 569224.8
A60: In Formelschreibweise lässt sich die Vergütungsberechnung für 2009 in diesem Beispiel wie folgt darstellen:
A75: = 162.528,66 Euro + 81.481.14 Euro + 215.233,20 Euro + 109.981,80 Euro
A77: = 569.224,80 Euro
A82: 3. Berechnung der vermiedenen Netzentgelte:
A84: Erfolgt die Einspeisung z.B. in Spannungsebene 5 (Mittelspannung), so werden die vermiedenen Netzentgelte in die vNNE-Kategorie
A85: der Spannungsebene 5 eingetragen:
A86: Bi-vNNe--SpE05
A88: Die Höhe der vermiedenen Netzentgelte bemisst sich allerdings nach den Netzentgelten (Leistungsanteil und Arbeitsanteil) der
A89: Spannungsebene, in der durch die EEG-Einspeisung Netznutzung vermieden wird.
A90: In der Regel ist dies die Netz- bzw. Umspannebene, die der Einspeiseebene direkt vorgelagert ist - in diesem Beispiel wäre demnach
A91: das Netzentgelt der Ebene 4 (HS/MS) für die Berechnung der vermiedenen Netzentgelte maßgeblich.

Sheet Konfiguration (hidden)
A1: Energieträger | B1: Typ | C1: Erlaubt in Stammdaten ? | E1: Spannungsebenen | H1: Einspeisemanagement | I1: Code | J1: Erlaubt in Auswahl ? | L1: Bundesländer | N1: Buchungstypen | P1: Prüfungsschritt/Fehlernummer: | Q1: Fehlerbeschreibung | R1: Zeile (bei Schritt 1 u. 2) bzw. Anlagenschlüssel (bei Schritt 3) | S1: Tabellenblatt (nur bei Schritt 1 und 2) | T1: Spalte (nur bei Schritt 2, sofern möglich) | W1: Inbetriebnahmejahre | X1: Von | Y1: Bis | AA1: SORT_KEY | AB1: TYP | AC1: EEG_Kategorien | AD1: VEG | AE1: VEG_KONTROLLE | AF1: VIN_Kontrolle | AG1: VIN | AH1: Leistungsgrenze Von | AI1: Leistungsgrenze Bis | AJ1: Ergänzende Infos | AK1: TEC-Bonus | AL1: KWK-Bonus | AM1: RV-Anteil | AN1: KWK | AO1: Anfangs (A) bzw. Endvergütung (Bei Wind) oder SV-kategorie (Sv) o. Spanungsebene (bei vNNE) o. nur Negative Vergütung (NegVerg) oder nur gegen Nachweis (NACHWEIS) oder Modernisierung (MOD) oder Marktintegrationsmodell (MIM/MIMA) oder Bemessungsleistung (BEM) oder Flexibilitätszuschalg (FLZ) oder Bezugsmonat bei DV | AP1: Vergütungssatz | AQ1: Ausfallvergütung | AR1: anz-wert | AS1: Fernsteuerbar | AV1: MPM-Auswahl | BA1: Erläuterung der 3 Prüfungsschritte: | BP1: Legende zu Gründen für die nachträgliche Korrekturen nach § 62 EEG 2014 | BQ1: ausführliche Gründe | BS1: Ausnahmen | BU1: Ausnahmen vNE
A2: Wasser | B2: Wasserkraft | C2: Ja | E2: HöS | F2: keine gültige Spannungsebene | H2: Nicht regelbar | I2: nr | J2: Ja | L2: Baden-Württemberg | N2: BIL | W2: Inbetriebnahme 01.01. bis 31.07.2004 | X2: 2004-01-01 | Y2: 2004-07-31 | AA2: 1 | AB2: EEG | AC2: WaK41a------01 | AD2: Wasser | AE2: =VLOOKUP(AD2,ENERGIETRAEGER,1,FALSE) -> Wasser | AF2: =VLOOKUP(AG2,VIN,1,FALSE) -> Inbetriebnahme bis 2001 | AG2: Inbetriebnahme bis 2001 | AJ2: 0-0,5 MW | AP2: 7.67 | AQ2: 6.14 | AR2: 7.67 | AU2: EEG | AV2: WaK42a------01 | BA2: Schritt 1 von 3 (Stammdatenprüfung): | BB2: Prüfung der Stammdaten (Tabellenblatt "Stammdaten") auf Vollständigkeit und Gültigkeit | BP2: 1 | BQ2: 1. Rückforderungen auf Grund von § 57 Abs. 5 EEG 2014 [§62 Abs. 1 Nr. 1 EEG 2014) | BS2: Volllaststunden | BU2: Abweichender Arbeitsanteil
A3: Biomasse | B3: Biomasse | C3: Ja | E3: Hös/HS | F3: Spannungsebene: HöS | H3: regelbar nach § 9 Abs. 1 EEG 2014 | I3: P61 | J3: Ja | L3: Bayern | N3: BIP | W3: Inbetriebnahme 01-03/2012 | X3: 2012-01-01 | Y3: 2012-03-31 | AA3: 2 | AB3: EEG | AC3: WaK42a------01 | AD3: Wasser | AE3: Wasser | AF3: Inbetriebnahme bis 2001 | AG3: Inbetriebnahme bis 2001 | AJ3: 0,5-5 MW | AP3: 6.65 | AQ3: 5.32 | AR3: 6.65 | AU3: EEG | AV3: WaK41a------02 | BA3: Schritt 2a von 3 (Bewegungsdatenprüfung ohne Marktprämie): | BB3: Prüfung der Angaben in den Tabellenblättern "Einspeisevergütung_GSP_Sonst", "Ausfallvermarktung", "Nachträgliche Korrekturen" und "vNE" auf Vollständigkeit und Gültigkeit (nur möglich, wenn die Stammdatenprüfung ohne Fehler durchlaufen wurde) | BP3: 2 | BQ3: 2. rechtskräftige Gerichtsentscheidungen im Hauptsacheverfahren (§ 62 Abs. 1 Nr. 2 EEG 2014) | BS3: Fehlende Bewegungsdaten | BU3: Abweichender Leistungsanteil
A4: Geothermie | B4: Geothermie | C4: Ja | E4: HS | F4: Spannungsebene: Hös/HS | H4: regelbar nach § 9 Abs. 2 EEG 2014 | I4: P62 | J4: Ja | L4: Hessen | N4: GAL | W4: Inbetriebnahme 01-06/2010 | X4: 2010-01-01 | Y4: 2010-06-30 | AA4: 3 | AB4: EEG | AC4: WaK41a------02 | AD4: Wasser | AE4: Wasser | AF4: Inbetriebnahme 2002 | AG4: Inbetriebnahme 2002 | AJ4: 0-0,5 MW | AP4: 7.67 | AQ4: 6.14 | AR4: 7.67 | AU4: EEG | AV4: WaK42a------02 | BA4: Schritt 2b von 3 (Bewegungsdatenprüfung für Marktprämie): | BB4: Prüfung der Angaben zur Direktvermarktung vom Typ Marktprämie (Tabellenblätter "MPM_anzulegender_Wert" und "MPM_Monatswerte") auf Vollständigkeit und Gültigkeit (nur möglich, wenn die Stammdatenprüfung ohne Fehler durchlaufen wurde) | BP4: 3 | BQ4: 3. Übermittlung und Abgleich von Daten nach § 61 Abs. 5 EEG 2014 (§62 Abs. 1 Nr. 3 EEG 2014) | BS4: Aufteilung des Selbstverbrauchs | BU4: Abweichender Arbeitsanteil / Abweichender Leistungsanteil
A5: Wind | B5: Windenergie an Land | C5: Ja | E5: HS/MS | F5: Spannungsebene: HS | H5: 70%-Begrenzung | I5: 70P | J5: Ja | L5: Rheinland-Pfalz | N5: GAP | W5: Inbetriebnahme 01-07/2004 | X5: 2004-01-01 | Y5: 2004-07-31 | AA5: 4 | AB5: EEG | AC5: WaK42a------02 | AD5: Wasser | AE5: Wasser | AF5: Inbetriebnahme 2002 | AG5: Inbetriebnahme 2002 | AJ5: 0,5-5 MW | AP5: 6.65 | AQ5: 5.32 | AR5: 6.65 | AU5: EEG | AV5: WaK41a------03 | BA5: Schritt 3 von 3 (abschließende Prüfung) | BB5: Prüfung der Gesamtergebnisse auf Plausibilität und Vollständigkeit (nur möglich, wenn alle vorherigen Prüfungsschritte ohne Fehler durchlaufen wurden) | BP5: 4 | BQ5: 4. Verfahren bei der Clearingstelle nach § 81 EEG 2014 (§ 62 Abs. 1 Nr. 4 EEG 2014) | BS5: Volllaststunden u. Aufteilung des Selbstverbrauchs
A6: Solar | B6: Solare Strahlungsenergie | C6: Ja | E6: MS | F6: Spannungsebene: HS/MS | H6: regelbar nach § 6 Abs. 1 EEG 2012 | I6: P61 | J6: Ja | N6: GEL | W6: Inbetriebnahme 04/2012 | X6: 2012-04-01 | Y6: 2012-04-30 | AA6: 5 | AB6: EEG | AC6: WaK41a------03 | AD6: Wasser | AE6: Wasser | AF6: Inbetriebnahme 2003 | AG6: Inbetriebnahme 2003 | AJ6: 0-0,5 MW | AP6: 7.67 | AQ6: 6.14 | AR6: 7.67 | AU6: EEG | AV6: WaK42a------03 | BP6: 5 | BQ6: 5. Entscheidungen der Bundesnetzagentur nach § 85 EEG 2014 (§ 62 Abs. 1 Nr. 5 EEG 2014)
A7: Solar/Gebäude | B7: Solare Strahlungsenergie | C7: Ja | E7: MS/NS | F7: Spannungsebene: MS | H7: regelbar nach § 6 Abs. 2 EEG 2012 | I7: P62 | J7: Ja | N7: GEP | W7: Inbetriebnahme 04-06/2012 | X7: 2012-04-01 | Y7: 2012-06-30 | AA7: 6 | AB7: EEG | AC7: WaK42a------03 | AD7: Wasser | AE7: Wasser | AF7: Inbetriebnahme 2003 | AG7: Inbetriebnahme 2003 | AJ7: 0,5-5 MW | AP7: 6.65 | AQ7: 5.32 | AR7: 6.65 | AU7: EEG | AV7: WaK41a------04 | BP7: 6 | BQ7: 6. vollstreckbarer Titel, der erst nach der Abrechnung nach § 58 Abs. 1 EEG 2014 ergangen ist (§ 62 Abs. 1 Nr. 6 EEG 2014)
A8: Deponiegas | B8: Deponie-, Klär-, Grubengas | C8: Ja | E8: NS | F8: Spannungsebene: MS/NS | N8: SOL | W8: Inbetriebnahme 05/2012 | X8: 2012-05-01 | Y8: 2012-05-31 | AA8: 7 | AB8: EEG | AC8: WaK41a------04 | AD8: Wasser | AE8: Wasser | AF8: Inbetriebnahme 01-07/2004 | AG8: Inbetriebnahme 01-07/2004 | AJ8: 0-0,5 MW | AP8: 7.67 | AQ8: 6.14 | AR8: 7.67 | AU8: EEG | AV8: WaK42a------04
A9: Klärgas | B9: Deponie-, Klär-, Grubengas | C9: Ja | N9: SOP | W9: Inbetriebnahme 06/2012 | X9: 2012-06-01 | Y9: 2012-06-30 | AA9: 8 | AB9: EEG | AC9: WaK42a------04 | AD9: Wasser | AE9: Wasser | AF9: Inbetriebnahme 01-07/2004 | AG9: Inbetriebnahme 01-07/2004 | AJ9: 0,5-5 MW | AP9: 6.65 | AQ9: 5.32 | AR9: 6.65 | AU9: EEG | AV9: WaK61-------04
A10: Grubengas | B10: Deponie-, Klär-, Grubengas | C10: Ja | N10: SOT | W10: Inbetriebnahme 07/2012 | X10: 2012-07-01 | Y10: 2012-07-31 | AA10: 9 | AB10: EEG | AC10: WaK61-------04 | AD10: Wasser | AE10: Wasser | AF10: Inbetriebnahme 08-12/2004 | AG10: Inbetriebnahme 08-12/2004 | AJ10: 0-0,5 MW | AP10: 9.67 | AQ10: 7.74 | AR10: 9.67 | AU10: EEG | AV10: WaK62-------04
A11: Wind onshore | B11: Windenergie an Land | C11: Ja | N11: WNL | W11: Inbetriebnahme 07-09/2010 | X11: 2010-07-01 | Y11: 2010-09-30 | AA11: 10 | AB11: EEG | AC11: WaK62-------04 | AD11: Wasser | AE11: Wasser | AF11: Inbetriebnahme 08-12/2004 | AG11: Inbetriebnahme 08-12/2004 | AJ11: 0,5-5 MW | AP11: 6.65 | AQ11: 5.32 | AR11: 6.65 | AU11: EEG | AV11: WaK63-------04
A12: Wind Repowering | B12: Windenergie an Land | C12: Ja | N12: WNP | W12: Inbetriebnahme 08/2012 | X12: 2012-08-01 | Y12: 2012-08-31 | AA12: 11 | AB12: EEG | AC12: WaK63-------04 | AD12: Wasser | AE12: Wasser | AF12: Inbetriebnahme 08-12/2004 | AG12: Inbetriebnahme 08-12/2004 | AJ12: >5 MW , Zubau 0-0,5 MW | AP12: 7.67 | AQ12: 6.14 | AR12: 7.67 | AU12: EEG | AV12: WaK64-------04
A13: Deponie-,Klär-,Grubengas | B13: Deponie-, Klär-, Grubengas | C13: Nein | N13: WAL | W13: Inbetriebnahme 08-12/2004 | X13: 2004-08-01 | Y13: 2004-12-31 | AA13: 12 | AB13: EEG | AC13: WaK64-------04 | AD13: Wasser | AE13: Wasser | AF13: Inbetriebnahme 08-12/2004 | AG13: Inbetriebnahme 08-12/2004 | AJ13: >5 MW , Zubau 0,5-10 MW | AP13: 6.65 | AQ13: 5.32 | AR13: 6.65 | AU13: EEG | AV13: WaK65-------04
N14: WAP | W14: Inbetriebnahme 09/2012 | X14: 2012-09-01 | Y14: 2012-09-30 | AA14: 13 | AB14: EEG | AC14: WaK65-------04 | AD14: Wasser | AE14: Wasser | AF14: Inbetriebnahme 08-12/2004 | AG14: Inbetriebnahme 08-12/2004 | AJ14: >5 MW , Zubau 10-20 MW | AP14: 6.1 | AQ14: 4.88 | AR14: 6.1 | AU14: EEG | AV14: WaK66-------04
W15: Inbetriebnahme 10/2012 | X15: 2012-10-01 | Y15: 2012-10-31 | AA15: 14 | AB15: EEG | AC15: WaK66-------04 | AD15: Wasser | AE15: Wasser | AF15: Inbetriebnahme 08-12/2004 | AG15: Inbetriebnahme 08-12/2004 | AJ15: >5 MW , Zubau 20-50 MW | AP15: 4.56 | AQ15: 3.65 | AR15: 4.56 | AU15: EEG | AV15: WaK67-------04
E16: Nein | W16: Inbetriebnahme 10-12/2010 | X16: 2010-10-01 | Y16: 2010-12-31 | AA16: 15 | AB16: EEG | AC16: WaK67-------04 | AD16: Wasser | AE16: Wasser | AF16: Inbetriebnahme 08-12/2004 | AG16: Inbetriebnahme 08-12/2004 | AJ16: >5 MW , Zubau 50-150 MW | AP16: 3.7 | AQ16: 2.96 | AR16: 3.7 | AU16: EEG | AV16: WaK61-------05
E17: Ja (keine Belieferung Dritter) | W17: Inbetriebnahme 11/2012 | X17: 2012-11-01 | Y17: 2012-11-30 | AA17: 16 | AB17: EEG | AC17: WaK61-------05 | AD17: Wasser | AE17: Wasser | AF17: Inbetriebnahme 2005 | AG17: Inbetriebnahme 2005 | AJ17: 0-0,5 MW | AP17: 9.67 | AQ17: 7.74 | AR17: 9.67 | AU17: EEG | AV17: WaK62-------05
E18: Ja (mit Belieferung Dritter) | W18: Inbetriebnahme 12/2012 | X18: 2012-12-01 | Y18: 2012-12-31 | AA18: 17 | AB18: EEG | AC18: WaK62-------05 | AD18: Wasser | AE18: Wasser | AF18: Inbetriebnahme 2005 | AG18: Inbetriebnahme 2005 | AJ18: 0,5-5 MW | AP18: 6.65 | AQ18: 5.32 | AR18: 6.65 | AU18: EEG | AV18: WaK63-------05
W19: Inbetriebnahme 01/2013 | X19: 2013-01-01 | Y19: 2013-01-31 | AA19: 18 | AB19: EEG | AC19: WaK63-------05 | AD19: Wasser | AE19: Wasser | AF19: Inbetriebnahme 2005 | AG19: Inbetriebnahme 2005 | AJ19: >5 MW , Zubau 0-0,5 MW | AP19: 7.59 | AQ19: 6.07 | AR19: 7.59 | AU19: EEG | AV19: WaK64-------05
W20: Inbetriebnahme 02/2013 | X20: 2013-02-01 | Y20: 2013-02-28 | AA20: 19 | AB20: EEG | AC20: WaK64-------05 | AD20: Wasser | AE20: Wasser | AF20: Inbetriebnahme 2005 | AG20: Inbetriebnahme 2005 | AJ20: >5 MW , Zubau 0,5-10 MW | AP20: 6.58 | AQ20: 5.26 | AR20: 6.58 | AU20: EEG | AV20: WaK65-------05
E21: Ja | W21: Inbetriebnahme 03/2013 | X21: 2013-03-01 | Y21: 2013-03-31 | AA21: 20 | AB21: EEG | AC21: WaK65-------05 | AD21: Wasser | AE21: Wasser | AF21: Inbetriebnahme 2005 | AG21: Inbetriebnahme 2005 | AJ21: >5 MW , Zubau 10-20 MW | AP21: 6.04 | AQ21: 4.83 | AR21: 6.04 | AU21: EEG | AV21: WaK66-------05
E22: Nein | W22: Inbetriebnahme 04/2013 | X22: 2013-04-01 | Y22: 2013-04-30 | AA22: 21 | AB22: EEG | AC22: WaK66-------05 | AD22: Wasser | AE22: Wasser | AF22: Inbetriebnahme 2005 | AG22: Inbetriebnahme 2005 | AJ22: >5 MW , Zubau 20-50 MW | AP22: 4.51 | AQ22: 3.61 | AR22: 4.51 | AU22: EEG | AV22: WaK67-------05
W23: Inbetriebnahme 05/2013 | X23: 2013-05-01 | Y23: 2013-05-31 | AA23: 22 | AB23: EEG | AC23: WaK67-------05 | AD23: Wasser | AE23: Wasser | AF23: Inbetriebnahme 2005 | AG23: Inbetriebnahme 2005 | AJ23: >5 MW , Zubau 50-150 MW | AP23: 3.66 | AQ23: 2.93 | AR23: 3.66 | AU23: EEG | AV23: WaK61-------06
W24: Inbetriebnahme 06/2013 | X24: 2013-06-01 | Y24: 2013-06-30 | AA24: 23 | AB24: EEG | AC24: WaK61-------06 | AD24: Wasser | AE24: Wasser | AF24: Inbetriebnahme 2006 | AG24: Inbetriebnahme 2006 | AJ24: 0-0,5 MW | AP24: 9.67 | AQ24: 7.74 | AR24: 9.67 | AU24: EEG | AV24: WaK62-------06
W25: Inbetriebnahme 07/2013 | X25: 2013-07-01 | Y25: 2013-07-31 | AA25: 24 | AB25: EEG | AC25: WaK62-------06 | AD25: Wasser | AE25: Wasser | AF25: Inbetriebnahme 2006 | AG25: Inbetriebnahme 2006 | AJ25: 0,5-5 MW | AP25: 6.65 | AQ25: 5.32 | AR25: 6.65 | AU25: EEG | AV25: WaK63-------06
W26: Inbetriebnahme 08/2013 | X26: 2013-08-01 | Y26: 2013-08-31 | AA26: 25 | AB26: EEG | AC26: WaK63-------06 | AD26: Wasser | AE26: Wasser | AF26: Inbetriebnahme 2006 | AG26: Inbetriebnahme 2006 | AJ26: >5 MW, Zubau 0-0,5 MW | AP26: 7.51 | AQ26: 6.01 | AR26: 7.51 | AU26: EEG | AV26: WaK64-------06
W27: Inbetriebnahme 09/2013 | X27: 2013-09-01 | Y27: 2013-09-30 | AA27: 26 | AB27: EEG | AC27: WaK64-------06 | AD27: Wasser | AE27: Wasser | AF27: Inbetriebnahme 2006 | AG27: Inbetriebnahme 2006 | AJ27: >5 MW, Zubau 0,5-10 MW | AP27: 6.51 | AQ27: 5.21 | AR27: 6.51 | AU27: EEG | AV27: WaK65-------06
W28: Inbetriebnahme 10/2013 | X28: 2013-10-01 | Y28: 2013-10-31 | AA28: 27 | AB28: EEG | AC28: WaK65-------06 | AD28: Wasser | AE28: Wasser | AF28: Inbetriebnahme 2006 | AG28: Inbetriebnahme 2006 | AJ28: >5 MW , Zubau 10-20 MW | AP28: 5.98 | AQ28: 4.78 | AR28: 5.98 | AU28: EEG | AV28: WaK66-------06
W29: Inbetriebnahme 11/2013 | X29: 2013-11-01 | Y29: 2013-11-30 | AA29: 28 | AB29: EEG | AC29: WaK66-------06 | AD29: Wasser | AE29: Wasser | AF29: Inbetriebnahme 2006 | AG29: Inbetriebnahme 2006 | AJ29: >5 MW , Zubau 20-50 MW | AP29: 4.46 | AQ29: 3.57 | AR29: 4.46 | AU29: EEG | AV29: WaK67-------06
W30: Inbetriebnahme 12/2013 | X30: 2013-12-01 | Y30: 2013-12-31 | AA30: 29 | AB30: EEG | AC30: WaK67-------06 | AD30: Wasser | AE30: Wasser | AF30: Inbetriebnahme 2006 | AG30: Inbetriebnahme 2006 | AJ30: >5 MW , Zubau 50-150 MW | AP30: 3.62 | AQ30: 2.9 | AR30: 3.62 | AU30: EEG | AV30: WaK61-------07
W31: Inbetriebnahme 01/2014 | X31: 2014-01-01 | Y31: 2014-01-31 | AA31: 30 | AB31: EEG | AC31: WaK61-------07 | AD31: Wasser | AE31: Wasser | AF31: Inbetriebnahme 2007 | AG31: Inbetriebnahme 2007 | AJ31: 0-0,5 MW | AP31: 9.67 | AQ31: 7.74 | AR31: 9.67 | AU31: EEG | AV31: WaK62-------07
W32: Inbetriebnahme 02/2014 | X32: 2014-02-01 | Y32: 2014-02-28 | AA32: 31 | AB32: EEG | AC32: WaK62-------07 | AD32: Wasser | AE32: Wasser | AF32: Inbetriebnahme 2007 | AG32: Inbetriebnahme 2007 | AJ32: 0,5-5 MW | AP32: 6.65 | AQ32: 5.32 | AR32: 6.65 | AU32: EEG | AV32: WaK63-------07
W33: Inbetriebnahme 03/2014 | X33: 2014-03-01 | Y33: 2014-03-31 | AA33: 32 | AB33: EEG | AC33: WaK63-------07 | AD33: Wasser | AE33: Wasser | AF33: Inbetriebnahme 2007 | AG33: Inbetriebnahme 2007 | AJ33: >5 MW , Zubau 0-0,5 MW | AP33: 7.43 | AQ33: 5.94 | AR33: 7.43 | AU33: EEG | AV33: WaK64-------07
W34: Inbetriebnahme 04/2014 | X34: 2014-04-01 | Y34: 2014-04-30 | AA34: 33 | AB34: EEG | AC34: WaK64-------07 | AD34: Wasser | AE34: Wasser | AF34: Inbetriebnahme 2007 | AG34: Inbetriebnahme 2007 | AJ34: >5 MW , Zubau 0,5-10 MW | AP34: 6.44 | AQ34: 5.15 | AR34: 6.44 | AU34: EEG | AV34: WaK65-------07
W35: Inbetriebnahme 05/2014 | X35: 2014-05-01 | Y35: 2014-05-31 | AA35: 34 | AB35: EEG | AC35: WaK65-------07 | AD35: Wasser | AE35: Wasser | AF35: Inbetriebnahme 2007 | AG35: Inbetriebnahme 2007 | AJ35: >5 MW , Zubau 10-20 MW | AP35: 5.92 | AQ35: 4.74 | AR35: 5.92 | AU35: EEG | AV35: WaK66-------07
W36: Inbetriebnahme 06/2014 | X36: 2014-06-01 | Y36: 2014-06-30 | AA36: 35 | AB36: EEG | AC36: WaK66-------07 | AD36: Wasser | AE36: Wasser | AF36: Inbetriebnahme 2007 | AG36: Inbetriebnahme 2007 | AJ36: >5 MW , Zubau 20-50 MW | AP36: 4.42 | AQ36: 3.54 | AR36: 4.42 | AU36: EEG | AV36: WaK67-------07
W37: Inbetriebnahme 07/2014 | X37: 2014-07-01 | Y37: 2014-07-31 | AA37: 36 | AB37: EEG | AC37: WaK67-------07 | AD37: Wasser | AE37: Wasser | AF37: Inbetriebnahme 2007 | AG37: Inbetriebnahme 2007 | AJ37: >5 MW , Zubau 50-150 MW | AP37: 3.58 | AQ37: 2.86 | AR37: 3.58 | AU37: EEG | AV37: WaK61-------08
W38: Inbetriebnahme 08/2014 | X38: 2014-08-01 | Y38: 2014-08-31 | AA38: 37 | AB38: EEG | AC38: WaK61-------08 | AD38: Wasser | AE38: Wasser | AF38: Inbetriebnahme 2008 | AG38: Inbetriebnahme 2008 | AJ38: 0-0,5 MW | AP38: 9.67 | AQ38: 7.74 | AR38: 9.67 | AU38: EEG | AV38: WaK62-------08
W39: Inbetriebnahme 09/2014 | X39: 2014-09-01 | Y39: 2014-09-30 | AA39: 38 | AB39: EEG | AC39: WaK62-------08 | AD39: Wasser | AE39: Wasser | AF39: Inbetriebnahme 2008 | AG39: Inbetriebnahme 2008 | AJ39: 0,5-5 MW | AP39: 6.65 | AQ39: 5.32 | AR39: 6.65 | AU39: EEG | AV39: WaK63-------08
W40: Inbetriebnahme 10/2014 | X40: 2014-10-01 | Y40: 2014-10-31 | AA40: 39 | AB40: EEG | AC40: WaK63-------08 | AD40: Wasser | AE40: Wasser | AF40: Inbetriebnahme 2008 | AG40: Inbetriebnahme 2008 | AJ40: >5 MW , Zubau 0-0,5 MW | AP40: 7.36 | AQ40: 5.89 | AR40: 7.36 | AU40: EEG | AV40: WaK64-------08
W41: Inbetriebnahme 11/2014 | X41: 2014-11-01 | Y41: 2014-11-30 | AA41: 40 | AB41: EEG | AC41: WaK64-------08 | AD41: Wasser | AE41: Wasser | AF41: Inbetriebnahme 2008 | AG41: Inbetriebnahme 2008 | AJ41: >5 MW , Zubau 0,5-10 MW | AP41: 6.38 | AQ41: 5.1 | AR41: 6.38 | AU41: EEG | AV41: WaK65-------08
W42: Inbetriebnahme 12/2014 | X42: 2014-12-01 | Y42: 2014-12-31 | AA42: 41 | AB42: EEG | AC42: WaK65-------08 | AD42: Wasser | AE42: Wasser | AF42: Inbetriebnahme 2008 | AG42: Inbetriebnahme 2008 | AJ42: >5 MW , Zubau 10-20 MW | AP42: 5.86 | AQ42: 4.69 | AR42: 5.86 | AU42: EEG | AV42: WaK66-------08
W43: Inbetriebnahme 01/2015 | X43: 2015-01-01 | Y43: 2015-01-31 | AA43: 42 | AB43: EEG | AC43: WaK66-------08 | AD43: Wasser | AE43: Wasser | AF43: Inbetriebnahme 2008 | AG43: Inbetriebnahme 2008 | AJ43: >5 MW , Zubau 20-50 MW | AP43: 4.38 | AQ43: 3.5 | AR43: 4.38 | AU43: EEG | AV43: WaK67-------08
W44: Inbetriebnahme 02/2015 | X44: 2015-02-01 | Y44: 2015-02-28 | AA44: 43 | AB44: EEG | AC44: WaK67-------08 | AD44: Wasser | AE44: Wasser | AF44: Inbetriebnahme 2008 | AG44: Inbetriebnahme 2008 | AJ44: >5 MW , Zubau 50-150 MW | AP44: 3.54 | AQ44: 2.83 | AR44: 3.54 | AU44: EEG | AV44: WaK230------09
W45: Inbetriebnahme 03/2015 | X45: 2015-03-01 | Y45: 2015-03-31 | AA45: 44 | AB45: EEG | AC45: WaK230------09 | AD45: Wasser | AE45: Wasser | AF45: Inbetriebnahme 2009 | AG45: Inbetriebnahme 2009 | AJ45: 0-0,5 MW, Anlage < 5 MW | AP45: 12.67 | AQ45: 10.14 | AR45: 12.67 | AU45: EEG | AV45: WaK231------09
W46: Inbetriebnahme 04/2015 | X46: 2015-04-01 | Y46: 2015-04-30 | AA46: 45 | AB46: EEG | AC46: WaK231------09 | AD46: Wasser | AE46: Wasser | AF46: Inbetriebnahme 2009 | AG46: Inbetriebnahme 2009 | AJ46: 0-0,5 MW, Anlage < 5 MW, Modernisierung | AO46: MOD | AP46: 11.67 | AQ46: 9.34 | AR46: 11.67 | AU46: EEG | AV46: WaK232------09
W47: Inbetriebnahme 05/2015 | X47: 2015-05-01 | Y47: 2015-05-31 | AA47: 46 | AB47: EEG | AC47: WaK232------09 | AD47: Wasser | AE47: Wasser | AF47: Inbetriebnahme 2009 | AG47: Inbetriebnahme 2009 | AJ47: 0,5-2 MW, Anlage < 5 MW | AP47: 8.65 | AQ47: 6.92 | AR47: 8.65 | AU47: EEG | AV47: WaK233------09
W48: Inbetriebnahme 06/2015 | X48: 2015-06-01 | Y48: 2015-06-30 | AA48: 47 | AB48: EEG | AC48: WaK233------09 | AD48: Wasser | AE48: Wasser | AF48: Inbetriebnahme 2009 | AG48: Inbetriebnahme 2009 | AJ48: 2-5 MW, Anlage < 5 MW | AP48: 7.65 | AQ48: 6.12 | AR48: 7.65 | AU48: EEG | AV48: WaK234------09
W49: Inbetriebnahme 07/2015 | X49: 2015-07-01 | Y49: 2015-07-31 | AA49: 48 | AB49: EEG | AC49: WaK234------09 | AD49: Wasser | AE49: Wasser | AF49: Inbetriebnahme 2009 | AG49: Inbetriebnahme 2009 | AJ49: 0,5-5 MW, Anlage < 5 MW, Modernisierung | AO49: MOD | AP49: 8.65 | AQ49: 6.92 | AR49: 8.65 | AU49: EEG | AV49: WaK235------09
W50: Inbetriebnahme 08/2015 | X50: 2015-08-01 | Y50: 2015-08-31 | AA50: 49 | AB50: EEG | AC50: WaK235------09 | AD50: Wasser | AE50: Wasser | AF50: Inbetriebnahme 2009 | AG50: Inbetriebnahme 2009 | AJ50: >5 MW, Zubau 0-0,5 MW | AP50: 7.29 | AQ50: 5.83 | AR50: 7.29 | AU50: EEG | AV50: WaK236------09
W51: Inbetriebnahme 09/2015 | X51: 2015-09-01 | Y51: 2015-09-30 | AA51: 50 | AB51: EEG | AC51: WaK236------09 | AD51: Wasser | AE51: Wasser | AF51: Inbetriebnahme 2009 | AG51: Inbetriebnahme 2009 | AJ51: >5 MW, Zubau 0,5-10 MW | AP51: 6.32 | AQ51: 5.06 | AR51: 6.32 | AU51: EEG | AV51: WaK237------09
W52: Inbetriebnahme 10/2015 | X52: 2015-10-01 | Y52: 2015-10-31 | AA52: 51 | AB52: EEG | AC52: WaK237------09 | AD52: Wasser | AE52: Wasser | AF52: Inbetriebnahme 2009 | AG52: Inbetriebnahme 2009 | AJ52: >5 MW, Zubau 10-20 MW | AP52: 5.8 | AQ52: 4.64 | AR52: 5.8 | AU52: EEG | AV52: WaK238------09
W53: Inbetriebnahme 11/2015 | X53: 2015-11-01 | Y53: 2015-11-30 | AA53: 52 | AB53: EEG | AC53: WaK238------09 | AD53: Wasser | AE53: Wasser | AF53: Inbetriebnahme 2009 | AG53: Inbetriebnahme 2009 | AJ53: >5 MW, Zubau 20-50 MW | AP53: 4.34 | AQ53: 3.47 | AR53: 4.34 | AU53: EEG | AV53: WaK239------09
W54: Inbetriebnahme 12/2015 | X54: 2015-12-01 | Y54: 2015-12-31 | AA54: 53 | AB54: EEG | AC54: WaK239------09 | AD54: Wasser | AE54: Wasser | AF54: Inbetriebnahme 2009 | AG54: Inbetriebnahme 2009 | AJ54: >5 MW, Zubau >50 MW | AP54: 3.5 | AQ54: 2.8 | AR54: 3.5 | AU54: EEG | AV54: WaK230------10
W55: Inbetriebnahme 2002 | X55: 2002-01-01 | Y55: 2002-12-31 | AA55: 54 | AB55: EEG | AC55: WaK230------10 | AD55: Wasser | AE55: Wasser | AF55: Inbetriebnahme 2010 | AG55: Inbetriebnahme 2010 | AJ55: 0-0,5 MW, Anlage < 5 MW | AP55: 12.67 | AQ55: 10.14 | AR55: 12.67 | AU55: EEG | AV55: WaK231------10
W56: Inbetriebnahme 2003 | X56: 2003-01-01 | Y56: 2003-12-31 | AA56: 55 | AB56: EEG | AC56: WaK231------10 | AD56: Wasser | AE56: Wasser | AF56: Inbetriebnahme 2010 | AG56: Inbetriebnahme 2010 | AJ56: 0-0,5 MW, Anlage < 5 MW, Modernisierung | AO56: MOD | AP56: 11.67 | AQ56: 9.34 | AR56: 11.67 | AU56: EEG | AV56: WaK232------10
W57: Inbetriebnahme 2004 | X57: 2004-01-01 | Y57: 2004-12-31 | AA57: 56 | AB57: EEG | AC57: WaK232------10 | AD57: Wasser | AE57: Wasser | AF57: Inbetriebnahme 2010 | AG57: Inbetriebnahme 2010 | AJ57: 0,5-2 MW, Anlage < 5 MW | AP57: 8.65 | AQ57: 6.92 | AR57: 8.65 | AU57: EEG | AV57: WaK233------10
W58: Inbetriebnahme 2005 | X58: 2005-01-01 | Y58: 2005-12-31 | AA58: 57 | AB58: EEG | AC58: WaK233------10 | AD58: Wasser | AE58: Wasser | AF58: Inbetriebnahme 2010 | AG58: Inbetriebnahme 2010 | AJ58: 2-5 MW, Anlage < 5 MW | AP58: 7.65 | AQ58: 6.12 | AR58: 7.65 | AU58: EEG | AV58: WaK234------10
W59: Inbetriebnahme 2006 | X59: 2006-01-01 | Y59: 2006-12-31 | AA59: 58 | AB59: EEG | AC59: WaK234------10 | AD59: Wasser | AE59: Wasser | AF59: Inbetriebnahme 2010 | AG59: Inbetriebnahme 2010 | AJ59: 0,5-5 MW, Anlage < 5 MW, Modernisierung | AO59: MOD | AP59: 8.65 | AQ59: 6.92 | AR59: 8.65 | AU59: EEG | AV59: WaK235------10
W60: Inbetriebnahme 2007 | X60: 2007-01-01 | Y60: 2007-12-31 | AA60: 59 | AB60: EEG | AC60: WaK235------10 | AD60: Wasser | AE60: Wasser | AF60: Inbetriebnahme 2010 | AG60: Inbetriebnahme 2010 | AJ60: >5 MW, Zubau 0-0,5 MW | AP60: 7.22 | AQ60: 5.78 | AR60: 7.22 | AU60: EEG | AV60: WaK236------10
W61: Inbetriebnahme 2008 | X61: 2008-01-01 | Y61: 2008-12-31 | AA61: 60 | AB61: EEG | AC61: WaK236------10 | AD61: Wasser | AE61: Wasser | AF61: Inbetriebnahme 2010 | AG61: Inbetriebnahme 2010 | AJ61: >5 MW, Zubau 0,5-10 MW | AP61: 6.26 | AQ61: 5.01 | AR61: 6.26 | AU61: EEG | AV61: WaK237------10
W62: Inbetriebnahme 2009 | X62: 2009-01-01 | Y62: 2009-12-31 | AA62: 61 | AB62: EEG | AC62: WaK237------10 | AD62: Wasser | AE62: Wasser | AF62: Inbetriebnahme 2010 | AG62: Inbetriebnahme 2010 | AJ62: >5 MW, Zubau 10-20 MW | AP62: 5.74 | AQ62: 4.59 | AR62: 5.74 | AU62: EEG | AV62: WaK238------10
W63: Inbetriebnahme 2010 | X63: 2010-01-01 | Y63: 2010-12-31 | AA63: 62 | AB63: EEG | AC63: WaK238------10 | AD63: Wasser | AE63: Wasser | AF63: Inbetriebnahme 2010 | AG63: Inbetriebnahme 2010 | AJ63: >5 MW, Zubau 20-50 MW | AP63: 4.3 | AQ63: 3.44 | AR63: 4.3 | AU63: EEG | AV63: WaK239------10
W64: Inbetriebnahme 2011 | X64: 2011-01-01 | Y64: 2011-12-31 | AA64: 63 | AB64: EEG | AC64: WaK239------10 | AD64: Wasser | AE64: Wasser | AF64: Inbetriebnahme 2010 | AG64: Inbetriebnahme 2010 | AJ64: >5 MW, Zubau >50 MW | AP64: 3.47 | AQ64: 2.78 | AR64: 3.47 | AU64: EEG | AV64: WaK230------11
W65: Inbetriebnahme 2012 | X65: 2012-01-01 | Y65: 2012-12-31 | AA65: 64 | AB65: EEG | AC65: WaK230------11 | AD65: Wasser | AE65: Wasser | AF65: Inbetriebnahme 2011 | AG65: Inbetriebnahme 2011 | AJ65: 0-0,5 MW, Anlage < 5 MW | AP65: 12.67 | AQ65: 10.14 | AR65: 12.67 | AU65: EEG | AV65: WaK231------11
W66: Inbetriebnahme 2013 | X66: 2013-01-01 | Y66: 2013-12-31 | AA66: 65 | AB66: EEG | AC66: WaK231------11 | AD66: Wasser | AE66: =VLOOKUP(AD66,ENERGIETRAEGER,1,FALSE) -> Wasser | AF66: =VLOOKUP(AG66,VIN,1,FALSE) -> Inbetriebnahme 2011 | AG66: Inbetriebnahme 2011 | AJ66: 0-0,5 MW, Anlage < 5 MW, Modernisierung | AO66: MOD | AP66: 11.67 | AQ66: 9.34 | AR66: 11.67 | AU66: EEG | AV66: WaK232------11
W67: Inbetriebnahme 2014 | X67: 2014-01-01 | Y67: 2014-07-31 | AA67: 66 | AB67: EEG | AC67: WaK232------11 | AD67: Wasser | AE67: Wasser | AF67: Inbetriebnahme 2011 | AG67: Inbetriebnahme 2011 | AJ67: 0,5-2 MW, Anlage < 5 MW | AP67: 8.65 | AQ67: 6.92 | AR67: 8.65 | AU67: EEG | AV67: WaK233------11
W68: Inbetriebnahme 08-12/2014 | X68: 2014-08-01 | Y68: 2014-12-31 | AA68: 67 | AB68: EEG | AC68: WaK233------11 | AD68: Wasser | AE68: Wasser | AF68: Inbetriebnahme 2011 | AG68: Inbetriebnahme 2011 | AJ68: 2-5 MW, Anlage < 5 MW | AP68: 7.65 | AQ68: 6.12 | AR68: 7.65 | AU68: EEG | AV68: WaK234------11
W69: Inbetriebnahme 2015 | X69: 2015-01-01 | Y69: 2015-12-31 | AA69: 68 | AB69: EEG | AC69: WaK234------11 | AD69: Wasser | AE69: Wasser | AF69: Inbetriebnahme 2011 | AG69: Inbetriebnahme 2011 | AJ69: 0,5-5 MW, Anlage < 5 MW, Modernisierung | AO69: MOD | AP69: 8.65 | AQ69: 6.92 | AR69: 8.65 | AU69: EEG | AV69: WaK235------11
W70: Inbetriebnahme 30.06. bis 31.12.2006 | X70: 2006-06-30 | Y70: 2006-12-31 | AA70: 69 | AB70: EEG | AC70: WaK235------11 | AD70: Wasser | AE70: Wasser | AF70: Inbetriebnahme 2011 | AG70: Inbetriebnahme 2011 | AJ70: >5 MW, Zubau 0-0,5 MW | AP70: 7.14 | AQ70: 5.71 | AR70: 7.14 | AU70: EEG | AV70: WaK236------11
W71: Inbetriebnahme bis 2001 | Y71: 2001-12-31 | AA71: 70 | AB71: EEG | AC71: WaK236------11 | AD71: Wasser | AE71: Wasser | AF71: Inbetriebnahme 2011 | AG71: Inbetriebnahme 2011 | AJ71: >5 MW, Zubau 0,5-10 MW | AP71: 6.19 | AQ71: 4.95 | AR71: 6.19 | AU71: EEG | AV71: WaK237------11
W72: Inbetriebnahme bis 2012 | Y72: 2012-12-31 | AA72: 71 | AB72: EEG | AC72: WaK237------11 | AD72: Wasser | AE72: Wasser | AF72: Inbetriebnahme 2011 | AG72: Inbetriebnahme 2011 | AJ72: >5 MW, Zubau 10-20 MW | AP72: 5.68 | AQ72: 4.54 | AR72: 5.68 | AU72: EEG | AV72: WaK238------11
W73: Modernisierung 2012 | X73: 2012-01-01 | Y73: 2012-12-31 | AA73: 72 | AB73: EEG | AC73: WaK238------11 | AD73: Wasser | AE73: Wasser | AF73: Inbetriebnahme 2011 | AG73: Inbetriebnahme 2011 | AJ73: >5 MW, Zubau 20-50 MW | AP73: 4.25 | AQ73: 3.4 | AR73: 4.25 | AU73: EEG | AV73: WaK239------11
W74: Modernisierung 2013 | X74: 2013-01-01 | Y74: 2013-12-31 | AA74: 73 | AB74: EEG | AC74: WaK239------11 | AD74: Wasser | AE74: Wasser | AF74: Inbetriebnahme 2011 | AG74: Inbetriebnahme 2011 | AJ74: >5 MW, Zubau >50 MW | AP74: 3.43 | AQ74: 2.74 | AR74: 3.43 | AU74: EEG | AV74: WaK230BS----12
W75: Modernisierung 2014 | X75: 2014-01-01 | Y75: 2014-07-31 | AA75: 74 | AB75: EEG | AC75: WaK230BS----12 | AD75: Wasser | AE75: Wasser | AF75: Inbetriebnahme 2012 | AG75: Inbetriebnahme 2012 | AJ75: 0-0,5 MW, Anlage 0,5-5 MW, wasserrechtliche Genehmigung vor 01.01.2012 (Bestandsschutz nach § 66 Abs. 5 EEG 2012) | AP75: 12.67 | AQ75: 10.14 | AR75: 12.67 | AU75: EEG | AV75: WaK231BS----12
W76: Modernisierung 08-12/2014 | X76: 2014-08-01 | Y76: 2014-12-31 | AA76: 75 | AB76: EEG | AC76: WaK231BS----12 | AD76: Wasser | AE76: Wasser | AF76: Modernisierung 2012 | AG76: Modernisierung 2012 | AJ76: 0-0,5 MW, Anlage < 5 MW mit IB vor 01.08.2004, Modernisierung (Bestandsschutz nach § 66 Abs. 14 EEG 2012) | AP76: 11.67 | AQ76: 9.34 | AR76: 11.67 | AU76: EEG | AV76: WaK232BS----12
W77: Modernisierung 2015 | X77: 2015-01-01 | Y77: 2015-12-31 | AA77: 76 | AB77: EEG | AC77: WaK232BS----12 | AD77: Wasser | AE77: Wasser | AF77: Inbetriebnahme 2012 | AG77: Inbetriebnahme 2012 | AJ77: 0,5-2 MW, Anlage 0,5-5 MW, wasserrechtliche Genehmigung vor 01.01.2012 (Bestandsschutz nach § 66 Abs. 5 EEG 2012) | AP77: 8.65 | AQ77: 6.92 | AR77: 8.65 | AU77: EEG | AV77: WaK233BS----12
W78: Inbetriebnahme 07-09/2012 | X78: 2012-07-01 | Y78: 2012-09-30 | AA78: 77 | AB78: EEG | AC78: WaK233BS----12 | AD78: Wasser | AE78: Wasser | AF78: Inbetriebnahme 2012 | AG78: Inbetriebnahme 2012 | AJ78: 2-5 MW, Anlage 0,5-5 MW, wasserrechtliche Genehmigung vor 01.01.2012 (Bestandsschutz nach § 66 Abs. 5 EEG 2012) | AP78: 7.65 | AQ78: 6.12 | AR78: 7.65 | AU78: EEG | AV78: WaK234BS----12
W79: Inbetriebnahme bis 31.07.2014 | Y79: 2014-07-31 | AA79: 78 | AB79: EEG | AC79: WaK234BS----12 | AD79: Wasser | AE79: Wasser | AF79: Modernisierung 2012 | AG79: Modernisierung 2012 | AJ79: 0,5-5 MW, Anlage < 5 MW mit IB vor 01.08.2004, Modernisierung (Bestandsschutz nach § 66 Abs. 14 EEG 2012) | AO79: MOD | AP79: 8.65 | AQ79: 6.92 | AR79: 8.65 | AU79: EEG | AV79: WaK230------12
W80: Inbetriebnahme ab 08.2014 | X80: 2014-08-01 | AA80: 79 | AB80: EEG | AC80: WaK230------12 | AD80: Wasser | AE80: Wasser | AF80: Inbetriebnahme 2012 | AG80: Inbetriebnahme 2012 | AJ80: 0-0,5 MW | AP80: 12.7 | AQ80: 10.16 | AR80: 12.7 | AU80: EEG | AV80: WaK231------12
AA81: 80 | AB81: EEG | AC81: WaK231------12 | AD81: Wasser | AE81: Wasser | AF81: Inbetriebnahme 2012 | AG81: Inbetriebnahme 2012 | AJ81: 0,5-2 MW | AP81: 8.3 | AQ81: 6.64 | AR81: 8.3 | AU81: EEG | AV81: WaK232------12
AA82: 81 | AB82: EEG | AC82: WaK232------12 | AD82: Wasser | AE82: Wasser | AF82: Inbetriebnahme 2012 | AG82: Inbetriebnahme 2012 | AJ82: 2-5 MW | AP82: 6.3 | AQ82: 5.04 | AR82: 6.3 | AU82: EEG | AV82: WaK233------12
AA83: 82 | AB83: EEG | AC83: WaK233------12 | AD83: Wasser | AE83: Wasser | AF83: Inbetriebnahme 2012 | AG83: Inbetriebnahme 2012 | AJ83: 5-10 MW | AP83: 5.5 | AQ83: 4.4 | AR83: 5.5 | AU83: EEG | AV83: WaK234------12
AA84: 83 | AB84: EEG | AC84: WaK234------12 | AD84: Wasser | AE84: Wasser | AF84: Inbetriebnahme 2012 | AG84: Inbetriebnahme 2012 | AJ84: 10-20 MW | AP84: 5.3 | AQ84: 4.24 | AR84: 5.3 | AU84: EEG | AV84: WaK235------12
AA85: 84 | AB85: EEG | AC85: WaK235------12 | AD85: Wasser | AE85: Wasser | AF85: Inbetriebnahme 2012 | AG85: Inbetriebnahme 2012 | AJ85: 20-50 MW | AP85: 4.2 | AQ85: 3.36 | AR85: 4.2 | AU85: EEG | AV85: WaK236------12
AA86: 85 | AB86: EEG | AC86: WaK236------12 | AD86: Wasser | AE86: Wasser | AF86: Inbetriebnahme 2012 | AG86: Inbetriebnahme 2012 | AJ86: > 50 MW | AP86: 3.4 | AQ86: 2.72 | AR86: 3.4 | AU86: EEG | AV86: WaK230M-----12
AA87: 86 | AB87: EEG | AC87: WaK230M-----12 | AD87: Wasser | AE87: Wasser | AF87: Modernisierung 2012 | AG87: Modernisierung 2012 | AJ87: 0-0,5 MW, IB vor 01.01.2009, Modernisierung 2012 | AO87: MOD | AP87: 12.7 | AQ87: 10.16 | AR87: 12.7 | AU87: EEG | AV87: WaK231M-----12
AA88: 87 | AB88: EEG | AC88: WaK231M-----12 | AD88: Wasser | AE88: Wasser | AF88: Modernisierung 2012 | AG88: Modernisierung 2012 | AJ88: 0,5-2 MW, IB vor 01.01.2009, Modernisierung 2012 | AO88: MOD | AP88: 8.3 | AQ88: 6.64 | AR88: 8.3 | AU88: EEG | AV88: WaK232M-----12
AA89: 88 | AB89: EEG | AC89: WaK232M-----12 | AD89: Wasser | AE89: Wasser | AF89: Modernisierung 2012 | AG89: Modernisierung 2012 | AJ89: 2-5 MW, IB vor 01.01.2009, Modernisierung 2012 | AO89: MOD | AP89: 6.3 | AQ89: 5.04 | AR89: 6.3 | AU89: EEG | AV89: WaK233M-----12
AA90: 89 | AB90: EEG | AC90: WaK233M-----12 | AD90: Wasser | AE90: Wasser | AF90: Modernisierung 2012 | AG90: Modernisierung 2012 | AJ90: 5-10 MW, IB vor 01.01.2009, Modernisierung 2012 | AO90: MOD | AP90: 5.5 | AQ90: 4.4 | AR90: 5.5 | AU90: EEG | AV90: WaK234M-----12
AA91: 90 | AB91: EEG | AC91: WaK234M-----12 | AD91: Wasser | AE91: Wasser | AF91: Modernisierung 2012 | AG91: Modernisierung 2012 | AJ91: 10-20 MW, IB vor 01.01.2009, Modernisierung 2012 | AO91: MOD | AP91: 5.3 | AQ91: 4.24 | AR91: 5.3 | AU91: EEG | AV91: WaK235M-----12
AA92: 91 | AB92: EEG | AC92: WaK235M-----12 | AD92: Wasser | AE92: Wasser | AF92: Modernisierung 2012 | AG92: Modernisierung 2012 | AJ92: 20-50 MW, IB vor 01.01.2009, Modernisierung 2012 | AO92: MOD | AP92: 4.2 | AQ92: 3.36 | AR92: 4.2 | AU92: EEG | AV92: WaK236M-----12
AA93: 92 | AB93: EEG | AC93: WaK236M-----12 | AD93: Wasser | AE93: Wasser | AF93: Modernisierung 2012 | AG93: Modernisierung 2012 | AJ93: > 50 MW, IB vor 01.01.2009, Modernisierung 2012 | AO93: MOD | AP93: 3.4 | AQ93: 2.72 | AR93: 3.4 | AU93: EEG | AV93: WaK230BS----13
AA94: 93 | AB94: EEG | AC94: WaK230BS----13 | AD94: Wasser | AE94: Wasser | AF94: Inbetriebnahme 2013 | AG94: Inbetriebnahme 2013 | AJ94: 0-0,5 MW, Anlage 0,5-5 MW, wasserrechtliche Genehmigung vor 01.01.2012 (Bestandsschutz nach § 66 Abs. 5 EEG 2012) | AP94: 12.67 | AQ94: 10.14 | AR94: 12.67 | AU94: EEG | AV94: WaK231BS----13
AA95: 94 | AB95: EEG | AC95: WaK231BS----13 | AD95: Wasser | AE95: Wasser | AF95: Modernisierung 2013 | AG95: Modernisierung 2013 | AJ95: 0-0,5 MW, Anlage < 5 MW mit IB vor 01.08.2004, Modernisierung (Bestandsschutz nach § 66 Abs. 14 EEG 2012) | AP95: 11.67 | AQ95: 9.34 | AR95: 11.67 | AU95: EEG | AV95: WaK232BS----13
AA96: 95 | AB96: EEG | AC96: WaK232BS----13 | AD96: Wasser | AE96: Wasser | AF96: Inbetriebnahme 2013 | AG96: Inbetriebnahme 2013 | AJ96: 0,5-2 MW, Anlage 0,5-5 MW, wasserrechtliche Genehmigung vor 01.01.2012 (Bestandsschutz nach § 66 Abs. 5 EEG 2012) | AP96: 8.65 | AQ96: 6.92 | AR96: 8.65 | AU96: EEG | AV96: WaK233BS----13
AA97: 96 | AB97: EEG | AC97: WaK233BS----13 | AD97: Wasser | AE97: Wasser | AF97: Inbetriebnahme 2013 | AG97: Inbetriebnahme 2013 | AJ97: 2-5 MW, Anlage 0,5-5 MW, wasserrechtliche Genehmigung vor 01.01.2012 (Bestandsschutz nach § 66 Abs. 5 EEG 2012) | AP97: 7.65 | AQ97: 6.12 | AR97: 7.65 | AU97: EEG | AV97: WaK234BS----13
AA98: 97 | AB98: EEG | AC98: WaK234BS----13 | AD98: Wasser | AE98: Wasser | AF98: Modernisierung 2013 | AG98: Modernisierung 2013 | AJ98: 0,5-5 MW, Anlage < 5 MW mit IB vor 01.08.2004, Modernisierung (Bestandsschutz nach § 66 Abs. 14 EEG 2012) | AP98: 8.65 | AQ98: 6.92 | AR98: 8.65 | AU98: EEG | AV98: WaK230------13
AA99: 98 | AB99: EEG | AC99: WaK230------13 | AD99: Wasser | AE99: Wasser | AF99: Inbetriebnahme 2013 | AG99: Inbetriebnahme 2013 | AJ99: 0-0,5 MW | AP99: 12.57 | AQ99: 10.06 | AR99: 12.57 | AU99: EEG | AV99: WaK231------13
AA100: 99 | AB100: EEG | AC100: WaK231------13 | AD100: Wasser | AE100: Wasser | AF100: Inbetriebnahme 2013 | AG100: Inbetriebnahme 2013 | AJ100: 0,5-2 MW | AP100: 8.22 | AQ100: 6.58 | AR100: 8.22 | AU100: EEG | AV100: WaK232------13
AA101: 100 | AB101: EEG | AC101: WaK232------13 | AD101: Wasser | AE101: Wasser | AF101: Inbetriebnahme 2013 | AG101: Inbetriebnahme 2013 | AJ101: 2-5 MW | AP101: 6.24 | AQ101: 4.99 | AR101: 6.24 | AU101: EEG | AV101: WaK233------13
AA102: 101 | AB102: EEG | AC102: WaK233------13 | AD102: Wasser | AE102: Wasser | AF102: Inbetriebnahme 2013 | AG102: Inbetriebnahme 2013 | AJ102: 5-10 MW | AP102: 5.45 | AQ102: 4.36 | AR102: 5.45 | AU102: EEG | AV102: WaK234------13
AA103: 102 | AB103: EEG | AC103: WaK234------13 | AD103: Wasser | AE103: Wasser | AF103: Inbetriebnahme 2013 | AG103: Inbetriebnahme 2013 | AJ103: 10-20 MW | AP103: 5.25 | AQ103: 4.2 | AR103: 5.25 | AU103: EEG | AV103: WaK235------13
AA104: 103 | AB104: EEG | AC104: WaK235------13 | AD104: Wasser | AE104: Wasser | AF104: Inbetriebnahme 2013 | AG104: Inbetriebnahme 2013 | AJ104: 20-50 MW | AP104: 4.16 | AQ104: 3.33 | AR104: 4.16 | AU104: EEG | AV104: WaK236------13
AA105: 104 | AB105: EEG | AC105: WaK236------13 | AD105: Wasser | AE105: Wasser | AF105: Inbetriebnahme 2013 | AG105: Inbetriebnahme 2013 | AJ105: > 50 MW | AP105: 3.37 | AQ105: 2.7 | AR105: 3.37 | AU105: EEG | AV105: WaK230M-----13
AA106: 105 | AB106: EEG | AC106: WaK230M-----13 | AD106: Wasser | AE106: Wasser | AF106: Modernisierung 2013 | AG106: Modernisierung 2013 | AJ106: 0-0,5 MW, IB vor 01.01.2009, Modernisierung 2013 | AO106: MOD | AP106: 12.57 | AQ106: 10.06 | AR106: 12.57 | AU106: EEG | AV106: WaK231M-----13
AA107: 106 | AB107: EEG | AC107: WaK231M-----13 | AD107: Wasser | AE107: Wasser | AF107: Modernisierung 2013 | AG107: Modernisierung 2013 | AJ107: 0,5-2 MW, IB vor 01.01.2009, Modernisierung 2013 | AO107: MOD | AP107: 8.22 | AQ107: 6.58 | AR107: 8.22 | AU107: EEG | AV107: WaK232M-----13
AA108: 107 | AB108: EEG | AC108: WaK232M-----13 | AD108: Wasser | AE108: Wasser | AF108: Modernisierung 2013 | AG108: Modernisierung 2013 | AJ108: 2-5 MW, IB vor 01.01.2009, Modernisierung 2013 | AO108: MOD | AP108: 6.24 | AQ108: 4.99 | AR108: 6.24 | AU108: EEG | AV108: WaK233M-----13
AA109: 108 | AB109: EEG | AC109: WaK233M-----13 | AD109: Wasser | AE109: Wasser | AF109: Modernisierung 2013 | AG109: Modernisierung 2013 | AJ109: 5-10 MW, IB vor 01.01.2009, Modernisierung 2013 | AO109: MOD | AP109: 5.45 | AQ109: 4.36 | AR109: 5.45 | AU109: EEG | AV109: WaK234M-----13
AA110: 109 | AB110: EEG | AC110: WaK234M-----13 | AD110: Wasser | AE110: Wasser | AF110: Modernisierung 2013 | AG110: Modernisierung 2013 | AJ110: 10-20 MW, IB vor 01.01.2009, Modernisierung 2013 | AO110: MOD | AP110: 5.25 | AQ110: 4.2 | AR110: 5.25 | AU110: EEG | AV110: WaK235M-----13
AA111: 110 | AB111: EEG | AC111: WaK235M-----13 | AD111: Wasser | AE111: Wasser | AF111: Modernisierung 2013 | AG111: Modernisierung 2013 | AJ111: 20-50 MW, IB vor 01.01.2009, Modernisierung 2013 | AO111: MOD | AP111: 4.16 | AQ111: 3.33 | AR111: 4.16 | AU111: EEG | AV111: WaK236M-----13
AA112: 111 | AB112: EEG | AC112: WaK236M-----13 | AD112: Wasser | AE112: Wasser | AF112: Modernisierung 2013 | AG112: Modernisierung 2013 | AJ112: > 50 MW, IB vor 01.01.2009, Modernisierung 2013 | AO112: MOD | AP112: 3.37 | AQ112: 2.7 | AR112: 3.37 | AU112: EEG | AV112: WaK230------14
AA113: 112 | AB113: EEG | AC113: WaK230------14 | AD113: Wasser | AE113: Wasser | AF113: Inbetriebnahme 2014 | AG113: Inbetriebnahme 2014 | AJ113: 0-0,5 MW | AP113: 12.45 | AQ113: 9.96 | AR113: 12.45 | AU113: EEG | AV113: WaK231------14
AA114: 113 | AB114: EEG | AC114: WaK231------14 | AD114: Wasser | AE114: Wasser | AF114: Inbetriebnahme 2014 | AG114: Inbetriebnahme 2014 | AJ114: 0,5-2 MW | AP114: 8.13 | AQ114: 6.5 | AR114: 8.13 | AU114: EEG | AV114: WaK232------14
AA115: 114 | AB115: EEG | AC115: WaK232------14 | AD115: Wasser | AE115: Wasser | AF115: Inbetriebnahme 2014 | AG115: Inbetriebnahme 2014 | AJ115: 2-5 MW | AP115: 6.17 | AQ115: 4.94 | AR115: 6.17 | AU115: EEG | AV115: WaK233------14
AA116: 115 | AB116: EEG | AC116: WaK233------14 | AD116: Wasser | AE116: Wasser | AF116: Inbetriebnahme 2014 | AG116: Inbetriebnahme 2014 | AJ116: 5-10 MW | AP116: 5.39 | AQ116: 4.31 | AR116: 5.39 | AU116: EEG | AV116: WaK234------14
AA117: 116 | AB117: EEG | AC117: WaK234------14 | AD117: Wasser | AE117: Wasser | AF117: Inbetriebnahme 2014 | AG117: Inbetriebnahme 2014 | AJ117: 10-20 MW | AP117: 5.19 | AQ117: 4.15 | AR117: 5.19 | AU117: EEG | AV117: WaK235------14
AA118: 117 | AB118: EEG | AC118: WaK235------14 | AD118: Wasser | AE118: Wasser | AF118: Inbetriebnahme 2014 | AG118: Inbetriebnahme 2014 | AJ118: 20-50 MW | AP118: 4.12 | AQ118: 3.3 | AR118: 4.12 | AU118: EEG | AV118: WaK236------14
AA119: 118 | AB119: EEG | AC119: WaK236------14 | AD119: Wasser | AE119: Wasser | AF119: Inbetriebnahme 2014 | AG119: Inbetriebnahme 2014 | AJ119: > 50 MW | AP119: 3.33 | AQ119: 2.66 | AR119: 3.33 | AU119: EEG | AV119: WaK230M-----14
AA120: 119 | AB120: EEG | AC120: WaK230M-----14 | AD120: Wasser | AE120: Wasser | AF120: Modernisierung 2014 | AG120: Modernisierung 2014 | AJ120: 0-0,5 MW, IB vor 01.01.2009, Modernisierung 2014 | AO120: MOD | AP120: 12.45 | AQ120: 9.96 | AR120: 12.45 | AU120: EEG | AV120: WaK231M-----14
AA121: 120 | AB121: EEG | AC121: WaK231M-----14 | AD121: Wasser | AE121: Wasser | AF121: Modernisierung 2014 | AG121: Modernisierung 2014 | AJ121: 0,5-2 MW, IB vor 01.01.2009, Modernisierung 2014 | AO121: MOD | AP121: 8.13 | AQ121: 6.5 | AR121: 8.13 | AU121: EEG | AV121: WaK232M-----14
AA122: 121 | AB122: EEG | AC122: WaK232M-----14 | AD122: Wasser | AE122: Wasser | AF122: Modernisierung 2014 | AG122: Modernisierung 2014 | AJ122: 2-5 MW, IB vor 01.01.2009, Modernisierung 2014 | AO122: MOD | AP122: 6.17 | AQ122: 4.94 | AR122: 6.17 | AU122: EEG | AV122: WaK233M-----14
AA123: 122 | AB123: EEG | AC123: WaK233M-----14 | AD123: Wasser | AE123: Wasser | AF123: Modernisierung 2014 | AG123: Modernisierung 2014 | AJ123: 5-10 MW, IB vor 01.01.2009, Modernisierung 2014 | AO123: MOD | AP123: 5.39 | AQ123: 4.31 | AR123: 5.39 | AU123: EEG | AV123: WaK234M-----14
AA124: 123 | AB124: EEG | AC124: WaK234M-----14 | AD124: Wasser | AE124: Wasser | AF124: Modernisierung 2014 | AG124: Modernisierung 2014 | AJ124: 10-20 MW, IB vor 01.01.2009, Modernisierung 2014 | AO124: MOD | AP124: 5.19 | AQ124: 4.15 | AR124: 5.19 | AU124: EEG | AV124: WaK235M-----14
AA125: 124 | AB125: EEG | AC125: WaK235M-----14 | AD125: Wasser | AE125: Wasser | AF125: Modernisierung 2014 | AG125: Modernisierung 2014 | AJ125: 20-50 MW, IB vor 01.01.2009, Modernisierung 2014 | AO125: MOD | AP125: 4.12 | AQ125: 3.3 | AR125: 4.12 | AU125: EEG | AV125: WaK236M-----14
AA126: 125 | AB126: EEG | AC126: WaK236M-----14 | AD126: Wasser | AE126: Wasser | AF126: Modernisierung 2014 | AG126: Modernisierung 2014 | AJ126: > 50 MW, IB vor 01.01.2009, Modernisierung 2014 | AO126: MOD | AP126: 3.33 | AQ126: 2.66 | AR126: 3.33 | AU126: EEG | AV126: WaK400------14
AA127: 126 | AB127: EEG | AC127: WaK400------14 | AD127: Wasser | AE127: Wasser | AF127: Inbetriebnahme 08-12/2014 | AG127: Inbetriebnahme 08-12/2014 | AJ127: 0-0,5 MW | AP127: 12.32 | AQ127: 10.02 | AR127: 12.52 | AU127: EEG | AV127: WaK401------14
AA128: 127 | AB128: EEG | AC128: WaK401------14 | AD128: Wasser | AE128: Wasser | AF128: Inbetriebnahme 08-12/2014 | AG128: Inbetriebnahme 08-12/2014 | AJ128: 0,5-2 MW | AP128: 8.05 | AQ128: 6.6 | AR128: 8.25 | AU128: EEG | AV128: WaK402------14
AA129: 128 | AB129: EEG | AC129: WaK402------14 | AD129: Wasser | AE129: Wasser | AF129: Inbetriebnahme 08-12/2014 | AG129: Inbetriebnahme 08-12/2014 | AJ129: 2-5 MW | AP129: 6.11 | AQ129: 5.05 | AR129: 6.31 | AU129: EEG | AV129: WaK403------14
AA130: 129 | AB130: EEG | AC130: WaK403------14 | AD130: Wasser | AE130: =VLOOKUP(AD130,ENERGIETRAEGER,1,FALSE) -> Wasser | AF130: =VLOOKUP(AG130,VIN,1,FALSE) -> Inbetriebnahme 08-12/2014 | AG130: Inbetriebnahme 08-12/2014 | AJ130: 5-10 MW | AP130: 5.34 | AQ130: 4.43 | AR130: 5.54 | AU130: EEG | AV130: WaK404------14
AA131: 130 | AB131: EEG | AC131: WaK404------14 | AD131: Wasser | AE131: Wasser | AF131: Inbetriebnahme 08-12/2014 | AG131: Inbetriebnahme 08-12/2014 | AJ131: 10-20 MW | AP131: 5.14 | AQ131: 4.27 | AR131: 5.34 | AU131: EEG | AV131: WaK405------14
AA132: 131 | AB132: EEG | AC132: WaK405------14 | AD132: Wasser | AE132: Wasser | AF132: Inbetriebnahme 08-12/2014 | AG132: Inbetriebnahme 08-12/2014 | AJ132: 20-50 MW | AP132: 4.08 | AQ132: 3.42 | AR132: 4.28 | AU132: EEG | AV132: WaK406------14
AA133: 132 | AB133: EEG | AC133: WaK406------14 | AD133: Wasser | AE133: Wasser | AF133: Inbetriebnahme 08-12/2014 | AG133: Inbetriebnahme 08-12/2014 | AJ133: > 50 MW | AP133: 3.3 | AQ133: 2.8 | AR133: 3.5 | AU133: EEG | AV133: WaK400M-----14
AA134: 133 | AB134: EEG | AC134: WaK400M-----14 | AD134: Wasser | AE134: Wasser | AF134: Modernisierung 08-12/2014 | AG134: Modernisierung 08-12/2014 | AJ134: 0-0,5 MW, IB vor 01.01.2009, Modernisierung 2014 | AO134: MOD | AP134: 12.52 | AQ134: 10.02 | AR134: 12.52 | AU134: EEG | AV134: WaK401M-----14
AA135: 134 | AB135: EEG | AC135: WaK401M-----14 | AD135: Wasser | AE135: Wasser | AF135: Modernisierung 08-12/2014 | AG135: Modernisierung 08-12/2014 | AJ135: 0,5-2 MW, IB vor 01.01.2009, Modernisierung 2014 | AO135: MOD | AP135: 8.25 | AQ135: 6.6 | AR135: 8.25 | AU135: EEG | AV135: WaK402M-----14
AA136: 135 | AB136: EEG | AC136: WaK402M-----14 | AD136: Wasser | AE136: Wasser | AF136: Modernisierung 08-12/2014 | AG136: Modernisierung 08-12/2014 | AJ136: 2-5 MW, IB vor 01.01.2009, Modernisierung 2014 | AO136: MOD | AP136: 6.31 | AQ136: 5.05 | AR136: 6.31 | AU136: EEG | AV136: WaK403M-----14
AA137: 136 | AB137: EEG | AC137: WaK403M-----14 | AD137: Wasser | AE137: Wasser | AF137: Modernisierung 08-12/2014 | AG137: Modernisierung 08-12/2014 | AJ137: 5-10 MW, IB vor 01.01.2009, Modernisierung 2014 | AO137: MOD | AP137: 5.54 | AQ137: 4.43 | AR137: 5.54 | AU137: EEG | AV137: WaK404M-----14
AA138: 137 | AB138: EEG | AC138: WaK404M-----14 | AD138: Wasser | AE138: Wasser | AF138: Modernisierung 08-12/2014 | AG138: Modernisierung 08-12/2014 | AJ138: 10-20 MW, IB vor 01.01.2009, Modernisierung 2014 | AO138: MOD | AP138: 5.34 | AQ138: 4.27 | AR138: 5.34 | AU138: EEG | AV138: WaK405M-----14
AA139: 138 | AB139: EEG | AC139: WaK405M-----14 | AD139: Wasser | AE139: Wasser | AF139: Modernisierung 08-12/2014 | AG139: Modernisierung 08-12/2014 | AJ139: 20-50 MW, IB vor 01.01.2009, Modernisierung 2014 | AO139: MOD | AP139: 4.28 | AQ139: 3.42 | AR139: 4.28 | AU139: EEG | AV139: WaK406M-----14
AA140: 139 | AB140: EEG | AC140: WaK406M-----14 | AD140: Wasser | AE140: Wasser | AF140: Modernisierung 08-12/2014 | AG140: Modernisierung 08-12/2014 | AJ140: > 50 MW, IB vor 01.01.2009, Modernisierung 2014 | AO140: MOD | AP140: 3.5 | AQ140: 2.8 | AR140: 3.5 | AU140: EEG | AV140: WaK400------15
AA141: 140 | AB141: EEG | AC141: WaK400------15 | AD141: Wasser | AE141: Wasser | AF141: Inbetriebnahme 2015 | AG141: Inbetriebnahme 2015 | AJ141: 0-0,5 MW | AP141: 12.32 | AQ141: 10.02 | AR141: 12.52 | AU141: EEG | AV141: WaK401------15
AA142: 141 | AB142: EEG | AC142: WaK401------15 | AD142: Wasser | AE142: Wasser | AF142: Inbetriebnahme 2015 | AG142: Inbetriebnahme 2015 | AJ142: 0,5-2 MW | AP142: 8.05 | AQ142: 6.6 | AR142: 8.25 | AU142: EEG | AV142: WaK402------15
AA143: 142 | AB143: EEG | AC143: WaK402------15 | AD143: Wasser | AE143: Wasser | AF143: Inbetriebnahme 2015 | AG143: Inbetriebnahme 2015 | AJ143: 2-5 MW | AP143: 6.11 | AQ143: 5.05 | AR143: 6.31 | AU143: EEG | AV143: WaK403------15
AA144: 143 | AB144: EEG | AC144: WaK403------15 | AD144: Wasser | AE144: Wasser | AF144: Inbetriebnahme 2015 | AG144: Inbetriebnahme 2015 | AJ144: 5-10 MW | AP144: 5.34 | AQ144: 4.43 | AR144: 5.54 | AU144: EEG | AV144: WaK404------15
AA145: 144 | AB145: EEG | AC145: WaK404------15 | AD145: Wasser | AE145: Wasser | AF145: Inbetriebnahme 2015 | AG145: Inbetriebnahme 2015 | AJ145: 10-20 MW | AP145: 5.14 | AQ145: 4.27 | AR145: 5.34 | AU145: EEG | AV145: WaK405------15
AA146: 145 | AB146: EEG | AC146: WaK405------15 | AD146: Wasser | AE146: Wasser | AF146: Inbetriebnahme 2015 | AG146: Inbetriebnahme 2015 | AJ146: 20-50 MW | AP146: 4.08 | AQ146: 3.42 | AR146: 4.28 | AU146: EEG | AV146: WaK406------15
AA147: 146 | AB147: EEG | AC147: WaK406------15 | AD147: Wasser | AE147: Wasser | AF147: Inbetriebnahme 2015 | AG147: Inbetriebnahme 2015 | AJ147: > 50 MW | AP147: 3.3 | AQ147: 2.8 | AR147: 3.5 | AU147: EEG | AV147: WaK400M-----15
AA148: 147 | AB148: EEG | AC148: WaK400M-----15 | AD148: Wasser | AE148: Wasser | AF148: Modernisierung 2015 | AG148: Modernisierung 2015 | AJ148: 0-0,5 MW, IB vor 01.01.2009, Modernisierung 2015 | AO148: MOD | AP148: 12.52 | AQ148: 10.02 | AR148: 12.52 | AU148: EEG | AV148: WaK401M-----15
AA149: 148 | AB149: EEG | AC149: WaK401M-----15 | AD149: Wasser | AE149: Wasser | AF149: Modernisierung 2015 | AG149: Modernisierung 2015 | AJ149: 0,5-2 MW, IB vor 01.01.2009, Modernisierung 2015 | AO149: MOD | AP149: 8.25 | AQ149: 6.6 | AR149: 8.25 | AU149: EEG | AV149: WaK402M-----15
AA150: 149 | AB150: EEG | AC150: WaK402M-----15 | AD150: Wasser | AE150: Wasser | AF150: Modernisierung 2015 | AG150: Modernisierung 2015 | AJ150: 2-5 MW, IB vor 01.01.2009, Modernisierung 2015 | AO150: MOD | AP150: 6.31 | AQ150: 5.05 | AR150: 6.31 | AU150: EEG | AV150: WaK403M-----15
AA151: 150 | AB151: EEG | AC151: WaK403M-----15 | AD151: Wasser | AE151: Wasser | AF151: Modernisierung 2015 | AG151: Modernisierung 2015 | AJ151: 5-10 MW, IB vor 01.01.2009, Modernisierung 2015 | AO151: MOD | AP151: 5.54 | AQ151: 4.43 | AR151: 5.54 | AU151: EEG | AV151: WaK404M-----15
AA152: 151 | AB152: EEG | AC152: WaK404M-----15 | AD152: Wasser | AE152: Wasser | AF152: Modernisierung 2015 | AG152: Modernisierung 2015 | AJ152: 10-20 MW, IB vor 01.01.2009, Modernisierung 2015 | AO152: MOD | AP152: 5.34 | AQ152: 4.27 | AR152: 5.34 | AU152: EEG | AV152: WaK405M-----15
AA153: 152 | AB153: EEG | AC153: WaK405M-----15 | AD153: Wasser | AE153: Wasser | AF153: Modernisierung 2015 | AG153: Modernisierung 2015 | AJ153: 20-50 MW, IB vor 01.01.2009, Modernisierung 2015 | AO153: MOD | AP153: 4.28 | AQ153: 3.42 | AR153: 4.28 | AU153: EEG | AV153: WaK406M-----15
AA154: 153 | AB154: EEG | AC154: WaK406M-----15 | AD154: Wasser | AE154: Wasser | AF154: Modernisierung 2015 | AG154: Modernisierung 2015 | AJ154: > 50 MW, IB vor 01.01.2009, Modernisierung 2015 | AO154: MOD | AP154: 3.5 | AQ154: 2.8 | AR154: 3.5 | AU154: EEG | AV154: BiK51n------01
AA155: 154 | AB155: EEG | AC155: BiK51n------01 | AD155: Biomasse | AE155: =VLOOKUP(AD155,ENERGIETRAEGER,1,FALSE) -> Biomasse | AF155: =VLOOKUP(AG155,VIN,1,FALSE) -> Inbetriebnahme bis 2001 | AG155: Inbetriebnahme bis 2001 | AJ155: 0-0,150 MW | AL155: =IF(ISERR(FIND("Anteil KWK",AN155)),"","Ja") ->  | AN155: Anteil Nicht-KWK | AP155: 11.67 | AQ155: 9.34 | AR155: 11.67 | AU155: EEG | AV155: BiK51nKA3---01
AA156: 155 | AB156: EEG | AC156: BiK51nKA3---01 | AD156: Biomasse | AE156: Biomasse | AF156: Inbetriebnahme bis 2001 | AG156: Inbetriebnahme bis 2001 | AJ156: 0-0,150 MW, Bonusregel K wenn Anlage 3 erfüllt | AL156: =IF(ISERR(FIND("Anteil KWK",AN156)),"","Ja") -> Ja | AN156: Anteil KWK gemäß Anlage 3 | AP156: 14.67 | AQ156: 11.74 | AR156: 14.67 | AU156: EEG | AV156: BiK51nK09---01
AA157: 156 | AB157: EEG | AC157: BiK51nK09---01 | AD157: Biomasse | AE157: Biomasse | AF157: Inbetriebnahme bis 2001 | AG157: Inbetriebnahme bis 2001 | AJ157: 0-0,150 MW, Bonusregel K erstmals 2009 | AL157: Ja | AN157: Anteil KWK, erstmals 2009 | AP157: 14.67 | AQ157: 11.74 | AR157: 14.67 | AU157: EEG | AV157: BiK51nK10---01
AA158: 157 | AB158: EEG | AC158: BiK51nK10---01 | AD158: Biomasse | AE158: Biomasse | AF158: Inbetriebnahme bis 2001 | AG158: Inbetriebnahme bis 2001 | AJ158: 0-0,150 MW, Bonusregel K erstmals 2010 | AL158: Ja | AN158: Anteil KWK, erstmals 2010 | AP158: 14.64 | AQ158: 11.71 | AR158: 14.64 | AU158: EEG | AV158: BiK51nK11---01
AA159: 158 | AB159: EEG | AC159: BiK51nK11---01 | AD159: Biomasse | AE159: Biomasse | AF159: Inbetriebnahme bis 2001 | AG159: Inbetriebnahme bis 2001 | AJ159: 0-0,150 MW, Bonusregel K erstmals 2011 | AL159: Ja | AN159: Anteil KWK, erstmals 2011 | AP159: 14.61 | AQ159: 11.69 | AR159: 14.61 | AU159: EEG | AV159: BiK51nK12---01
AA160: 159 | AB160: EEG | AC160: BiK51nK12---01 | AD160: Biomasse | AE160: Biomasse | AF160: Inbetriebnahme bis 2001 | AG160: Inbetriebnahme bis 2001 | AJ160: 0-0,150 MW, Bonusregel K erstmals 2012 | AL160: Ja | AN160: Anteil KWK, erstmals 2012 | AP160: 14.58 | AQ160: 11.66 | AR160: 14.58 | AU160: EEG | AV160: BiK51ny-----01
AA161: 160 | AB161: EEG | AC161: BiK51ny-----01 | AD161: Biomasse | AE161: Biomasse | AF161: Inbetriebnahme bis 2001 | AG161: Inbetriebnahme bis 2001 | AJ161: 0-0,150 MW, Bonusregel y | AN161: Anteil Nicht-KWK | AP161: 12.67 | AQ161: 10.14 | AR161: 12.67 | AU161: EEG | AV161: BiK51nKA3y--01
AA162: 161 | AB162: EEG | AC162: BiK51nKA3y--01 | AD162: Biomasse | AE162: Biomasse | AF162: Inbetriebnahme bis 2001 | AG162: Inbetriebnahme bis 2001 | AJ162: 0-0,150 MW, Bonusregeln y und K wenn Anlage 3 erfüllt | AL162: Ja | AN162: Anteil KWK gemäß Anlage 3 | AP162: 15.67 | AQ162: 12.54 | AR162: 15.67 | AU162: EEG | AV162: BiK51nK09y--01
AA163: 162 | AB163: EEG | AC163: BiK51nK09y--01 | AD163: Biomasse | AE163: Biomasse | AF163: Inbetriebnahme bis 2001 | AG163: Inbetriebnahme bis 2001 | AJ163: 0-0,150 MW, Bonusregeln y und K erstmals 2009 | AL163: Ja | AN163: Anteil KWK, erstmals 2009 | AP163: 15.67 | AQ163: 12.54 | AR163: 15.67 | AU163: EEG | AV163: BiK51nK10y--01
AA164: 163 | AB164: EEG | AC164: BiK51nK10y--01 | AD164: Biomasse | AE164: Biomasse | AF164: Inbetriebnahme bis 2001 | AG164: Inbetriebnahme bis 2001 | AJ164: 0-0,150 MW, Bonusregeln y und K erstmals 2010 | AL164: Ja | AN164: Anteil KWK, erstmals 2010 | AP164: 15.64 | AQ164: 12.51 | AR164: 15.64 | AU164: EEG | AV164: BiK51nK11y--01
AA165: 164 | AB165: EEG | AC165: BiK51nK11y--01 | AD165: Biomasse | AE165: Biomasse | AF165: Inbetriebnahme bis 2001 | AG165: Inbetriebnahme bis 2001 | AJ165: 0-0,150 MW, Bonusregeln y und K erstmals 2011 | AL165: Ja | AN165: Anteil KWK, erstmals 2011 | AP165: 15.61 | AQ165: 12.49 | AR165: 15.61 | AU165: EEG | AV165: BiK51nK12y--01
AA166: 165 | AB166: EEG | AC166: BiK51nK12y--01 | AD166: Biomasse | AE166: Biomasse | AF166: Inbetriebnahme bis 2001 | AG166: Inbetriebnahme bis 2001 | AJ166: 0-0,150 MW, Bonusregeln y und K erstmals 2012 | AL166: Ja | AN166: Anteil KWK, erstmals 2012 | AP166: 15.58 | AQ166: 12.46 | AR166: 15.58 | AU166: EEG | AV166: BiK51na1----01
AA167: 166 | AB167: EEG | AC167: BiK51na1----01 | AD167: Biomasse | AE167: Biomasse | AF167: Inbetriebnahme bis 2001 | AG167: Inbetriebnahme bis 2001 | AJ167: 0-0,150 MW; Bonusregel a1 | AN167: Anteil Nicht-KWK | AP167: 17.67 | AQ167: 14.14 | AR167: 17.67 | AU167: EEG | AV167: BiK51na1KA3-01
AA168: 167 | AB168: EEG | AC168: BiK51na1KA3-01 | AD168: Biomasse | AE168: Biomasse | AF168: Inbetriebnahme bis 2001 | AG168: Inbetriebnahme bis 2001 | AJ168: 0-0,150 MW, Bonusregeln a1, K wenn Anlage 3 erfüllt | AL168: Ja | AN168: Anteil KWK gemäß Anlage 3 | AP168: 20.67 | AQ168: 16.54 | AR168: 20.67 | AU168: EEG | AV168: BiK51na1K09-01
AA169: 168 | AB169: EEG | AC169: BiK51na1K09-01 | AD169: Biomasse | AE169: Biomasse | AF169: Inbetriebnahme bis 2001 | AG169: Inbetriebnahme bis 2001 | AJ169: 0-0,150 MW, Bonusregeln a1, K erstmals 2009 | AL169: Ja | AN169: Anteil KWK, erstmals 2009 | AP169: 20.67 | AQ169: 16.54 | AR169: 20.67 | AU169: EEG | AV169: BiK51na1K10-01
AA170: 169 | AB170: EEG | AC170: BiK51na1K10-01 | AD170: Biomasse | AE170: Biomasse | AF170: Inbetriebnahme bis 2001 | AG170: Inbetriebnahme bis 2001 | AJ170: 0-0,150 MW, Bonusregeln a1, K erstmals 2010 | AL170: Ja | AN170: Anteil KWK, erstmals 2010 | AP170: 20.64 | AQ170: 16.51 | AR170: 20.64 | AU170: EEG | AV170: BiK51na1K11-01
AA171: 170 | AB171: EEG | AC171: BiK51na1K11-01 | AD171: Biomasse | AE171: Biomasse | AF171: Inbetriebnahme bis 2001 | AG171: Inbetriebnahme bis 2001 | AJ171: 0-0,150 MW, Bonusregeln a1, K erstmals 2011 | AL171: Ja | AN171: Anteil KWK, erstmals 2011 | AP171: 20.61 | AQ171: 16.49 | AR171: 20.61 | AU171: EEG | AV171: BiK51na1K12-01
AA172: 171 | AB172: EEG | AC172: BiK51na1K12-01 | AD172: Biomasse | AE172: =VLOOKUP(AD172,ENERGIETRAEGER,1,FALSE) -> Biomasse | AF172: =VLOOKUP(AG172,VIN,1,FALSE) -> Inbetriebnahme bis 2001 | AG172: Inbetriebnahme bis 2001 | AJ172: 0-0,150 MW, Bonusregeln a1, K erstmals 2012 | AL172: Ja | AN172: Anteil KWK, erstmals 2012 | AP172: 20.58 | AQ172: 16.46 | AR172: 20.58 | AU172: EEG | AV172: BiK51na1y---01
AA173: 172 | AB173: EEG | AC173: BiK51na1y---01 | AD173: Biomasse | AE173: Biomasse | AF173: Inbetriebnahme bis 2001 | AG173: Inbetriebnahme bis 2001 | AJ173: 0-0,150 MW; Bonusregeln a1, y | AN173: Anteil Nicht-KWK | AP173: 18.67 | AQ173: 14.94 | AR173: 18.67 | AU173: EEG | AV173: BiK51na1KA3y01
AA174: 173 | AB174: EEG | AC174: BiK51na1KA3y01 | AD174: Biomasse | AE174: Biomasse | AF174: Inbetriebnahme bis 2001 | AG174: Inbetriebnahme bis 2001 | AJ174: 0-0,150 MW, Bonusregeln a1, y und K wenn Anlage 3 erfüllt | AL174: Ja | AN174: Anteil KWK gemäß Anlage 3 | AP174: 21.67 | AQ174: 17.34 | AR174: 21.67 | AU174: EEG | AV174: BiK51na1K09y01
AA175: 174 | AB175: EEG | AC175: BiK51na1K09y01 | AD175: Biomasse | AE175: Biomasse | AF175: Inbetriebnahme bis 2001 | AG175: Inbetriebnahme bis 2001 | AJ175: 0-0,150 MW, Bonusregeln a1, y und K erstmals 2009 | AL175: Ja | AN175: Anteil KWK, erstmals 2009 | AP175: 21.67 | AQ175: 17.34 | AR175: 21.67 | AU175: EEG | AV175: BiK51na1K10y01
AA176: 175 | AB176: EEG | AC176: BiK51na1K10y01 | AD176: Biomasse | AE176: Biomasse | AF176: Inbetriebnahme bis 2001 | AG176: Inbetriebnahme bis 2001 | AJ176: 0-0,150 MW, Bonusregeln a1, y und K erstmals 2010 | AL176: Ja | AN176: Anteil KWK, erstmals 2010 | AP176: 21.64 | AQ176: 17.31 | AR176: 21.64 | AU176: EEG | AV176: BiK51na1K11y01
AA177: 176 | AB177: EEG | AC177: BiK51na1K11y01 | AD177: Biomasse | AE177: Biomasse | AF177: Inbetriebnahme bis 2001 | AG177: Inbetriebnahme bis 2001 | AJ177: 0-0,150 MW, Bonusregeln a1, y und K erstmals 2011 | AL177: Ja | AN177: Anteil KWK, erstmals 2011 | AP177: 21.61 | AQ177: 17.29 | AR177: 21.61 | AU177: EEG | AV177: BiK51na1K12y01
AA178: 177 | AB178: EEG | AC178: BiK51na1K12y01 | AD178: Biomasse | AE178: Biomasse | AF178: Inbetriebnahme bis 2001 | AG178: Inbetriebnahme bis 2001 | AJ178: 0-0,150 MW, Bonusregeln a1, y und K erstmals 2012 | AL178: Ja | AN178: Anteil KWK, erstmals 2012 | AP178: 21.58 | AQ178: 17.26 | AR178: 21.58 | AU178: EEG | AV178: BiK51nG-----01
AA179: 178 | AB179: EEG | AC179: BiK51nG-----01 | AD179: Biomasse | AE179: Biomasse | AF179: Inbetriebnahme bis 2001 | AG179: Inbetriebnahme bis 2001 | AJ179: 0-0,15 MW, Bonusregel G | AN179: Anteil Nicht-KWK | AP179: 18.67 | AQ179: 14.94 | AR179: 18.67 | AU179: EEG | AV179: BiK51nGKA3--01
AA180: 179 | AB180: EEG | AC180: BiK51nGKA3--01 | AD180: Biomasse | AE180: Biomasse | AF180: Inbetriebnahme bis 2001 | AG180: Inbetriebnahme bis 2001 | AJ180: 0-0,15 MW, Bonusregeln G und K wenn Anlage 3 erfüllt | AL180: Ja | AN180: Anteil KWK gemäß Anlage 3 | AP180: 21.67 | AQ180: 17.34 | AR180: 21.67 | AU180: EEG | AV180: BiK51nGK09--01
AA181: 180 | AB181: EEG | AC181: BiK51nGK09--01 | AD181: Biomasse | AE181: Biomasse | AF181: Inbetriebnahme bis 2001 | AG181: Inbetriebnahme bis 2001 | AJ181: 0-0,15 MW, Bonusregeln G und K erstmals 2009 | AL181: Ja | AN181: Anteil KWK, erstmals 2009 | AP181: 21.67 | AQ181: 17.34 | AR181: 21.67 | AU181: EEG | AV181: BiK51nGK10--01
AA182: 181 | AB182: EEG | AC182: BiK51nGK10--01 | AD182: Biomasse | AE182: Biomasse | AF182: Inbetriebnahme bis 2001 | AG182: Inbetriebnahme bis 2001 | AJ182: 0-0,15 MW, Bonusregeln G und K erstmals 2010 | AL182: Ja | AN182: Anteil KWK, erstmals 2010 | AP182: 21.64 | AQ182: 17.31 | AR182: 21.64 | AU182: EEG | AV182: BiK51nGK11--01
AA183: 182 | AB183: EEG | AC183: BiK51nGK11--01 | AD183: Biomasse | AE183: Biomasse | AF183: Inbetriebnahme bis 2001 | AG183: Inbetriebnahme bis 2001 | AJ183: 0-0,15 MW, Bonusregeln G und K erstmals 2011 | AL183: Ja | AN183: Anteil KWK, erstmals 2011 | AP183: 21.61 | AQ183: 17.29 | AR183: 21.61 | AU183: EEG | AV183: BiK51nGK12--01
AA184: 183 | AB184: EEG | AC184: BiK51nGK12--01 | AD184: Biomasse | AE184: Biomasse | AF184: Inbetriebnahme bis 2001 | AG184: Inbetriebnahme bis 2001 | AJ184: 0-0,15 MW, Bonusregeln G und K erstmals 2012 | AL184: Ja | AN184: Anteil KWK, erstmals 2012 | AP184: 21.58 | AQ184: 17.26 | AR184: 21.58 | AU184: EEG | AV184: BiK51nGy----01
AA185: 184 | AB185: EEG | AC185: BiK51nGy----01 | AD185: Biomasse | AE185: Biomasse | AF185: Inbetriebnahme bis 2001 | AG185: Inbetriebnahme bis 2001 | AJ185: 0-0,15 MW, Bonusregel G, y | AN185: Anteil Nicht-KWK | AP185: 19.67 | AQ185: 15.74 | AR185: 19.67 | AU185: EEG | AV185: BiK51nGKA3y-01
AA186: 185 | AB186: EEG | AC186: BiK51nGKA3y-01 | AD186: Biomasse | AE186: Biomasse | AF186: Inbetriebnahme bis 2001 | AG186: Inbetriebnahme bis 2001 | AJ186: 0-0,15 MW, Bonusregeln G, y und K wenn Anlage 3 erfüllt | AL186: Ja | AN186: Anteil KWK gemäß Anlage 3 | AP186: 22.67 | AQ186: 18.14 | AR186: 22.67 | AU186: EEG | AV186: BiK51nGK09y-01
AA187: 186 | AB187: EEG | AC187: BiK51nGK09y-01 | AD187: Biomasse | AE187: Biomasse | AF187: Inbetriebnahme bis 2001 | AG187: Inbetriebnahme bis 2001 | AJ187: 0-0,15 MW, Bonusregeln G, y und K erstmals 2009 | AL187: Ja | AN187: Anteil KWK, erstmals 2009 | AP187: 22.67 | AQ187: 18.14 | AR187: 22.67 | AU187: EEG | AV187: BiK51nGK10y-01
AA188: 187 | AB188: EEG | AC188: BiK51nGK10y-01 | AD188: Biomasse | AE188: Biomasse | AF188: Inbetriebnahme bis 2001 | AG188: Inbetriebnahme bis 2001 | AJ188: 0-0,15 MW, Bonusregeln G, y und K erstmals 2010 | AL188: Ja | AN188: Anteil KWK, erstmals 2010 | AP188: 22.64 | AQ188: 18.11 | AR188: 22.64 | AU188: EEG | AV188: BiK51nGK11y-01
AA189: 188 | AB189: EEG | AC189: BiK51nGK11y-01 | AD189: Biomasse | AE189: Biomasse | AF189: Inbetriebnahme bis 2001 | AG189: Inbetriebnahme bis 2001 | AJ189: 0-0,15 MW, Bonusregeln G, y und K erstmals 2011 | AL189: Ja | AN189: Anteil KWK, erstmals 2011 | AP189: 22.61 | AQ189: 18.09 | AR189: 22.61 | AU189: EEG | AV189: BiK51nGK12y-01
AA190: 189 | AB190: EEG | AC190: BiK51nGK12y-01 | AD190: Biomasse | AE190: Biomasse | AF190: Inbetriebnahme bis 2001 | AG190: Inbetriebnahme bis 2001 | AJ190: 0-0,15 MW, Bonusregeln G, y und K erstmals 2012 | AL190: Ja | AN190: Anteil KWK, erstmals 2012 | AP190: 22.58 | AQ190: 18.06 | AR190: 22.58 | AU190: EEG | AV190: BiK51nM1----01
AA191: 190 | AB191: EEG | AC191: BiK51nM1----01 | AD191: Biomasse | AE191: Biomasse | AF191: Inbetriebnahme bis 2001 | AG191: Inbetriebnahme bis 2001 | AJ191: 0-0,15 MW, Bonusregel M1 | AN191: Anteil Nicht-KWK | AP191: 22.67 | AQ191: 18.14 | AR191: 22.67 | AU191: EEG | AV191: BiK51nM1KA3-01
AA192: 191 | AB192: EEG | AC192: BiK51nM1KA3-01 | AD192: Biomasse | AE192: Biomasse | AF192: Inbetriebnahme bis 2001 | AG192: Inbetriebnahme bis 2001 | AJ192: 0-0,15 MW, Bonusregeln M1 und K wenn Anlage 3 erfüllt | AL192: Ja | AN192: Anteil KWK gemäß Anlage 3 | AP192: 25.67 | AQ192: 20.54 | AR192: 25.67 | AU192: EEG | AV192: BiK51nM1K09-01
AA193: 192 | AB193: EEG | AC193: BiK51nM1K09-01 | AD193: Biomasse | AE193: Biomasse | AF193: Inbetriebnahme bis 2001 | AG193: Inbetriebnahme bis 2001 | AJ193: 0-0,15 MW, Bonusregeln M1 und K erstmals 2009 | AL193: Ja | AN193: Anteil KWK, erstmals 2009 | AP193: 25.67 | AQ193: 20.54 | AR193: 25.67 | AU193: EEG | AV193: BiK51nM1K10-01
AA194: 193 | AB194: EEG | AC194: BiK51nM1K10-01 | AD194: Biomasse | AE194: Biomasse | AF194: Inbetriebnahme bis 2001 | AG194: Inbetriebnahme bis 2001 | AJ194: 0-0,15 MW, Bonusregeln M1 und K erstmals 2010 | AL194: Ja | AN194: Anteil KWK, erstmals 2010 | AP194: 25.64 | AQ194: 20.51 | AR194: 25.64 | AU194: EEG | AV194: BiK51nM1K11-01
AA195: 194 | AB195: EEG | AC195: BiK51nM1K11-01 | AD195: Biomasse | AE195: Biomasse | AF195: Inbetriebnahme bis 2001 | AG195: Inbetriebnahme bis 2001 | AJ195: 0-0,15 MW, Bonusregeln M1 und K erstmals 2011 | AL195: Ja | AN195: Anteil KWK, erstmals 2011 | AP195: 25.61 | AQ195: 20.49 | AR195: 25.61 | AU195: EEG | AV195: BiK51nM1K12-01
AA196: 195 | AB196: EEG | AC196: BiK51nM1K12-01 | AD196: Biomasse | AE196: Biomasse | AF196: Inbetriebnahme bis 2001 | AG196: Inbetriebnahme bis 2001 | AJ196: 0-0,15 MW, Bonusregeln M1 und K erstmals 2012 | AL196: Ja | AN196: Anteil KWK, erstmals 2012 | AP196: 25.58 | AQ196: 20.46 | AR196: 25.58 | AU196: EEG | AV196: BiK51nM1y---01
AA197: 196 | AB197: EEG | AC197: BiK51nM1y---01 | AD197: Biomasse | AE197: Biomasse | AF197: Inbetriebnahme bis 2001 | AG197: Inbetriebnahme bis 2001 | AJ197: 0-0,15 MW, Bonusregeln M1, y | AN197: Anteil Nicht-KWK | AP197: 23.67 | AQ197: 18.94 | AR197: 23.67 | AU197: EEG | AV197: BiK51nM1KA3y01
AA198: 197 | AB198: EEG | AC198: BiK51nM1KA3y01 | AD198: Biomasse | AE198: Biomasse | AF198: Inbetriebnahme bis 2001 | AG198: Inbetriebnahme bis 2001 | AJ198: 0-0,15 MW, Bonusregeln M1, y und K wenn Anlage 3 erfüllt | AL198: Ja | AN198: Anteil KWK gemäß Anlage 3 | AP198: 26.67 | AQ198: 21.34 | AR198: 26.67 | AU198: EEG | AV198: BiK51nM1K09y01
AA199: 198 | AB199: EEG | AC199: BiK51nM1K09y01 | AD199: Biomasse | AE199: Biomasse | AF199: Inbetriebnahme bis 2001 | AG199: Inbetriebnahme bis 2001 | AJ199: 0-0,15 MW, Bonusregeln M1, y und K erstmals 2009 | AL199: Ja | AN199: Anteil KWK, erstmals 2009 | AP199: 26.67 | AQ199: 21.34 | AR199: 26.67 | AU199: EEG | AV199: BiK51nM1K10y01
AA200: 199 | AB200: EEG | AC200: BiK51nM1K10y01 | AD200: Biomasse | AE200: Biomasse | AF200: Inbetriebnahme bis 2001 | AG200: Inbetriebnahme bis 2001 | AJ200: 0-0,15 MW, Bonusregeln M1, y und K erstmals 2010 | AL200: Ja | AN200: Anteil KWK, erstmals 2010 | AP200: 26.64 | AQ200: 21.31 | AR200: 26.64 | AU200: EEG | AV200: BiK51nM1K11y01
... 925 more rows

Sheet Anderungsdokumentation (hidden)
A1: Version | B1: Änderung zum Vorgänger | C1: Datum der Auslieferung
A2: 1.11 (2014) | B2: -Neue Spezialvergütunsgkategorie eingebaut -Fehlermeldung bei Prüfung DV ohne Angaben zur Direktvermarktung angepasst | C2: 2014-03-14
A3: 1.12 (2014) | B3: -Fehlerhafte Kennzeichnung einer "fernsteuerbaren" Marktprämienkategorie korrigiert | C3: 2014-02-19
A4: 1.13 (2014) | B4: -Ausnahmetext für SV/RV-Prüfung wurde nicht korrekt berücksichtigt -> korrigiert | C4: 2014-04-24
A5: 1.14 (2014) | B5: -ungültige vNE-Kategorien (kein Eintarg aus der Liste) führte zu Programmabbruch -> korrigiert -Änderungsdokumentation nachgezogen | C5: 2014-05-16
A6: 1.0 (2015) | B6: Anpassungen für Jahersmeldungen 2014: neue Kategorien, Nachträgliche Korrekturen, Ausfallvermarktung, Flexibilitätszuschlag (mit Prüfung), Prüfung von MIM und Höchstebemessungsleistung Änderunge bei Modernvisierung von Wasserkraftanlagen verändertes Layout der Testateblätter Liste der Ausnahmen | C6: 2015-03-18
A7: 1.1 (2015) | B7: div. Fehlerkorrekuren | C7: 2015-03-19
A8: 1.2 (2015) | B8: 2 fehlende Kats hinzugefügt, unteres Limit für Flexzuschalg auf 0 gesetzt und Marktwerte eingepflegt | C8: 2015-03-19
A9: 1.3 (2015) | B9: MW-Sanktionen bei Managementprämien hinzugefügt/Fehler in Ausfallvermarktung korrigiert | C9: 2015-03-20
A10: 1.4 (2015) | B10: Buttons geändert | C10: 2015-03-20
A11: 1.5 (2015) | B11: - Korrektur bei der Berechnung der Bemessungleistung und - 1kW Toleranz bei Prüfung Verstoß Höchtsbemessungsleistung - Fehler bei fehlender Angabe zum Einspeisemanagement obowhl zuläsig (wegen Anlagen vor 2012) | C11: 2015-03-23
A12: 1.6 (2015) | B12: Fehlermeldung bei Einspeisemanagement angepasst, Stichtag für PV > 30 kWp = 01.01.2009 anstatt 01.01.2003 | C12: 2015-03-23
A13: 1.7 (2015) | B13: Ausgleichsbilanzkreis mit Validierung | C13: 2015-03-24
